﻿Directorate,Service,Division,Responsible Unit,Expense Type,Payment Date,Trans No,Net Amount,Supplier Name
Adults Services,Adult Social Care,Older People (Aged 65 or over) including Older Mental Ill,Strategic Commissioning,Social Care - Small Grants,01/02/2016,3594602,500,OCEAN BOWLS CLUB
Adults Services,Adult Social Care,Older People (Aged 65 or over) including Older Mental Ill,Strategic Commissioning,Social Care - Small Grants,01/02/2016,3594604,500,Parmiter's Almshouse and Pension Charity
Adults Services,Adult Social Care,Older People (Aged 65 or over) including Older Mental Ill,Strategic Commissioning,Social Care - Small Grants,01/02/2016,3594608,500,STRAFFORD STREET FRIENDSHIP CLUB
Adults Services,Adult Social Care,Older People (Aged 65 or over) including Older Mental Ill,Strategic Commissioning,Social Care - Small Grants,01/02/2016,3594610,500,TREDEGAR SABELLA T A
Adults Services,Adult Social Care,Older People (Aged 65 or over) including Older Mental Ill,Strategic Commissioning,Social Care - Small Grants,01/02/2016,3594611,500,THE YOUNG AT HEART BINGO CLUB
Adults Services,Adult Social Care,Older People (Aged 65 or over) including Older Mental Ill,Strategic Commissioning,Social Care - Small Grants,01/02/2016,3594612,500,ZACCHEUS PROJECT
Adults Services,Adult Social Care,Older People (Aged 65 or over) including Older Mental Ill,Older People Commissioning,Social Care - Nursing Care,01/02/2016,3592182,"3,223.07",Catchpole Court Care Home
Adults Services,Adult Social Care,Older People (Aged 65 or over) including Older Mental Ill,Older People Commissioning,Social Care - Nursing Care,01/02/2016,3592338,"4,596.86",Heathlands Care Home
Adults Services,Adult Social Care,Older People (Aged 65 or over) including Older Mental Ill,Older People Commissioning,Social Care - Nursing Care,01/02/2016,3592339,"3,711.14",Heathlands Care Home
Adults Services,Adult Social Care,Older People (Aged 65 or over) including Older Mental Ill,Older People Commissioning,Social Care - Nursing Care,01/02/2016,3592389,"2,382.57",Ladyville Lodge Care Home (part of Four Seasons Health Care Ltd
Adults Services,Adult Social Care,Older People (Aged 65 or over) including Older Mental Ill,Older People Commissioning,Social Care - Residential Care,01/02/2016,3591358,"2,435.71",Cheriton Residential Care Home
Adults Services,Adult Social Care,Older People (Aged 65 or over) including Older Mental Ill,Older People Commissioning,Social Care - Residential Care,01/02/2016,3591371,"1,975.14",North Park Care Home (Barchester Healthcare)
Adults Services,Adult Social Care,Older People (Aged 65 or over) including Older Mental Ill,Older People Commissioning,Social Care - Residential Care,01/02/2016,3591371,-568.19,North Park Care Home (Barchester Healthcare)
Adults Services,Adult Social Care,Older People (Aged 65 or over) including Older Mental Ill,Older People Commissioning,Social Care - Residential Care,01/02/2016,3594254,"2,272.08",Broadening Choices For Older People (Brookvale Care Home)
Adults Services,Adult Social Care,Older People (Aged 65 or over) including Older Mental Ill,Older People Commissioning,Social Care - Residential Care,01/02/2016,3594254,-559.33,Broadening Choices For Older People (Brookvale Care Home)
Adults Services,Adult Social Care,Older People (Aged 65 or over) including Older Mental Ill,Older People Commissioning,Social Care - Homecare,01/02/2016,3592488,761.45,POSITIVE CARE LINK
Adults Services,Adult Social Care,Older People (Aged 65 or over) including Older Mental Ill,Older People Commissioning,Social Care - Homecare,01/02/2016,3594268,676.17,POSITIVE CARE LINK
Adults Services,Adult Social Care,Older People (Aged 65 or over) including Older Mental Ill,Learning Dis Commissioning,Social Care - Residential Care,01/02/2016,3592090,"9,241.14",NEW DIRECTIONS (ST LEONARDS ON SEA) LTD
Adults Services,Adult Social Care,Older People (Aged 65 or over) including Older Mental Ill,Learning Dis Commissioning,Social Care - Day Care,01/02/2016,3584688,961.88,HEREWARD CARE SERVICES
Adults Services,Adult Social Care,Older People (Aged 65 or over) including Older Mental Ill,Learning Dis Commissioning,Social Care - Day Care,01/02/2016,3592481,"3,285.29",Norwood Ravenswood Services LTD
Adults Services,Adult Social Care,Older People (Aged 65 or over) including Older Mental Ill,Physical Dis Commissioning,Social Care - Day Care,01/02/2016,3591151,838.56,HEADWAY EAST LONDON
Adults Services,Adult Social Care,Older People (Aged 65 or over) including Older Mental Ill,Physical Dis Commissioning,Social Care - Day Care,01/02/2016,3591153,686.8,HEADWAY EAST LONDON
Adults Services,Adult Social Care,Older People (Aged 65 or over) including Older Mental Ill,Physical Dis Commissioning,Social Care - Day Care,01/02/2016,3591155,686.8,HEADWAY EAST LONDON
Adults Services,Adult Social Care,Older People (Aged 65 or over) including Older Mental Ill,Physical Dis Commissioning,Social Care - Day Care,01/02/2016,3591156,"1,011.12",HEADWAY EAST LONDON
Adults Services,Adult Social Care,Older People (Aged 65 or over) including Older Mental Ill,Physical Dis Commissioning,Social Care - Day Care,01/02/2016,3591158,"1,011.12",HEADWAY EAST LONDON
Adults Services,Adult Social Care,Older People (Aged 65 or over) including Older Mental Ill,Mental Health Commissioning,Social Care - Supported Accommodation,01/02/2016,3580627,"2,435.71",HAROLD LODGE
Adults Services,Adult Social Care,Older People (Aged 65 or over) including Older Mental Ill,Mental Health Commissioning,Social Care - Supported Accommodation,01/02/2016,3580628,"2,357.14",HAROLD LODGE
Adults Services,Adult Social Care,Older People (Aged 65 or over) including Older Mental Ill,Mental Health Commissioning,Social Care - Supported Accommodation,01/02/2016,3591094,"2,192.14",HAROLD LODGE
Adults Services,Adult Social Care,Older People (Aged 65 or over) including Older Mental Ill,Mental Health Commissioning,Social Care - Supported Accommodation,01/02/2016,3591095,"2,435.71",HAROLD LODGE
Adults Services,Adult Social Care,Older People (Aged 65 or over) including Older Mental Ill,Mental Health Commissioning,Social Care - Supported Accommodation,01/02/2016,3591145,"1,992.86",HAROLD LODGE
Adults Services,Public Health,Children 519 Public Health Programmes,Public Health Team 1,Third Party Payments - Other Establishments,01/02/2016,3579990,"27,335.92",Barts Health NHS Trust
Adults Services,Public Health,Children 519 Public Health Programmes,Public Health Team 1,Third Party Payments - Other Establishments,01/02/2016,3580185,"479,321.17",Barts Health NHS Trust
Adults Services,Public Health,Smoking and Tobacco,Public Health Team - 2,Third Party Payments - Other Establishments,01/02/2016,3579987,"50,904.37",Barts Health NHS Trust
Adults Services,Public Health,Smoking and Tobacco,Public Health Team - 2,Third Party Payments - Other Establishments,01/02/2016,3579988,"117,868.00",Barts Health NHS Trust
Adults Services,Public Health,Smoking and Tobacco,Public Health Team - 2,Third Party Payments - Other Establishments,01/02/2016,3579992,"21,250.00",Barts Health NHS Trust
Adults Services,Public Health,Smoking and Tobacco,Public Health Team - 2,Payments to Private Contractors - Other Contractors,01/02/2016,3580058,979.54,Day Lewis Plc
Adults Services,Public Health,Smoking and Tobacco,Public Health Team - 2,Payments to Private Contractors - Other Contractors,01/02/2016,3580062,654.68,Guardian Pharmacy t/a Nash Chemist
Adults Services,Public Health,Smoking and Tobacco,Public Health Team - 2,Payments to Private Contractors - Other Contractors,01/02/2016,3580075,913.65,Boots UK Ltd Store 728
Adults Services,Public Health,Smoking and Tobacco,Public Health Team - 2,Payments to Private Contractors - Other Contractors,01/02/2016,3580076,688.9,Sonrak Ltd t/a Massighams Chemist
Adults Services,Public Health,Smoking and Tobacco,Public Health Team - 2,Payments to Private Contractors - Other Contractors,01/02/2016,3580079,706.47,ABC Pharmacy 715
Adults Services,Public Health,Smoking and Tobacco,Public Health Team - 2,Payments to Private Contractors - Other Contractors,01/02/2016,3580084,624.2,Boots UK Ltd Store 185
Adults Services,Public Health,Smoking and Tobacco,Public Health Team - 2,Payments to Private Contractors - Other Contractors,01/02/2016,3580091,586.84,Ali's Pharmacy
Adults Services,Public Health,Smoking and Tobacco,Public Health Team - 2,Payments to Private Contractors - Other Contractors,01/02/2016,3580094,525.4,Chapel Pharmacy
Adults Services,Public Health,Smoking and Tobacco,Public Health Team - 2,Payments to Private Contractors - Other Contractors,01/02/2016,3580097,"1,221.10",Forward Pharmacy
Adults Services,Public Health,Smoking and Tobacco,Public Health Team - 2,Payments to Private Contractors - Other Contractors,01/02/2016,3580118,574.4,AR Parmar Ltd
Adults Services,Public Health,Smoking and Tobacco,Public Health Team - 2,Payments to Private Contractors - Other Contractors,01/02/2016,3580119,764.76,AR Parmar Ltd
Adults Services,Public Health,Smoking and Tobacco,Public Health Team - 2,Payments to Private Contractors - Other Contractors,01/02/2016,3580121,649.04,Jaypharm Chemist
Adults Services,Public Health,Smoking and Tobacco,Public Health Team - 2,Payments to Private Contractors - Other Contractors,01/02/2016,3580152,787.1,Green Light Pharmacy Hannaford
Adults Services,Public Health,Smoking and Tobacco,Public Health Team - 2,Payments to Private Contractors - Other Contractors,01/02/2016,3582521,720.41,Medichem (Bright Bridge Ltd)
Adults Services,Adult Social Care,Older People (Aged 65 or over) including Older Mental Ill,Strategic Commissioning,Social Care - Small Grants,03/02/2016,3594596,500,Hind Grove Creativity Group
Adults Services,Adult Social Care,Older People (Aged 65 or over) including Older Mental Ill,Strategic Commissioning,Social Care - Small Grants,03/02/2016,3594601,500,MONTHLY LUNCHEON CLUB
Adults Services,Adult Social Care,Older People (Aged 65 or over) including Older Mental Ill,Strategic Commissioning,Social Care - Small Grants,03/02/2016,3594603,500,OXFORD GREEN BOWLS & SOCIAL CLUB
Adults Services,Adult Social Care,Older People (Aged 65 or over) including Older Mental Ill,Strategic Commissioning,Social Care - Prevention & Support - Block,03/02/2016,3595902,"14,000.00",AGE UK EAST LONDON
Adults Services,Adult Social Care,Older People (Aged 65 or over) including Older Mental Ill,Strategic Commissioning,Social Care - Prevention & Support - Block,03/02/2016,3595903,"19,689.25",AGE UK EAST LONDON
Adults Services,Adult Social Care,Older People (Aged 65 or over) including Older Mental Ill,Strategic Commissioning,Social Care - Prevention & Support - Block,03/02/2016,3595987,"12,311.00",POhWER
Adults Services,Adult Social Care,Older People (Aged 65 or over) including Older Mental Ill,Strategic Commissioning,Social Care - MSG Prevention Health & Wellbeing,03/02/2016,3595558,"8,000.00",COMMUNITY OF REFUGEES FROM VIETNAM -
Adults Services,Adult Social Care,Older People (Aged 65 or over) including Older Mental Ill,Strategic Commissioning,Social Care - MSG Prevention Health & Wellbeing,03/02/2016,3595559,"8,000.00",COMMUNITY OF REFUGEES FROM VIETNAM -
Adults Services,Adult Social Care,Older People (Aged 65 or over) including Older Mental Ill,Strategic Commissioning,Social Care - MSG Prevention Health & Wellbeing,03/02/2016,3596106,"150,000.00",Toynbee Hall
Adults Services,Adult Social Care,Older People (Aged 65 or over) including Older Mental Ill,Older People Commissioning,Social Care - Nursing Care,03/02/2016,3592383,"2,899.03",CARE UK COMMUNITY PARTNERSHIPS LTD
Adults Services,Adult Social Care,Older People (Aged 65 or over) including Older Mental Ill,Older People Commissioning,Social Care - Nursing Care,03/02/2016,3595811,"2,110.38",SUMMERDALE COURT CARE CENTRE
Adults Services,Adult Social Care,Older People (Aged 65 or over) including Older Mental Ill,Older People Commissioning,Social Care - Nursing Care,03/02/2016,3595812,"1,253.78",SANCTUARY CARE LTD
Adults Services,Adult Social Care,Older People (Aged 65 or over) including Older Mental Ill,Older People Commissioning,Social Care - Nursing Care,03/02/2016,3595814,"3,121.43",SANCTUARY CARE LTD
Adults Services,Adult Social Care,Older People (Aged 65 or over) including Older Mental Ill,Older People Commissioning,Social Care - Nursing Care,03/02/2016,3595823,999.47,BUPA CARE HOMES LTD
Adults Services,Adult Social Care,Older People (Aged 65 or over) including Older Mental Ill,Older People Commissioning,Social Care - Nursing Care,03/02/2016,3596041,"2,680.04",Sunhill Court
Adults Services,Adult Social Care,Older People (Aged 65 or over) including Older Mental Ill,Older People Commissioning,Social Care - Residential Care,03/02/2016,3591103,"3,188.57",Federation of Jewish Services
Adults Services,Adult Social Care,Older People (Aged 65 or over) including Older Mental Ill,Older People Commissioning,Social Care - Residential Care,03/02/2016,3595563,"2,025.00",BARCHESTER HEALTHCARE
Adults Services,Adult Social Care,Older People (Aged 65 or over) including Older Mental Ill,Older People Commissioning,Social Care - Residential Care,03/02/2016,3595564,"2,352.43",Oakdene Rest Home
Adults Services,Adult Social Care,Older People (Aged 65 or over) including Older Mental Ill,Older People Commissioning,Social Care - Residential Care,03/02/2016,3595565,"2,209.86",Oakdene Rest Home
Adults Services,Adult Social Care,Older People (Aged 65 or over) including Older Mental Ill,Older People Commissioning,Social Care - Residential Care,03/02/2016,3595575,"3,410.00",St Georges Nursing Home
Adults Services,Adult Social Care,Older People (Aged 65 or over) including Older Mental Ill,Older People Commissioning,Social Care - Residential Care,03/02/2016,3595815,"14,480.00",GATEWAY HOUSING ASSOCIATION
Adults Services,Adult Social Care,Older People (Aged 65 or over) including Older Mental Ill,Older People Commissioning,Social Care - Residential Care,03/02/2016,3595819,"3,737.14",SANCTUARY CARE LTD
Adults Services,Adult Social Care,Older People (Aged 65 or over) including Older Mental Ill,Older People Commissioning,Social Care - Residential Care,03/02/2016,3595821,"18,287.14",SANCTUARY CARE LTD
Adults Services,Adult Social Care,Older People (Aged 65 or over) including Older Mental Ill,Older People Commissioning,Social Care - Residential Care,03/02/2016,3595824,"2,058.44",SANCTUARY CARE LTD
Adults Services,Adult Social Care,Older People (Aged 65 or over) including Older Mental Ill,Older People Commissioning,Social Care - Residential Care,03/02/2016,3595826,960,SANCTUARY CARE LTD
Adults Services,Adult Social Care,Older People (Aged 65 or over) including Older Mental Ill,Older People Commissioning,Social Care - Residential Care,03/02/2016,3595828,"2,480.00",SANCTUARY CARE LTD
Adults Services,Adult Social Care,Older People (Aged 65 or over) including Older Mental Ill,Older People Commissioning,Social Care - Residential Care,03/02/2016,3595829,"2,720.00",SANCTUARY CARE LTD
Adults Services,Adult Social Care,Older People (Aged 65 or over) including Older Mental Ill,Older People Commissioning,Social Care - Residential Care,03/02/2016,3595830,"2,915.74",EXCELCARE HOLDING PLC
Adults Services,Adult Social Care,Older People (Aged 65 or over) including Older Mental Ill,Older People Commissioning,Social Care - Residential Care,03/02/2016,3595836,"7,542.86",GATEWAY HOUSING ASSOCIATION
Adults Services,Adult Social Care,Older People (Aged 65 or over) including Older Mental Ill,Older People Commissioning,Social Care - Residential Care,03/02/2016,3595843,"2,263.13",JEWISH CARE
Adults Services,Adult Social Care,Older People (Aged 65 or over) including Older Mental Ill,Older People Commissioning,Social Care - Residential Care,03/02/2016,3595844,"1,966.06",JEWISH CARE
Adults Services,Adult Social Care,Older People (Aged 65 or over) including Older Mental Ill,Older People Commissioning,Social Care - Residential Care,03/02/2016,3595845,"2,291.43",JEWISH CARE
Adults Services,Adult Social Care,Older People (Aged 65 or over) including Older Mental Ill,Older People Commissioning,Social Care - Residential Care,03/02/2016,3595846,"2,409.98",JEWISH CARE
Adults Services,Adult Social Care,Older People (Aged 65 or over) including Older Mental Ill,Older People Commissioning,Social Care - Residential Care,03/02/2016,3595847,"1,826.08",JEWISH CARE
Adults Services,Adult Social Care,Older People (Aged 65 or over) including Older Mental Ill,Older People Commissioning,Social Care - Residential Care,03/02/2016,3595965,"2,314.19",THE MELLOWS CARE HOME
Adults Services,Adult Social Care,Older People (Aged 65 or over) including Older Mental Ill,Older People Commissioning,Social Care - Residential Care,03/02/2016,3595965,-580.26,THE MELLOWS CARE HOME
Adults Services,Adult Social Care,Older People (Aged 65 or over) including Older Mental Ill,Older People Commissioning,Social Care - Residential Care,03/02/2016,3595966,"2,172.63",THE MELLOWS CARE HOME
Adults Services,Adult Social Care,Older People (Aged 65 or over) including Older Mental Ill,Older People Commissioning,Social Care - Residential Care,03/02/2016,3595967,"2,391.43",THE MELLOWS CARE HOME
Adults Services,Adult Social Care,Older People (Aged 65 or over) including Older Mental Ill,Older People Commissioning,Social Care - Residential Care,03/02/2016,3595967,-548.92,THE MELLOWS CARE HOME
Adults Services,Adult Social Care,Older People (Aged 65 or over) including Older Mental Ill,Older People Commissioning,Social Care - Residential Care,03/02/2016,3595968,"2,314.29",THE MELLOWS CARE HOME
Adults Services,Adult Social Care,Older People (Aged 65 or over) including Older Mental Ill,Older People Commissioning,Social Care - Residential Care,03/02/2016,3595968,-531.22,THE MELLOWS CARE HOME
Adults Services,Adult Social Care,Older People (Aged 65 or over) including Older Mental Ill,Older People Commissioning,Social Care - Residential Care,03/02/2016,3595969,"2,391.43",THE MELLOWS CARE HOME
Adults Services,Adult Social Care,Older People (Aged 65 or over) including Older Mental Ill,Older People Commissioning,Social Care - Residential Care,03/02/2016,3595969,-548.92,THE MELLOWS CARE HOME
Adults Services,Adult Social Care,Older People (Aged 65 or over) including Older Mental Ill,Older People Commissioning,Social Care - Residential Care,03/02/2016,3595970,"2,391.43",THE MELLOWS CARE HOME
Adults Services,Adult Social Care,Older People (Aged 65 or over) including Older Mental Ill,Older People Commissioning,Social Care - Residential Care,03/02/2016,3595970,-548.92,THE MELLOWS CARE HOME
Adults Services,Adult Social Care,Older People (Aged 65 or over) including Older Mental Ill,Older People Commissioning,Social Care - Residential Care,03/02/2016,3595971,"2,314.28",THE MELLOWS CARE HOME
Adults Services,Adult Social Care,Older People (Aged 65 or over) including Older Mental Ill,Older People Commissioning,Social Care - Residential Care,03/02/2016,3595971,-531.21,THE MELLOWS CARE HOME
Adults Services,Adult Social Care,Older People (Aged 65 or over) including Older Mental Ill,Older People Commissioning,Social Care - Residential Care,03/02/2016,3595972,"2,391.44",THE MELLOWS CARE HOME
Adults Services,Adult Social Care,Older People (Aged 65 or over) including Older Mental Ill,Older People Commissioning,Social Care - Residential Care,03/02/2016,3595972,-548.93,THE MELLOWS CARE HOME
Adults Services,Adult Social Care,Older People (Aged 65 or over) including Older Mental Ill,Older People Commissioning,Social Care - Residential Care,03/02/2016,3595973,"2,314.28",THE MELLOWS CARE HOME
Adults Services,Adult Social Care,Older People (Aged 65 or over) including Older Mental Ill,Older People Commissioning,Social Care - Residential Care,03/02/2016,3595973,-531.21,THE MELLOWS CARE HOME
Adults Services,Adult Social Care,Older People (Aged 65 or over) including Older Mental Ill,Older People Commissioning,Social Care - Residential Care,03/02/2016,3595974,"2,391.43",THE MELLOWS CARE HOME
Adults Services,Adult Social Care,Older People (Aged 65 or over) including Older Mental Ill,Older People Commissioning,Social Care - Residential Care,03/02/2016,3595974,-548.92,THE MELLOWS CARE HOME
Adults Services,Adult Social Care,Older People (Aged 65 or over) including Older Mental Ill,Older People Commissioning,Social Care - Residential Care,03/02/2016,3596040,"2,414.01",RUNWOOD HOMES PLC
Adults Services,Adult Social Care,Older People (Aged 65 or over) including Older Mental Ill,Older People Commissioning,Social Care - Day Care,03/02/2016,3580751,798.18,Peabody Trust
Adults Services,Adult Social Care,Older People (Aged 65 or over) including Older Mental Ill,Older People Commissioning,Social Care - Day Care,03/02/2016,3580765,789.18,Peabody Trust
Adults Services,Adult Social Care,Older People (Aged 65 or over) including Older Mental Ill,Older People Commissioning,Social Care - Day Care,03/02/2016,3580766,601.28,Peabody Trust
Adults Services,Adult Social Care,Older People (Aged 65 or over) including Older Mental Ill,Older People Commissioning,Social Care - Day Care,03/02/2016,3580782,789.21,Peabody Trust
Adults Services,Adult Social Care,Older People (Aged 65 or over) including Older Mental Ill,Older People Commissioning,Social Care - Day Care,03/02/2016,3580788,789.18,Peabody Trust
Adults Services,Adult Social Care,Older People (Aged 65 or over) including Older Mental Ill,Older People Commissioning,Social Care - Day Care,03/02/2016,3580789,685.14,Peabody Trust
Adults Services,Adult Social Care,Older People (Aged 65 or over) including Older Mental Ill,Older People Commissioning,Social Care - Day Care,03/02/2016,3580793,751.6,Peabody Trust
Adults Services,Adult Social Care,Older People (Aged 65 or over) including Older Mental Ill,Older People Commissioning,Social Care - Homecare,03/02/2016,3595566,612.67,ATHLONE CARE LTD
Adults Services,Adult Social Care,Older People (Aged 65 or over) including Older Mental Ill,Older People Commissioning,Social Care - Homecare,03/02/2016,3595568,542.36,ATHLONE CARE LTD
Adults Services,Adult Social Care,Older People (Aged 65 or over) including Older Mental Ill,Older People Commissioning,Social Care - Homecare,03/02/2016,3595585,678.94,Mantra Recruitment
Adults Services,Adult Social Care,Older People (Aged 65 or over) including Older Mental Ill,Older People Commissioning,Social Care - Homecare,03/02/2016,3595635,840.76,Excelcare (Home Care Division) LTD
Adults Services,Adult Social Care,Older People (Aged 65 or over) including Older Mental Ill,Older People Commissioning,Social Care - Homecare,03/02/2016,3595660,530.89,Excelcare (Home Care Division) LTD
Adults Services,Adult Social Care,Older People (Aged 65 or over) including Older Mental Ill,Older People Commissioning,Social Care - Homecare,03/02/2016,3595674,741,Excelcare (Home Care Division) LTD
Adults Services,Adult Social Care,Older People (Aged 65 or over) including Older Mental Ill,Older People Commissioning,Social Care - Homecare,03/02/2016,3595679,"1,126.10",Excelcare (Home Care Division) LTD
Adults Services,Adult Social Care,Older People (Aged 65 or over) including Older Mental Ill,Older People Commissioning,Social Care - Homecare,03/02/2016,3595682,662.76,Excelcare (Home Care Division) LTD
Adults Services,Adult Social Care,Older People (Aged 65 or over) including Older Mental Ill,Older People Commissioning,Social Care - Homecare,03/02/2016,3595690,"1,197.28",Excelcare (Home Care Division) LTD
Adults Services,Adult Social Care,Older People (Aged 65 or over) including Older Mental Ill,Older People Commissioning,Social Care - Homecare,03/02/2016,3595694,705.48,Excelcare (Home Care Division) LTD
Adults Services,Adult Social Care,Older People (Aged 65 or over) including Older Mental Ill,Older People Commissioning,Social Care - Homecare,03/02/2016,3595695,"1,026.42",Excelcare (Home Care Division) LTD
Adults Services,Adult Social Care,Older People (Aged 65 or over) including Older Mental Ill,Older People Commissioning,Social Care - Homecare,03/02/2016,3595700,"1,218.62",Excelcare (Home Care Division) LTD
Adults Services,Adult Social Care,Older People (Aged 65 or over) including Older Mental Ill,Older People Commissioning,Social Care - Homecare,03/02/2016,3595703,"2,265.80",Excelcare (Home Care Division) LTD
Adults Services,Adult Social Care,Older People (Aged 65 or over) including Older Mental Ill,Older People Commissioning,Social Care - Homecare,03/02/2016,3595705,584.34,Excelcare (Home Care Division) LTD
Adults Services,Adult Social Care,Older People (Aged 65 or over) including Older Mental Ill,Older People Commissioning,Social Care - Homecare,03/02/2016,3595756,798,Excelcare (Home Care Division) LTD
Adults Services,Adult Social Care,Older People (Aged 65 or over) including Older Mental Ill,Older People Commissioning,Social Care - Homecare,03/02/2016,3595762,"1,126.10",Excelcare (Home Care Division) LTD
Adults Services,Adult Social Care,Older People (Aged 65 or over) including Older Mental Ill,Older People Commissioning,Social Care - Homecare,03/02/2016,3595772,"1,197.28",Excelcare (Home Care Division) LTD
Adults Services,Adult Social Care,Older People (Aged 65 or over) including Older Mental Ill,Older People Commissioning,Social Care - Homecare,03/02/2016,3595774,705.48,Excelcare (Home Care Division) LTD
Adults Services,Adult Social Care,Older People (Aged 65 or over) including Older Mental Ill,Older People Commissioning,Social Care - Homecare,03/02/2016,3595775,"1,040.68",Excelcare (Home Care Division) LTD
Adults Services,Adult Social Care,Older People (Aged 65 or over) including Older Mental Ill,Older People Commissioning,Social Care - Homecare,03/02/2016,3595779,"1,218.62",Excelcare (Home Care Division) LTD
Adults Services,Adult Social Care,Older People (Aged 65 or over) including Older Mental Ill,Older People Commissioning,Social Care - Homecare,03/02/2016,3595782,"2,265.80",Excelcare (Home Care Division) LTD
Adults Services,Adult Social Care,Older People (Aged 65 or over) including Older Mental Ill,Older People Commissioning,Social Care - Homecare,03/02/2016,3595849,920.54,REDSPOT HOMECARE (CONTRACTS) LTD
Adults Services,Adult Social Care,Older People (Aged 65 or over) including Older Mental Ill,Older People Commissioning,Social Care - Homecare,03/02/2016,3595850,683.43,REDSPOT HOMECARE (CONTRACTS) LTD
Adults Services,Adult Social Care,Older People (Aged 65 or over) including Older Mental Ill,Older People Commissioning,Social Care - Homecare,03/02/2016,3595852,772.58,REDSPOT HOMECARE (CONTRACTS) LTD
Adults Services,Adult Social Care,Older People (Aged 65 or over) including Older Mental Ill,Older People Commissioning,Social Care - Homecare,03/02/2016,3595860,732.04,REDSPOT HOMECARE (CONTRACTS) LTD
Adults Services,Adult Social Care,Older People (Aged 65 or over) including Older Mental Ill,Older People Commissioning,Social Care - Homecare,03/02/2016,3595868,655.61,REDSPOT HOMECARE (CONTRACTS) LTD
Adults Services,Adult Social Care,Older People (Aged 65 or over) including Older Mental Ill,Older People Commissioning,Social Care - Homecare,03/02/2016,3595871,775.89,REDSPOT HOMECARE (CONTRACTS) LTD
Adults Services,Adult Social Care,Older People (Aged 65 or over) including Older Mental Ill,Older People Commissioning,Social Care - Homecare,03/02/2016,3595887,946.29,REDSPOT HOMECARE (CONTRACTS) LTD
Adults Services,Adult Social Care,Older People (Aged 65 or over) including Older Mental Ill,Older People Commissioning,Social Care - Homecare,03/02/2016,3595900,648.09,REDSPOT HOMECARE (CONTRACTS) LTD
Adults Services,Adult Social Care,Older People (Aged 65 or over) including Older Mental Ill,Older People Commissioning,Social Care - Homecare,03/02/2016,3595920,539.48,MiHOMECARE LIMITED
Adults Services,Adult Social Care,Older People (Aged 65 or over) including Older Mental Ill,Older People Commissioning,Social Care - Homecare,03/02/2016,3595925,905.55,MiHOMECARE LIMITED
Adults Services,Adult Social Care,Older People (Aged 65 or over) including Older Mental Ill,Older People Commissioning,Social Care - Homecare,03/02/2016,3595955,886.94,MiHOMECARE LIMITED
Adults Services,Adult Social Care,Older People (Aged 65 or over) including Older Mental Ill,Older People Commissioning,Social Care - Homecare,03/02/2016,3596044,513.36,SANCTUARY HOME CARE LIMITED
Adults Services,Adult Social Care,Older People (Aged 65 or over) including Older Mental Ill,Older People Commissioning,Social Care - Homecare,03/02/2016,3596045,513.36,SANCTUARY HOME CARE LIMITED
Adults Services,Adult Social Care,Older People (Aged 65 or over) including Older Mental Ill,Older People Commissioning,Social Care - Homecare,03/02/2016,3596047,"1,597.12",SANCTUARY HOME CARE LIMITED
Adults Services,Adult Social Care,Older People (Aged 65 or over) including Older Mental Ill,Older People Commissioning,Social Care - Homecare,03/02/2016,3596049,513.36,SANCTUARY HOME CARE LIMITED
Adults Services,Adult Social Care,Older People (Aged 65 or over) including Older Mental Ill,Older People Commissioning,Social Care - Homecare,03/02/2016,3596051,"1,597.12",SANCTUARY HOME CARE LIMITED
Adults Services,Adult Social Care,Older People (Aged 65 or over) including Older Mental Ill,Older People Commissioning,Social Care - Homecare,03/02/2016,3596054,506.23,SANCTUARY HOME CARE LIMITED
Adults Services,Adult Social Care,Older People (Aged 65 or over) including Older Mental Ill,Older People Commissioning,Social Care - Homecare,03/02/2016,3596057,"1,124.42",SANCTUARY HOME CARE LIMITED
Adults Services,Adult Social Care,Older People (Aged 65 or over) including Older Mental Ill,Older People Commissioning,Social Care - Homecare,03/02/2016,3596074,638.46,SANCTUARY HOME CARE LIMITED
Adults Services,Adult Social Care,Older People (Aged 65 or over) including Older Mental Ill,Older People Commissioning,Social Care - Homecare,03/02/2016,3596094,"1,422.00",SANCTUARY HOME CARE LIMITED
Adults Services,Adult Social Care,Older People (Aged 65 or over) including Older Mental Ill,Older People Commissioning,Social Care - Homecare,03/02/2016,3596102,"1,410.75",Soma Healthcare Ltd
Adults Services,Adult Social Care,Older People (Aged 65 or over) including Older Mental Ill,Older People Commissioning,Social Care - Homecare,03/02/2016,3596103,512.33,Soma Healthcare Ltd
Adults Services,Adult Social Care,Older People (Aged 65 or over) including Older Mental Ill,Older People Commissioning,Social Care - Home Care (Short Term),03/02/2016,3595948,968.23,MiHOMECARE LIMITED
Adults Services,Adult Social Care,Older People (Aged 65 or over) including Older Mental Ill,Learning Dis Commissioning,Social Care - Residential Care,03/02/2016,3582397,"8,366.59",Outward Housing
Adults Services,Adult Social Care,Older People (Aged 65 or over) including Older Mental Ill,Learning Dis Commissioning,Social Care - Residential Care,03/02/2016,3592392,"4,302.67",OUTLOOK HOUSE
Adults Services,Adult Social Care,Older People (Aged 65 or over) including Older Mental Ill,Learning Dis Commissioning,Social Care - Residential Care,03/02/2016,3595810,"9,200.00",Coppice Care Burgess Hill LLP
Adults Services,Adult Social Care,Older People (Aged 65 or over) including Older Mental Ill,Learning Dis Commissioning,Social Care - Residential Care,03/02/2016,3595904,"4,871.34",SHERICO CARE SERVICES LTD
Adults Services,Adult Social Care,Older People (Aged 65 or over) including Older Mental Ill,Learning Dis Commissioning,Social Care - Residential Care,03/02/2016,3595978,"6,709.33",KPMS LTD
Adults Services,Adult Social Care,Older People (Aged 65 or over) including Older Mental Ill,Learning Dis Commissioning,Social Care - Respite Care,03/02/2016,3595984,"1,946.54",THE DOCKLANDS HANDICAPPED GROUP
Adults Services,Adult Social Care,Older People (Aged 65 or over) including Older Mental Ill,Learning Dis Commissioning,Social Care - Respite Care,03/02/2016,3595985,"1,946.54",THE DOCKLANDS HANDICAPPED GROUP
Adults Services,Adult Social Care,Older People (Aged 65 or over) including Older Mental Ill,Learning Dis Commissioning,Social Care - Day Care,03/02/2016,3595561,728,THE MAP SQUAD
Adults Services,Adult Social Care,Older People (Aged 65 or over) including Older Mental Ill,Learning Dis Commissioning,Social Care - Day Care,03/02/2016,3595591,540,I C M FOUNDATION CIC - CORE NEWS PROJECT
Adults Services,Adult Social Care,Older People (Aged 65 or over) including Older Mental Ill,Learning Dis Commissioning,Social Care - Day Care,03/02/2016,3595593,540,I C M FOUNDATION CIC - CORE NEWS PROJECT
Adults Services,Adult Social Care,Older People (Aged 65 or over) including Older Mental Ill,Learning Dis Commissioning,Social Care - Homecare,03/02/2016,3580803,"1,531.40",Outward Housing
Adults Services,Adult Social Care,Older People (Aged 65 or over) including Older Mental Ill,Learning Dis Commissioning,Social Care - Homecare,03/02/2016,3580804,"1,361.21",Outward Housing
Adults Services,Adult Social Care,Older People (Aged 65 or over) including Older Mental Ill,Learning Dis Commissioning,Social Care - Homecare,03/02/2016,3580805,697.81,Outward Housing
Adults Services,Adult Social Care,Older People (Aged 65 or over) including Older Mental Ill,Learning Dis Commissioning,Social Care - Homecare,03/02/2016,3580806,"2,450.24",Outward Housing
Adults Services,Adult Social Care,Older People (Aged 65 or over) including Older Mental Ill,Learning Dis Commissioning,Social Care - Homecare,03/02/2016,3580807,714.86,Outward Housing
Adults Services,Adult Social Care,Older People (Aged 65 or over) including Older Mental Ill,Learning Dis Commissioning,Social Care - Homecare,03/02/2016,3580808,816.85,Outward Housing
Adults Services,Adult Social Care,Older People (Aged 65 or over) including Older Mental Ill,Learning Dis Commissioning,Social Care - Homecare,03/02/2016,3580865,"1,123.13",Outward Housing
Adults Services,Adult Social Care,Older People (Aged 65 or over) including Older Mental Ill,Learning Dis Commissioning,Social Care - Homecare,03/02/2016,3595592,540,I C M FOUNDATION CIC - CORE NEWS PROJECT
Adults Services,Adult Social Care,Older People (Aged 65 or over) including Older Mental Ill,Learning Dis Commissioning,Social Care - Homecare,03/02/2016,3595801,"1,603.20",Excelcare (Home Care Division) LTD
Adults Services,Adult Social Care,Older People (Aged 65 or over) including Older Mental Ill,Learning Dis Commissioning,Social Care - Homecare,03/02/2016,3595805,"2,599.80",MEARS CARE LTD
Adults Services,Adult Social Care,Older People (Aged 65 or over) including Older Mental Ill,Learning Dis Commissioning,Social Care - Homecare,03/02/2016,3595905,"7,182.93",THE DOCKLANDS HANDICAPPED GROUP
Adults Services,Adult Social Care,Older People (Aged 65 or over) including Older Mental Ill,Learning Dis Commissioning,Social Care - Homecare,03/02/2016,3595908,"7,182.93",THE DOCKLANDS HANDICAPPED GROUP
Adults Services,Adult Social Care,Older People (Aged 65 or over) including Older Mental Ill,Learning Dis Commissioning,Social Care - Homecare,03/02/2016,3595983,"7,182.93",THE DOCKLANDS HANDICAPPED GROUP
Adults Services,Adult Social Care,Older People (Aged 65 or over) including Older Mental Ill,Learning Dis Commissioning,Social Care - Direct Payments,03/02/2016,3595816,"2,854.77",D D PAYROLL SERVICES
Adults Services,Adult Social Care,Older People (Aged 65 or over) including Older Mental Ill,Learning Dis Commissioning,Social Care - Help to Live at Home,03/02/2016,3582399,"1,701.59",Outward Housing
Adults Services,Adult Social Care,Older People (Aged 65 or over) including Older Mental Ill,Learning Dis Commissioning,Social Care - Help to Live at Home,03/02/2016,3595840,"7,611.00",SPENCER & ARLINGTON LTD
Adults Services,Adult Social Care,Older People (Aged 65 or over) including Older Mental Ill,Learning Dis Commissioning,Social Care - Help to Live at Home,03/02/2016,3595841,"7,611.00",SPENCER & ARLINGTON LTD
Adults Services,Adult Social Care,Older People (Aged 65 or over) including Older Mental Ill,Learning Dis Commissioning,Social Care - Help to Live at Home,03/02/2016,3595842,"7,611.00",SPENCER & ARLINGTON LTD
Adults Services,Adult Social Care,Older People (Aged 65 or over) including Older Mental Ill,Learning Dis Commissioning,Social Care - Help to Live at Home,03/02/2016,3595907,"7,166.28",Transitions Living
Adults Services,Adult Social Care,Older People (Aged 65 or over) including Older Mental Ill,Learning Dis Commissioning,Social Care - Learning Disability Development Fund,03/02/2016,3595560,"30,253.25",THE MAP SQUAD
Adults Services,Adult Social Care,Older People (Aged 65 or over) including Older Mental Ill,Learning Dis Commissioning,Social Care - Prevention & Support - Block,03/02/2016,3595837,"68,500.00",Tower Project
Adults Services,Adult Social Care,Older People (Aged 65 or over) including Older Mental Ill,Physical Dis Commissioning,Social Care - Residential Care,03/02/2016,3591364,"3,764.29",OULTON PARK CARE CENTRE
Adults Services,Adult Social Care,Older People (Aged 65 or over) including Older Mental Ill,Physical Dis Commissioning,Social Care - Residential Care,03/02/2016,3595831,"1,020.00",SANCTUARY CARE LTD
Adults Services,Adult Social Care,Older People (Aged 65 or over) including Older Mental Ill,Physical Dis Commissioning,Social Care - Residential Care,03/02/2016,3595832,"1,520.68",MISSION CARE
Adults Services,Adult Social Care,Older People (Aged 65 or over) including Older Mental Ill,Physical Dis Commissioning,Social Care - Homecare,03/02/2016,3591147,"1,379.00",Active Assistance
Adults Services,Adult Social Care,Older People (Aged 65 or over) including Older Mental Ill,Physical Dis Commissioning,Social Care - Homecare,03/02/2016,3595584,516.38,Mantra Recruitment
Adults Services,Adult Social Care,Older People (Aged 65 or over) including Older Mental Ill,Physical Dis Commissioning,Social Care - Homecare,03/02/2016,3595649,"4,088.00",Excelcare (Home Care Division) LTD
Adults Services,Adult Social Care,Older People (Aged 65 or over) including Older Mental Ill,Physical Dis Commissioning,Social Care - Homecare,03/02/2016,3595650,691.16,Excelcare (Home Care Division) LTD
Adults Services,Adult Social Care,Older People (Aged 65 or over) including Older Mental Ill,Physical Dis Commissioning,Social Care - Homecare,03/02/2016,3595731,"4,088.00",Excelcare (Home Care Division) LTD
Adults Services,Adult Social Care,Older People (Aged 65 or over) including Older Mental Ill,Physical Dis Commissioning,Social Care - Homecare,03/02/2016,3595732,691.16,Excelcare (Home Care Division) LTD
Adults Services,Adult Social Care,Older People (Aged 65 or over) including Older Mental Ill,Physical Dis Commissioning,Social Care - Homecare,03/02/2016,3595853,"1,166.30",REDSPOT HOMECARE (CONTRACTS) LTD
Adults Services,Adult Social Care,Older People (Aged 65 or over) including Older Mental Ill,Physical Dis Commissioning,Social Care - Homecare,03/02/2016,3595862,547.67,REDSPOT HOMECARE (CONTRACTS) LTD
Adults Services,Adult Social Care,Older People (Aged 65 or over) including Older Mental Ill,Physical Dis Commissioning,Social Care - Homecare,03/02/2016,3595876,909.86,REDSPOT HOMECARE (CONTRACTS) LTD
Adults Services,Adult Social Care,Older People (Aged 65 or over) including Older Mental Ill,Physical Dis Commissioning,Social Care - Homecare,03/02/2016,3595922,561.72,MiHOMECARE LIMITED
Adults Services,Adult Social Care,Older People (Aged 65 or over) including Older Mental Ill,Physical Dis Commissioning,Social Care - Homecare,03/02/2016,3595951,657.78,MiHOMECARE LIMITED
Adults Services,Adult Social Care,Older People (Aged 65 or over) including Older Mental Ill,Physical Dis Commissioning,Social Care - Homecare,03/02/2016,3596058,755.41,SANCTUARY HOME CARE LIMITED
Adults Services,Adult Social Care,Older People (Aged 65 or over) including Older Mental Ill,Physical Dis Commissioning,Social Care - Homecare,03/02/2016,3596072,551.39,SANCTUARY HOME CARE LIMITED
Adults Services,Adult Social Care,Older People (Aged 65 or over) including Older Mental Ill,Physical Dis Commissioning,Social Care - Homecare,03/02/2016,3596101,"1,692.90",Soma Healthcare Ltd
Adults Services,Adult Social Care,Older People (Aged 65 or over) including Older Mental Ill,Physical Dis Commissioning,Social Care - Prevention & Support,03/02/2016,3595979,"1,400.00",Plaza London Hotel
Adults Services,Adult Social Care,Older People (Aged 65 or over) including Older Mental Ill,Physical Dis Commissioning,Social Care - Home Care (Short Term),03/02/2016,3595784,580.45,Excelcare (Home Care Division) LTD
Adults Services,Adult Social Care,Older People (Aged 65 or over) including Older Mental Ill,Mental Health Commissioning,Social Care - Day Care,03/02/2016,3580750,832.32,Peabody Trust
Adults Services,Adult Social Care,Older People (Aged 65 or over) including Older Mental Ill,Mental Health Commissioning,Social Care - Homecare,03/02/2016,3596048,"1,208.56",SANCTUARY HOME CARE LIMITED
Adults Services,Adult Social Care,Older People (Aged 65 or over) including Older Mental Ill,Mental Health Commissioning,Social Care - Homecare,03/02/2016,3596052,"1,197.86",SANCTUARY HOME CARE LIMITED
Adults Services,Adult Social Care,Older People (Aged 65 or over) including Older Mental Ill,Mental Health Commissioning,Social Care - Homecare,03/02/2016,3596056,"1,208.55",SANCTUARY HOME CARE LIMITED
Adults Services,Adult Social Care,Older People (Aged 65 or over) including Older Mental Ill,Carers,Social Care - Carers Centre Adult Services,03/02/2016,3595906,"90,000.00",CARERS CENTRE TOWER HAMLETS
Adults Services,Adult Social Care,Older People (Aged 65 or over) including Older Mental Ill,Carers,Social Care - St Hilda's ST Flexible Respite,03/02/2016,3595986,"17,655.00",St Hilda's East Community Centre
Adults Services,Adult Social Care,Adults Aged Under 65 with Mental Health Needs,MH Commissioner,Social Care - Prevention & Support - Block,03/02/2016,3595980,"3,125.00",SOCIAL ACTION FOR HEALTH
Adults Services,Adult Social Care,Adults Aged Under 65 with Mental Health Needs,MH Commissioner,Social Care - Prevention & Support - Block,03/02/2016,3595981,"3,125.00",SOCIAL ACTION FOR HEALTH
Adults Services,Adult Social Care,Adults Aged Under 65 with Mental Health Needs,MH Commissioner,Social Care - Prevention & Support - Block,03/02/2016,3595982,"3,125.00",SOCIAL ACTION FOR HEALTH
Adults Services,Adult Social Care,Adults Aged Under 65 with Mental Health Needs,CMHT-Bow/Poplar,Events & Exhibition Supplies,03/02/2016,3595123,512.5,Sainsburys Business Direct
Adults Services,No Service Specified,No Division Specified,Community Equipment Store,Community Equipment  Supplies - Aids and Appliances,03/02/2016,3590753,763.93,C S NASH LTD
Adults Services,No Service Specified,No Division Specified,Community Equipment Store,Services - Professional Fees - Financial Services Fees,03/02/2016,3588094,"190,000.00",London Borough Of Croydon
Adults Services,Adult Social Care,Other Adult Services,Reablement,Services - Professional Fees - Consultants Fees,03/02/2016,3595248,"1,000.00",NHS North of England Commissioning Unit
Adults Services,Public Health,Smoking and Tobacco,Public Health Team - 2,Third Party Payments - Other Establishments,03/02/2016,3563276,"249,995.00",Barts Health NHS Trust
Adults Services,Public Health,Smoking and Tobacco,Public Health Team - 2,Payments to Private Contractors - Other Contractors,03/02/2016,3580081,591.1,Guardian Pharmacy t/a Lansbury Chemist
Adults Services,Public Health,Miscellaneous Public Health Services,Public Health Team - 3,Third Party Payments - Voluntary Associations,03/02/2016,3594854,"4,167.67",Ability Bow
Adults Services,Adult Social Care,Adults Aged Under 65 with Mental Health Needs,"BCF-Independent Living Project							",Computing - Purchase of Hardware,03/02/2016,3588040,600,Buddi Ltd
Adults Services,Access to Resources,Access to Resources,Access to Resources,General,03/02/2016,Payment Card,700,city view hotel ltd
Adults Services,General Fund/Council Fund,Homelessness,Supporting People Services,SP - Block-Gross - Old People-Supp Needs,05/02/2016,3595240,585,London Borough Of Newham
Adults Services,Adult Social Care,Older People (Aged 65 or over) including Older Mental Ill,Older People Commissioning,Social Care - Nursing Care,05/02/2016,3580801,"2,680.04",Sunhill Court
Adults Services,Adult Social Care,Older People (Aged 65 or over) including Older Mental Ill,Older People Commissioning,Social Care - Nursing Care,05/02/2016,3591134,"2,426.86",BARCHESTER HEALTHCARE
Adults Services,Adult Social Care,Older People (Aged 65 or over) including Older Mental Ill,Older People Commissioning,Social Care - Nursing Care,05/02/2016,3591136,"2,426.86",BARCHESTER HEALTHCARE
Adults Services,Adult Social Care,Older People (Aged 65 or over) including Older Mental Ill,Older People Commissioning,Social Care - Nursing Care,05/02/2016,3591139,"2,714.71",BARCHESTER HEALTHCARE
Adults Services,Adult Social Care,Older People (Aged 65 or over) including Older Mental Ill,Older People Commissioning,Social Care - Nursing Care,05/02/2016,3591140,"3,268.29",BARCHESTER HEALTHCARE
Adults Services,Adult Social Care,Older People (Aged 65 or over) including Older Mental Ill,Older People Commissioning,Social Care - Residential Care,05/02/2016,3591131,"2,590.71",BARCHESTER HEALTHCARE
Adults Services,Adult Social Care,Older People (Aged 65 or over) including Older Mental Ill,Older People Commissioning,Social Care - Residential Care,05/02/2016,3591132,"2,795.54",BARCHESTER HEALTHCARE
Adults Services,Adult Social Care,Older People (Aged 65 or over) including Older Mental Ill,Older People Commissioning,Social Care - Residential Care,05/02/2016,3591133,"2,480.00",BARCHESTER HEALTHCARE
Adults Services,Adult Social Care,Older People (Aged 65 or over) including Older Mental Ill,Older People Commissioning,Social Care - Residential Care,05/02/2016,3591135,"2,325.00",BARCHESTER HEALTHCARE
Adults Services,Adult Social Care,Older People (Aged 65 or over) including Older Mental Ill,Older People Commissioning,Social Care - Residential Care,05/02/2016,3591135,-559.33,BARCHESTER HEALTHCARE
Adults Services,Adult Social Care,Older People (Aged 65 or over) including Older Mental Ill,Older People Commissioning,Social Care - Residential Care,05/02/2016,3591137,"2,797.75",BARCHESTER HEALTHCARE
Adults Services,Adult Social Care,Older People (Aged 65 or over) including Older Mental Ill,Older People Commissioning,Social Care - Residential Care,05/02/2016,3592088,"2,480.48",Forest Drive Residential Home Ltd
Adults Services,Adult Social Care,Older People (Aged 65 or over) including Older Mental Ill,Older People Commissioning,Social Care - Residential Care,05/02/2016,3592088,"-1,330.08",Forest Drive Residential Home Ltd
Adults Services,Adult Social Care,Older People (Aged 65 or over) including Older Mental Ill,Older People Commissioning,Client Contributions for Social Care - Nursing Care,05/02/2016,3582360,"3,869.59",FOUR SEASONS HEALTH CARE
Adults Services,Adult Social Care,Older People (Aged 65 or over) including Older Mental Ill,Learning Dis Commissioning,Social Care - Residential Care,05/02/2016,3592375,"10,973.76",ROYAL BOROUGH OF WINDSOR AND MAIDENHEAD
Adults Services,Adult Social Care,Older People (Aged 65 or over) including Older Mental Ill,Learning Dis Commissioning,Social Care - Residential Care,05/02/2016,3592479,"7,758.86",THE JOHN TOWNSEND TRUST
Adults Services,Adult Social Care,Older People (Aged 65 or over) including Older Mental Ill,Learning Dis Commissioning,Social Care - Day Care,05/02/2016,3586086,"2,084.95",Jan Malinowski Centre
Adults Services,Adult Social Care,Older People (Aged 65 or over) including Older Mental Ill,Learning Dis Commissioning,Social Care - Day Care,05/02/2016,3592376,"1,161.79",ROYAL BOROUGH OF WINDSOR AND MAIDENHEAD
Adults Services,Adult Social Care,Older People (Aged 65 or over) including Older Mental Ill,Physical Dis Commissioning,Social Care - Nursing Care,05/02/2016,3591138,"3,919.29",BARCHESTER HEALTHCARE
Adults Services,Adult Social Care,Older People (Aged 65 or over) including Older Mental Ill,Physical Dis Commissioning,Social Care - Residential Care,05/02/2016,3592394,"2,880.00",THE ISLAND RESIDENTIAL HOME LTD
Adults Services,Adult Social Care,Adults Aged Under 65 with Mental Health Needs,"ASCPH Director�s Services		",Training Expenses - Staff External Training (UK Based),05/02/2016,3595205,"1,700.00",ADASS
Adults Services,No Service Specified,No Division Specified,Community Equipment Store,Services - Professional Fees - Environmental Services Fees,05/02/2016,3584180,909.56,RTS
Adults Services,Adult Social Care,Other Adult Services,Longer Term Support West,Stationery,05/02/2016,3580957,561.4,Office Depot (Catalogue)
Adults Services,Public Health,Children 519 Public Health Programmes,Public Health Team 1,Third Party Payments - Voluntary Associations,05/02/2016,3583501,"1,737.50",We Made That
Adults Services,Public Health,Smoking and Tobacco,Public Health Team - 2,Third Party Payments - Other Establishments,05/02/2016,3546026,"32,406.99",Central and NW London NHS Foundation
Adults Services,Public Health,Smoking and Tobacco,Public Health Team - 2,Third Party Payments - Other Establishments,05/02/2016,3564234,"32,406.99",Central and NW London NHS Foundation
Adults Services,Public Health,Smoking and Tobacco,Public Health Team - 2,Third Party Payments - Other Establishments,05/02/2016,3574065,"31,112.56",Guy's & St Thomas' NHS Foundation Trust
Adults Services,Public Health,Smoking and Tobacco,Public Health Team - 2,Third Party Payments - Other Establishments,05/02/2016,3574077,"-16,980.93",Central and NW London NHS Foundation
Adults Services,Public Health,Smoking and Tobacco,Public Health Team - 2,Third Party Payments - Other Establishments,05/02/2016,3574469,"32,406.99",Central and NW London NHS Foundation
Adults Services,Public Health,Smoking and Tobacco,Public Health Team - 2,Third Party Payments - Other Establishments,05/02/2016,3576824,"31,112.56",Guy's & St Thomas' NHS Foundation Trust
Adults Services,Public Health,Smoking and Tobacco,Public Health Team - 2,Third Party Payments - Other Establishments,05/02/2016,3577696,"33,300.14",Barts Health NHS Trust
Adults Services,Public Health,Smoking and Tobacco,Public Health Team - 2,Third Party Payments - Other Establishments,05/02/2016,3580430,616.29,St George's Healthcare NHS Trust
Adults Services,Public Health,Smoking and Tobacco,Public Health Team - 2,Third Party Payments - Other Establishments,05/02/2016,3580442,611,North West London Hospitals NHS Trust
Adults Services,Public Health,Smoking and Tobacco,Public Health Team - 2,Third Party Payments - Other Establishments,05/02/2016,3581568,"1,127.00",King's College Hospital NHSFT
Adults Services,Public Health,Smoking and Tobacco,Public Health Team - 2,Third Party Payments - Other Establishments,05/02/2016,3589845,"-2,973.82",Guy's & St Thomas' NHS Foundation Trust
Adults Services,No Service Specified,No Division Specified,Capital-Minor Works (SC),Building Works - Main Works,05/02/2016,3592853,810.74,Tower Hamlets Schools LTD
Adults Services,No Service Specified,No Division Specified,Capital-Minor Works (SC),Building Works - Main Works,05/02/2016,3592855,"1,323.59",Tower Hamlets Schools LTD
Adults Services,Adult Social Care,Older People (Aged 65 or over) including Older Mental Ill,Learning Dis Commissioning,Social Care - Day Care,08/02/2016,3585959,858,The Bromley by Bow Centre
Adults Services,Adult Social Care,Older People (Aged 65 or over) including Older Mental Ill,Learning Dis Commissioning,Social Care - Day Care,08/02/2016,3585960,"1,086.00",The Bromley by Bow Centre
Adults Services,Adult Social Care,Older People (Aged 65 or over) including Older Mental Ill,Learning Dis Commissioning,Social Care - Day Care,08/02/2016,3585962,657,The Bromley by Bow Centre
Adults Services,Adult Social Care,Older People (Aged 65 or over) including Older Mental Ill,Learning Dis Commissioning,Social Care - Day Care,08/02/2016,3585966,"1,095.00",The Bromley by Bow Centre
Adults Services,Adult Social Care,Older People (Aged 65 or over) including Older Mental Ill,Learning Dis Commissioning,Social Care - Day Care,08/02/2016,3585968,545.64,The Bromley by Bow Centre
Adults Services,Adult Social Care,Older People (Aged 65 or over) including Older Mental Ill,Learning Dis Commissioning,Social Care - Day Care,08/02/2016,3585975,594,The Bromley by Bow Centre
Adults Services,Adult Social Care,Older People (Aged 65 or over) including Older Mental Ill,Physical Dis Commissioning,Social Care - Homecare,08/02/2016,3591246,"3,920.00",SPINAL & DISABLED HOMECARE
Adults Services,Adult Social Care,Older People (Aged 65 or over) including Older Mental Ill,Mental Health Commissioning,Social Care - Supported Accommodation,08/02/2016,3591097,"2,357.14",HAROLD LODGE
Adults Services,Adult Social Care,Older People (Aged 65 or over) including Older Mental Ill,Mental Health Commissioning,Social Care - Supported Accommodation,08/02/2016,3591098,"2,435.72",HAROLD LODGE
Adults Services,Adult Social Care,Older People (Aged 65 or over) including Older Mental Ill,Mental Health Commissioning,Social Care - Supported Accommodation,08/02/2016,3591099,"2,357.14",HAROLD LODGE
Adults Services,Adult Social Care,Older People (Aged 65 or over) including Older Mental Ill,Mental Health Commissioning,Social Care - Supported Accommodation,08/02/2016,3591100,"2,435.72",HAROLD LODGE
Adults Services,Adult Social Care,Older People (Aged 65 or over) including Older Mental Ill,Mental Health Commissioning,Social Care - Supported Accommodation,08/02/2016,3591101,"2,435.72",HAROLD LODGE
Adults Services,Public Health,Smoking and Tobacco,Public Health Team - 2,Third Party Payments - Other Establishments,08/02/2016,3590694,"1,380.00",Barking Havering & Redbridge University NHS Trust
Adults Services,Adult Social Care,Older People (Aged 65 or over) including Older Mental Ill,Older People Commissioning,Social Care - Nursing Care,10/02/2016,3599575,"2,089.18",LIFE STYLE CARE (2011) PLC
Adults Services,Adult Social Care,Older People (Aged 65 or over) including Older Mental Ill,Older People Commissioning,Social Care - Nursing Care,10/02/2016,3599577,"1,201.32",LIFE STYLE CARE (2011) PLC
Adults Services,Adult Social Care,Older People (Aged 65 or over) including Older Mental Ill,Older People Commissioning,Social Care - Nursing Care,10/02/2016,3599578,"2,578.53",LIFE STYLE CARE (2011) PLC
Adults Services,Adult Social Care,Older People (Aged 65 or over) including Older Mental Ill,Older People Commissioning,Social Care - Nursing Care,10/02/2016,3599630,"9,444.05",SANCTUARY CARE LTD
Adults Services,Adult Social Care,Older People (Aged 65 or over) including Older Mental Ill,Older People Commissioning,Social Care - Nursing Care,10/02/2016,3599641,"9,350.40",CAMBRIDGE NURSING HOME
Adults Services,Adult Social Care,Older People (Aged 65 or over) including Older Mental Ill,Older People Commissioning,Social Care - Nursing Care,10/02/2016,3600185,"2,392.36",HAWKINGE HOUSE LTD
Adults Services,Adult Social Care,Older People (Aged 65 or over) including Older Mental Ill,Older People Commissioning,Social Care - Nursing Care,10/02/2016,3600186,"4,818.29",Highgate Nursing Home (BUPA)
Adults Services,Adult Social Care,Older People (Aged 65 or over) including Older Mental Ill,Older People Commissioning,Social Care - Nursing Care,10/02/2016,3600353,"1,779.87",Sunhill Court
Adults Services,Adult Social Care,Older People (Aged 65 or over) including Older Mental Ill,Older People Commissioning,Social Care - Nursing Care,10/02/2016,3600354,"2,542.67",Sunhill Court
Adults Services,Adult Social Care,Older People (Aged 65 or over) including Older Mental Ill,Older People Commissioning,Social Care - Nursing Care,10/02/2016,3600355,"2,627.43",Sunhill Court
Adults Services,Adult Social Care,Older People (Aged 65 or over) including Older Mental Ill,Older People Commissioning,Social Care - Residential Care,10/02/2016,3595848,"2,200.00",Barleycroft Care Home
Adults Services,Adult Social Care,Older People (Aged 65 or over) including Older Mental Ill,Older People Commissioning,Social Care - Residential Care,10/02/2016,3599037,"1,923.24",DURY FALLS COURT NURSING HOME
Adults Services,Adult Social Care,Older People (Aged 65 or over) including Older Mental Ill,Older People Commissioning,Social Care - Residential Care,10/02/2016,3599038,"2,209.86",Oakdene Rest Home
Adults Services,Adult Social Care,Older People (Aged 65 or over) including Older Mental Ill,Older People Commissioning,Social Care - Residential Care,10/02/2016,3599113,"3,376.90",FAIRMOUNT RESIDENTIAL HOME
Adults Services,Adult Social Care,Older People (Aged 65 or over) including Older Mental Ill,Older People Commissioning,Social Care - Residential Care,10/02/2016,3599593,"-2,911.99",EXCELCARE HOLDING PLC
Adults Services,Adult Social Care,Older People (Aged 65 or over) including Older Mental Ill,Older People Commissioning,Social Care - Residential Care,10/02/2016,3599594,825.3,EXCELCARE HOLDING PLC
Adults Services,Adult Social Care,Older People (Aged 65 or over) including Older Mental Ill,Older People Commissioning,Social Care - Residential Care,10/02/2016,3599595,"1,292.20",EXCELCARE HOLDING PLC
Adults Services,Adult Social Care,Older People (Aged 65 or over) including Older Mental Ill,Older People Commissioning,Social Care - Residential Care,10/02/2016,3599598,825.3,EXCELCARE HOLDING PLC
Adults Services,Adult Social Care,Older People (Aged 65 or over) including Older Mental Ill,Older People Commissioning,Social Care - Residential Care,10/02/2016,3599601,"3,040.00",EXCELCARE HOLDING PLC
Adults Services,Adult Social Care,Older People (Aged 65 or over) including Older Mental Ill,Older People Commissioning,Social Care - Residential Care,10/02/2016,3599604,875,EXCELCARE HOLDING PLC
Adults Services,Adult Social Care,Older People (Aged 65 or over) including Older Mental Ill,Older People Commissioning,Social Care - Residential Care,10/02/2016,3599605,"-19,075.00",EXCELCARE HOLDING PLC
Adults Services,Adult Social Care,Older People (Aged 65 or over) including Older Mental Ill,Older People Commissioning,Social Care - Residential Care,10/02/2016,3599606,525,EXCELCARE HOLDING PLC
Adults Services,Adult Social Care,Older People (Aged 65 or over) including Older Mental Ill,Older People Commissioning,Social Care - Residential Care,10/02/2016,3599608,"-18,774.70",EXCELCARE HOLDING PLC
Adults Services,Adult Social Care,Older People (Aged 65 or over) including Older Mental Ill,Older People Commissioning,Social Care - Residential Care,10/02/2016,3599609,579.25,EXCELCARE HOLDING PLC
Adults Services,Adult Social Care,Older People (Aged 65 or over) including Older Mental Ill,Older People Commissioning,Social Care - Residential Care,10/02/2016,3599610,875,EXCELCARE HOLDING PLC
Adults Services,Adult Social Care,Older People (Aged 65 or over) including Older Mental Ill,Older People Commissioning,Social Care - Residential Care,10/02/2016,3599611,875,EXCELCARE HOLDING PLC
Adults Services,Adult Social Care,Older People (Aged 65 or over) including Older Mental Ill,Older People Commissioning,Social Care - Residential Care,10/02/2016,3599612,525,EXCELCARE HOLDING PLC
Adults Services,Adult Social Care,Older People (Aged 65 or over) including Older Mental Ill,Older People Commissioning,Social Care - Residential Care,10/02/2016,3599613,579.25,EXCELCARE HOLDING PLC
Adults Services,Adult Social Care,Older People (Aged 65 or over) including Older Mental Ill,Older People Commissioning,Social Care - Residential Care,10/02/2016,3599614,929.25,EXCELCARE HOLDING PLC
Adults Services,Adult Social Care,Older People (Aged 65 or over) including Older Mental Ill,Older People Commissioning,Social Care - Residential Care,10/02/2016,3599615,579.25,EXCELCARE HOLDING PLC
Adults Services,Adult Social Care,Older People (Aged 65 or over) including Older Mental Ill,Older People Commissioning,Social Care - Residential Care,10/02/2016,3599617,825.3,EXCELCARE HOLDING PLC
Adults Services,Adult Social Care,Older People (Aged 65 or over) including Older Mental Ill,Older People Commissioning,Social Care - Residential Care,10/02/2016,3599618,525,EXCELCARE HOLDING PLC
Adults Services,Adult Social Care,Older People (Aged 65 or over) including Older Mental Ill,Older People Commissioning,Social Care - Residential Care,10/02/2016,3599619,875,EXCELCARE HOLDING PLC
Adults Services,Adult Social Care,Older People (Aged 65 or over) including Older Mental Ill,Older People Commissioning,Social Care - Residential Care,10/02/2016,3599621,525,EXCELCARE HOLDING PLC
Adults Services,Adult Social Care,Older People (Aged 65 or over) including Older Mental Ill,Older People Commissioning,Social Care - Residential Care,10/02/2016,3599622,875,EXCELCARE HOLDING PLC
Adults Services,Adult Social Care,Older People (Aged 65 or over) including Older Mental Ill,Older People Commissioning,Social Care - Residential Care,10/02/2016,3599624,"-1,221.43",EXCELCARE HOLDING PLC
Adults Services,Adult Social Care,Older People (Aged 65 or over) including Older Mental Ill,Older People Commissioning,Social Care - Residential Care,10/02/2016,3599625,"6,560.00",GATEWAY HOUSING ASSOCIATION
Adults Services,Adult Social Care,Older People (Aged 65 or over) including Older Mental Ill,Older People Commissioning,Social Care - Residential Care,10/02/2016,3599626,"19,600.00",EXCELCARE HOLDING PLC
Adults Services,Adult Social Care,Older People (Aged 65 or over) including Older Mental Ill,Older People Commissioning,Social Care - Residential Care,10/02/2016,3599627,"19,600.00",EXCELCARE HOLDING PLC
Adults Services,Adult Social Care,Older People (Aged 65 or over) including Older Mental Ill,Older People Commissioning,Social Care - Residential Care,10/02/2016,3599628,"10,448.57",RUNWOOD HOMES PLC
Adults Services,Adult Social Care,Older People (Aged 65 or over) including Older Mental Ill,Older People Commissioning,Social Care - Residential Care,10/02/2016,3599629,"3,200.00",SANCTUARY CARE LTD
Adults Services,Adult Social Care,Older People (Aged 65 or over) including Older Mental Ill,Older People Commissioning,Social Care - Residential Care,10/02/2016,3599642,"1,040.00",Norwood Ravenswood Services LTD
Adults Services,Adult Social Care,Older People (Aged 65 or over) including Older Mental Ill,Older People Commissioning,Social Care - Residential Care,10/02/2016,3599753,"1,675.95",BRENTWOOD CARE CENTRE
Adults Services,Adult Social Care,Older People (Aged 65 or over) including Older Mental Ill,Older People Commissioning,Social Care - Residential Care,10/02/2016,3600349,"1,990.16",RUNWOOD HOMES PLC
Adults Services,Adult Social Care,Older People (Aged 65 or over) including Older Mental Ill,Older People Commissioning,Social Care - Residential Care,10/02/2016,3600350,"2,019.70",RUNWOOD HOMES PLC
Adults Services,Adult Social Care,Older People (Aged 65 or over) including Older Mental Ill,Older People Commissioning,Social Care - Residential Care,10/02/2016,3600350,-584.13,RUNWOOD HOMES PLC
Adults Services,Adult Social Care,Older People (Aged 65 or over) including Older Mental Ill,Older People Commissioning,Social Care - Homecare,10/02/2016,3599041,"1,358.44",FOCUS CARE LINK LTD
Adults Services,Adult Social Care,Older People (Aged 65 or over) including Older Mental Ill,Older People Commissioning,Social Care - Homecare,10/02/2016,3599092,542.36,ATHLONE CARE LTD
Adults Services,Adult Social Care,Older People (Aged 65 or over) including Older Mental Ill,Older People Commissioning,Social Care - Homecare,10/02/2016,3599099,"2,361.87",FOCUS CARE LINK LTD
Adults Services,Adult Social Care,Older People (Aged 65 or over) including Older Mental Ill,Older People Commissioning,Social Care - Homecare,10/02/2016,3599100,"2,303.91",FOCUS CARE LINK LTD
Adults Services,Adult Social Care,Older People (Aged 65 or over) including Older Mental Ill,Older People Commissioning,Social Care - Homecare,10/02/2016,3599102,"2,303.91",FOCUS CARE LINK LTD
Adults Services,Adult Social Care,Older People (Aged 65 or over) including Older Mental Ill,Older People Commissioning,Social Care - Homecare,10/02/2016,3599105,"1,315.69",FOCUS CARE LINK LTD
Adults Services,Adult Social Care,Older People (Aged 65 or over) including Older Mental Ill,Older People Commissioning,Social Care - Homecare,10/02/2016,3599123,"1,089.22",Carewatch Newham Ltd
Adults Services,Adult Social Care,Older People (Aged 65 or over) including Older Mental Ill,Older People Commissioning,Social Care - Homecare,10/02/2016,3599136,902.86,Carewatch Newham Ltd
Adults Services,Adult Social Care,Older People (Aged 65 or over) including Older Mental Ill,Older People Commissioning,Social Care - Homecare,10/02/2016,3599140,594.78,Carewatch Newham Ltd
Adults Services,Adult Social Care,Older People (Aged 65 or over) including Older Mental Ill,Older People Commissioning,Social Care - Homecare,10/02/2016,3599150,"1,003.10",Carewatch Newham Ltd
Adults Services,Adult Social Care,Older People (Aged 65 or over) including Older Mental Ill,Older People Commissioning,Social Care - Homecare,10/02/2016,3599153,601.86,Carewatch Newham Ltd
Adults Services,Adult Social Care,Older People (Aged 65 or over) including Older Mental Ill,Older People Commissioning,Social Care - Homecare,10/02/2016,3599158,559.08,Carewatch Newham Ltd
Adults Services,Adult Social Care,Older People (Aged 65 or over) including Older Mental Ill,Older People Commissioning,Social Care - Homecare,10/02/2016,3599161,523.08,Carewatch Newham Ltd
Adults Services,Adult Social Care,Older People (Aged 65 or over) including Older Mental Ill,Older People Commissioning,Social Care - Homecare,10/02/2016,3599174,996.02,Carewatch Newham Ltd
Adults Services,Adult Social Care,Older People (Aged 65 or over) including Older Mental Ill,Older People Commissioning,Social Care - Homecare,10/02/2016,3599200,"2,989.88",Mantra Recruitment
Adults Services,Adult Social Care,Older People (Aged 65 or over) including Older Mental Ill,Older People Commissioning,Social Care - Homecare,10/02/2016,3599261,650.25,Mantra Recruitment
Adults Services,Adult Social Care,Older People (Aged 65 or over) including Older Mental Ill,Older People Commissioning,Social Care - Homecare,10/02/2016,3599320,"4,393.65",Mantra Recruitment
Adults Services,Adult Social Care,Older People (Aged 65 or over) including Older Mental Ill,Older People Commissioning,Social Care - Homecare,10/02/2016,3599339,503.63,Mantra Recruitment
Adults Services,Adult Social Care,Older People (Aged 65 or over) including Older Mental Ill,Older People Commissioning,Social Care - Homecare,10/02/2016,3599386,712.73,Mantra Recruitment
Adults Services,Adult Social Care,Older People (Aged 65 or over) including Older Mental Ill,Older People Commissioning,Social Care - Homecare,10/02/2016,3599433,"1,208.31",Excelcare (Home Care Division) LTD
Adults Services,Adult Social Care,Older People (Aged 65 or over) including Older Mental Ill,Older People Commissioning,Social Care - Homecare,10/02/2016,3599453,536.79,Excelcare (Home Care Division) LTD
Adults Services,Adult Social Care,Older People (Aged 65 or over) including Older Mental Ill,Older People Commissioning,Social Care - Homecare,10/02/2016,3599469,"1,172.64",Excelcare (Home Care Division) LTD
Adults Services,Adult Social Care,Older People (Aged 65 or over) including Older Mental Ill,Older People Commissioning,Social Care - Homecare,10/02/2016,3599473,699.24,Excelcare (Home Care Division) LTD
Adults Services,Adult Social Care,Older People (Aged 65 or over) including Older Mental Ill,Older People Commissioning,Social Care - Homecare,10/02/2016,3599474,"1,031.34",Excelcare (Home Care Division) LTD
Adults Services,Adult Social Care,Older People (Aged 65 or over) including Older Mental Ill,Older People Commissioning,Social Care - Homecare,10/02/2016,3599478,"1,207.81",Excelcare (Home Care Division) LTD
Adults Services,Adult Social Care,Older People (Aged 65 or over) including Older Mental Ill,Older People Commissioning,Social Care - Homecare,10/02/2016,3599483,"2,245.90",Excelcare (Home Care Division) LTD
Adults Services,Adult Social Care,Older People (Aged 65 or over) including Older Mental Ill,Older People Commissioning,Social Care - Homecare,10/02/2016,3599496,833.38,Excelcare (Home Care Division) LTD
Adults Services,Adult Social Care,Older People (Aged 65 or over) including Older Mental Ill,Older People Commissioning,Social Care - Homecare,10/02/2016,3599517,579.17,Excelcare (Home Care Division) LTD
Adults Services,Adult Social Care,Older People (Aged 65 or over) including Older Mental Ill,Older People Commissioning,Social Care - Homecare,10/02/2016,3599519,"1,088.05",Excelcare (Home Care Division) LTD
Adults Services,Adult Social Care,Older People (Aged 65 or over) including Older Mental Ill,Older People Commissioning,Social Care - Homecare,10/02/2016,3599530,541.58,Excelcare (Home Care Division) LTD
Adults Services,Adult Social Care,Older People (Aged 65 or over) including Older Mental Ill,Older People Commissioning,Social Care - Homecare,10/02/2016,3599537,591.46,Excelcare (Home Care Division) LTD
Adults Services,Adult Social Care,Older People (Aged 65 or over) including Older Mental Ill,Older People Commissioning,Social Care - Homecare,10/02/2016,3599538,798,Excelcare (Home Care Division) LTD
Adults Services,Adult Social Care,Older People (Aged 65 or over) including Older Mental Ill,Older People Commissioning,Social Care - Homecare,10/02/2016,3599542,"1,126.10",Excelcare (Home Care Division) LTD
Adults Services,Adult Social Care,Older People (Aged 65 or over) including Older Mental Ill,Older People Commissioning,Social Care - Homecare,10/02/2016,3599545,"1,197.28",Excelcare (Home Care Division) LTD
Adults Services,Adult Social Care,Older People (Aged 65 or over) including Older Mental Ill,Older People Commissioning,Social Care - Homecare,10/02/2016,3599546,705.48,Excelcare (Home Care Division) LTD
Adults Services,Adult Social Care,Older People (Aged 65 or over) including Older Mental Ill,Older People Commissioning,Social Care - Homecare,10/02/2016,3599547,"1,040.68",Excelcare (Home Care Division) LTD
Adults Services,Adult Social Care,Older People (Aged 65 or over) including Older Mental Ill,Older People Commissioning,Social Care - Homecare,10/02/2016,3599549,"1,218.62",Excelcare (Home Care Division) LTD
Adults Services,Adult Social Care,Older People (Aged 65 or over) including Older Mental Ill,Older People Commissioning,Social Care - Homecare,10/02/2016,3599552,"2,265.80",Excelcare (Home Care Division) LTD
Adults Services,Adult Social Care,Older People (Aged 65 or over) including Older Mental Ill,Older People Commissioning,Social Care - Homecare,10/02/2016,3599553,562.96,Excelcare (Home Care Division) LTD
Adults Services,Adult Social Care,Older People (Aged 65 or over) including Older Mental Ill,Older People Commissioning,Social Care - Homecare,10/02/2016,3599565,"-1,948.91",FOCUS CARE LINK LTD
Adults Services,Adult Social Care,Older People (Aged 65 or over) including Older Mental Ill,Older People Commissioning,Social Care - Homecare,10/02/2016,3599566,"-1,003.43",FOCUS CARE LINK LTD
Adults Services,Adult Social Care,Older People (Aged 65 or over) including Older Mental Ill,Older People Commissioning,Social Care - Homecare,10/02/2016,3599568,"-1,948.91",FOCUS CARE LINK LTD
Adults Services,Adult Social Care,Older People (Aged 65 or over) including Older Mental Ill,Older People Commissioning,Social Care - Homecare,10/02/2016,3599569,-960.69,FOCUS CARE LINK LTD
Adults Services,Adult Social Care,Older People (Aged 65 or over) including Older Mental Ill,Older People Commissioning,Social Care - Homecare,10/02/2016,3599649,522,SEVACARE UK LTD
Adults Services,Adult Social Care,Older People (Aged 65 or over) including Older Mental Ill,Older People Commissioning,Social Care - Homecare,10/02/2016,3599652,522,SEVACARE UK LTD
Adults Services,Adult Social Care,Older People (Aged 65 or over) including Older Mental Ill,Older People Commissioning,Social Care - Homecare,10/02/2016,3599653,522,SEVACARE UK LTD
Adults Services,Adult Social Care,Older People (Aged 65 or over) including Older Mental Ill,Older People Commissioning,Social Care - Homecare,10/02/2016,3599671,"1,128.00",Oasis Care & Training Agency
Adults Services,Adult Social Care,Older People (Aged 65 or over) including Older Mental Ill,Older People Commissioning,Social Care - Homecare,10/02/2016,3599673,542.85,Oasis Care & Training Agency
Adults Services,Adult Social Care,Older People (Aged 65 or over) including Older Mental Ill,Older People Commissioning,Social Care - Homecare,10/02/2016,3599684,"1,023.80",AGE UK EAST LONDON
Adults Services,Adult Social Care,Older People (Aged 65 or over) including Older Mental Ill,Older People Commissioning,Social Care - Homecare,10/02/2016,3599699,762.7,REDSPOT HOMECARE (CONTRACTS) LTD
Adults Services,Adult Social Care,Older People (Aged 65 or over) including Older Mental Ill,Older People Commissioning,Social Care - Homecare,10/02/2016,3599700,624.63,REDSPOT HOMECARE (CONTRACTS) LTD
Adults Services,Adult Social Care,Older People (Aged 65 or over) including Older Mental Ill,Older People Commissioning,Social Care - Homecare,10/02/2016,3599702,736.4,REDSPOT HOMECARE (CONTRACTS) LTD
Adults Services,Adult Social Care,Older People (Aged 65 or over) including Older Mental Ill,Older People Commissioning,Social Care - Homecare,10/02/2016,3599710,736.4,REDSPOT HOMECARE (CONTRACTS) LTD
Adults Services,Adult Social Care,Older People (Aged 65 or over) including Older Mental Ill,Older People Commissioning,Social Care - Homecare,10/02/2016,3599719,644.35,REDSPOT HOMECARE (CONTRACTS) LTD
Adults Services,Adult Social Care,Older People (Aged 65 or over) including Older Mental Ill,Older People Commissioning,Social Care - Homecare,10/02/2016,3599722,"1,104.60",REDSPOT HOMECARE (CONTRACTS) LTD
Adults Services,Adult Social Care,Older People (Aged 65 or over) including Older Mental Ill,Older People Commissioning,Social Care - Homecare,10/02/2016,3599738,867.9,REDSPOT HOMECARE (CONTRACTS) LTD
Adults Services,Adult Social Care,Older People (Aged 65 or over) including Older Mental Ill,Older People Commissioning,Social Care - Homecare,10/02/2016,3599771,"1,985.60",COMMUNITY CARE CONSORTIUM
Adults Services,Adult Social Care,Older People (Aged 65 or over) including Older Mental Ill,Older People Commissioning,Social Care - Homecare,10/02/2016,3599779,"1,960.80",COMMUNITY CARE CONSORTIUM
Adults Services,Adult Social Care,Older People (Aged 65 or over) including Older Mental Ill,Older People Commissioning,Social Care - Homecare,10/02/2016,3599780,"1,364.20",COMMUNITY CARE CONSORTIUM
Adults Services,Adult Social Care,Older People (Aged 65 or over) including Older Mental Ill,Older People Commissioning,Social Care - Homecare,10/02/2016,3599782,"1,299.60",COMMUNITY CARE CONSORTIUM
Adults Services,Adult Social Care,Older People (Aged 65 or over) including Older Mental Ill,Older People Commissioning,Social Care - Homecare,10/02/2016,3599784,"1,140.00",COMMUNITY CARE CONSORTIUM
Adults Services,Adult Social Care,Older People (Aged 65 or over) including Older Mental Ill,Older People Commissioning,Social Care - Homecare,10/02/2016,3599787,851.2,COMMUNITY CARE CONSORTIUM
Adults Services,Adult Social Care,Older People (Aged 65 or over) including Older Mental Ill,Older People Commissioning,Social Care - Homecare,10/02/2016,3599788,813.2,COMMUNITY CARE CONSORTIUM
Adults Services,Adult Social Care,Older People (Aged 65 or over) including Older Mental Ill,Older People Commissioning,Social Care - Homecare,10/02/2016,3599792,684,COMMUNITY CARE CONSORTIUM
Adults Services,Adult Social Care,Older People (Aged 65 or over) including Older Mental Ill,Older People Commissioning,Social Care - Homecare,10/02/2016,3599793,676.4,COMMUNITY CARE CONSORTIUM
Adults Services,Adult Social Care,Older People (Aged 65 or over) including Older Mental Ill,Older People Commissioning,Social Care - Homecare,10/02/2016,3599794,661.2,COMMUNITY CARE CONSORTIUM
Adults Services,Adult Social Care,Older People (Aged 65 or over) including Older Mental Ill,Older People Commissioning,Social Care - Homecare,10/02/2016,3599802,554.92,COMMUNITY CARE CONSORTIUM
Adults Services,Adult Social Care,Older People (Aged 65 or over) including Older Mental Ill,Older People Commissioning,Social Care - Homecare,10/02/2016,3599803,547.2,COMMUNITY CARE CONSORTIUM
Adults Services,Adult Social Care,Older People (Aged 65 or over) including Older Mental Ill,Older People Commissioning,Social Care - Homecare,10/02/2016,3599855,"1,960.80",COMMUNITY CARE CONSORTIUM
Adults Services,Adult Social Care,Older People (Aged 65 or over) including Older Mental Ill,Older People Commissioning,Social Care - Homecare,10/02/2016,3599856,"1,599.80",COMMUNITY CARE CONSORTIUM
Adults Services,Adult Social Care,Older People (Aged 65 or over) including Older Mental Ill,Older People Commissioning,Social Care - Homecare,10/02/2016,3599859,"1,178.00",COMMUNITY CARE CONSORTIUM
Adults Services,Adult Social Care,Older People (Aged 65 or over) including Older Mental Ill,Older People Commissioning,Social Care - Homecare,10/02/2016,3599860,"1,140.00",COMMUNITY CARE CONSORTIUM
Adults Services,Adult Social Care,Older People (Aged 65 or over) including Older Mental Ill,Older People Commissioning,Social Care - Homecare,10/02/2016,3599862,851.2,COMMUNITY CARE CONSORTIUM
Adults Services,Adult Social Care,Older People (Aged 65 or over) including Older Mental Ill,Older People Commissioning,Social Care - Homecare,10/02/2016,3599863,813.2,COMMUNITY CARE CONSORTIUM
Adults Services,Adult Social Care,Older People (Aged 65 or over) including Older Mental Ill,Older People Commissioning,Social Care - Homecare,10/02/2016,3599867,699.2,COMMUNITY CARE CONSORTIUM
Adults Services,Adult Social Care,Older People (Aged 65 or over) including Older Mental Ill,Older People Commissioning,Social Care - Homecare,10/02/2016,3599868,676.4,COMMUNITY CARE CONSORTIUM
Adults Services,Adult Social Care,Older People (Aged 65 or over) including Older Mental Ill,Older People Commissioning,Social Care - Homecare,10/02/2016,3599869,661.2,COMMUNITY CARE CONSORTIUM
Adults Services,Adult Social Care,Older People (Aged 65 or over) including Older Mental Ill,Older People Commissioning,Social Care - Homecare,10/02/2016,3599877,554.92,COMMUNITY CARE CONSORTIUM
Adults Services,Adult Social Care,Older People (Aged 65 or over) including Older Mental Ill,Older People Commissioning,Social Care - Homecare,10/02/2016,3599878,547.2,COMMUNITY CARE CONSORTIUM
Adults Services,Adult Social Care,Older People (Aged 65 or over) including Older Mental Ill,Older People Commissioning,Social Care - Homecare,10/02/2016,3599934,"2,194.50",COMMUNITY CARE CONSORTIUM
Adults Services,Adult Social Care,Older People (Aged 65 or over) including Older Mental Ill,Older People Commissioning,Social Care - Homecare,10/02/2016,3599935,"1,763.20",COMMUNITY CARE CONSORTIUM
Adults Services,Adult Social Care,Older People (Aged 65 or over) including Older Mental Ill,Older People Commissioning,Social Care - Homecare,10/02/2016,3599938,"1,242.60",COMMUNITY CARE CONSORTIUM
Adults Services,Adult Social Care,Older People (Aged 65 or over) including Older Mental Ill,Older People Commissioning,Social Care - Homecare,10/02/2016,3599940,"1,012.70",COMMUNITY CARE CONSORTIUM
Adults Services,Adult Social Care,Older People (Aged 65 or over) including Older Mental Ill,Older People Commissioning,Social Care - Homecare,10/02/2016,3599941,927.2,COMMUNITY CARE CONSORTIUM
Adults Services,Adult Social Care,Older People (Aged 65 or over) including Older Mental Ill,Older People Commissioning,Social Care - Homecare,10/02/2016,3599945,775.2,COMMUNITY CARE CONSORTIUM
Adults Services,Adult Social Care,Older People (Aged 65 or over) including Older Mental Ill,Older People Commissioning,Social Care - Homecare,10/02/2016,3599946,754.3,COMMUNITY CARE CONSORTIUM
Adults Services,Adult Social Care,Older People (Aged 65 or over) including Older Mental Ill,Older People Commissioning,Social Care - Homecare,10/02/2016,3599948,737.2,COMMUNITY CARE CONSORTIUM
Adults Services,Adult Social Care,Older People (Aged 65 or over) including Older Mental Ill,Older People Commissioning,Social Care - Homecare,10/02/2016,3599955,608,COMMUNITY CARE CONSORTIUM
Adults Services,Adult Social Care,Older People (Aged 65 or over) including Older Mental Ill,Older People Commissioning,Social Care - Homecare,10/02/2016,3599956,618.85,COMMUNITY CARE CONSORTIUM
Adults Services,Adult Social Care,Older People (Aged 65 or over) including Older Mental Ill,Older People Commissioning,Social Care - Homecare,10/02/2016,3599961,528.2,COMMUNITY CARE CONSORTIUM
Adults Services,Adult Social Care,Older People (Aged 65 or over) including Older Mental Ill,Older People Commissioning,Social Care - Homecare,10/02/2016,3600012,"1,960.80",COMMUNITY CARE CONSORTIUM
Adults Services,Adult Social Care,Older People (Aged 65 or over) including Older Mental Ill,Older People Commissioning,Social Care - Homecare,10/02/2016,3600013,"1,550.40",COMMUNITY CARE CONSORTIUM
Adults Services,Adult Social Care,Older People (Aged 65 or over) including Older Mental Ill,Older People Commissioning,Social Care - Homecare,10/02/2016,3600015,638.4,COMMUNITY CARE CONSORTIUM
Adults Services,Adult Social Care,Older People (Aged 65 or over) including Older Mental Ill,Older People Commissioning,Social Care - Homecare,10/02/2016,3600018,"1,064.00",COMMUNITY CARE CONSORTIUM
Adults Services,Adult Social Care,Older People (Aged 65 or over) including Older Mental Ill,Older People Commissioning,Social Care - Homecare,10/02/2016,3600019,851.2,COMMUNITY CARE CONSORTIUM
Adults Services,Adult Social Care,Older People (Aged 65 or over) including Older Mental Ill,Older People Commissioning,Social Care - Homecare,10/02/2016,3600031,803,COMMUNITY CARE CONSORTIUM
Adults Services,Adult Social Care,Older People (Aged 65 or over) including Older Mental Ill,Older People Commissioning,Social Care - Homecare,10/02/2016,3600033,817.6,COMMUNITY CARE CONSORTIUM
Adults Services,Adult Social Care,Older People (Aged 65 or over) including Older Mental Ill,Older People Commissioning,Social Care - Homecare,10/02/2016,3600162,554.32,MiHOMECARE LIMITED
Adults Services,Adult Social Care,Older People (Aged 65 or over) including Older Mental Ill,Older People Commissioning,Social Care - Homecare,10/02/2016,3600167,635.67,MiHOMECARE LIMITED
Adults Services,Adult Social Care,Older People (Aged 65 or over) including Older Mental Ill,Older People Commissioning,Social Care - Homecare,10/02/2016,3600169,576.5,MiHOMECARE LIMITED
Adults Services,Adult Social Care,Older People (Aged 65 or over) including Older Mental Ill,Older People Commissioning,Social Care - Homecare,10/02/2016,3600170,"1,086.54",MiHOMECARE LIMITED
Adults Services,Adult Social Care,Older People (Aged 65 or over) including Older Mental Ill,Older People Commissioning,Social Care - Homecare,10/02/2016,3600171,"1,115.89",MiHOMECARE LIMITED
Adults Services,Adult Social Care,Older People (Aged 65 or over) including Older Mental Ill,Older People Commissioning,Social Care - Homecare,10/02/2016,3600174,"3,576.77",MiHOMECARE LIMITED
Adults Services,Adult Social Care,Older People (Aged 65 or over) including Older Mental Ill,Older People Commissioning,Social Care - Homecare,10/02/2016,3600176,"1,034.60",MiHOMECARE LIMITED
Adults Services,Adult Social Care,Older People (Aged 65 or over) including Older Mental Ill,Older People Commissioning,Social Care - Homecare,10/02/2016,3600177,591.2,MiHOMECARE LIMITED
Adults Services,Adult Social Care,Older People (Aged 65 or over) including Older Mental Ill,Older People Commissioning,Social Care - Homecare,10/02/2016,3600178,502.53,MiHOMECARE LIMITED
Adults Services,Adult Social Care,Older People (Aged 65 or over) including Older Mental Ill,Older People Commissioning,Social Care - Homecare,10/02/2016,3600195,"2,553.86",APASENTH
Adults Services,Adult Social Care,Older People (Aged 65 or over) including Older Mental Ill,Older People Commissioning,Social Care - Homecare,10/02/2016,3600198,"1,591.32",APASENTH
Adults Services,Adult Social Care,Older People (Aged 65 or over) including Older Mental Ill,Older People Commissioning,Social Care - Homecare,10/02/2016,3600202,"1,253.90",APASENTH
Adults Services,Adult Social Care,Older People (Aged 65 or over) including Older Mental Ill,Older People Commissioning,Social Care - Homecare,10/02/2016,3600204,994.58,APASENTH
Adults Services,Adult Social Care,Older People (Aged 65 or over) including Older Mental Ill,Older People Commissioning,Social Care - Homecare,10/02/2016,3600207,818.02,APASENTH
Adults Services,Adult Social Care,Older People (Aged 65 or over) including Older Mental Ill,Older People Commissioning,Social Care - Homecare,10/02/2016,3600213,530.33,APASENTH
Adults Services,Adult Social Care,Older People (Aged 65 or over) including Older Mental Ill,Older People Commissioning,Social Care - Homecare,10/02/2016,3600280,"1,495.20",APASENTH
Adults Services,Adult Social Care,Older People (Aged 65 or over) including Older Mental Ill,Older People Commissioning,Social Care - Homecare,10/02/2016,3600300,634.2,St Hilda's East Community Centre
Adults Services,Adult Social Care,Older People (Aged 65 or over) including Older Mental Ill,Older People Commissioning,Social Care - Homecare,10/02/2016,3600305,551.15,St Hilda's East Community Centre
Adults Services,Adult Social Care,Older People (Aged 65 or over) including Older Mental Ill,Older People Commissioning,Social Care - Homecare,10/02/2016,3600320,906,St Hilda's East Community Centre
Adults Services,Adult Social Care,Older People (Aged 65 or over) including Older Mental Ill,Older People Commissioning,Social Care - Homecare,10/02/2016,3600325,709.7,St Hilda's East Community Centre
Adults Services,Adult Social Care,Older People (Aged 65 or over) including Older Mental Ill,Older People Commissioning,Social Care - Homecare,10/02/2016,3600327,528.5,St Hilda's East Community Centre
Adults Services,Adult Social Care,Older People (Aged 65 or over) including Older Mental Ill,Older People Commissioning,Social Care - Homecare,10/02/2016,3600361,"1,611.12",SANCTUARY HOME CARE LIMITED
Adults Services,Adult Social Care,Older People (Aged 65 or over) including Older Mental Ill,Older People Commissioning,Social Care - Homecare,10/02/2016,3600368,"2,539.26",SANCTUARY HOME CARE LIMITED
Adults Services,Adult Social Care,Older People (Aged 65 or over) including Older Mental Ill,Older People Commissioning,Social Care - Homecare,10/02/2016,3600385,"1,022.98",SANCTUARY HOME CARE LIMITED
Adults Services,Adult Social Care,Older People (Aged 65 or over) including Older Mental Ill,Older People Commissioning,Social Care - Homecare,10/02/2016,3600390,"1,044.73",SANCTUARY HOME CARE LIMITED
Adults Services,Adult Social Care,Older People (Aged 65 or over) including Older Mental Ill,Older People Commissioning,Social Care - Homecare,10/02/2016,3600392,609.44,SANCTUARY HOME CARE LIMITED
Adults Services,Adult Social Care,Older People (Aged 65 or over) including Older Mental Ill,Older People Commissioning,Social Care - Homecare,10/02/2016,3600399,580.42,SANCTUARY HOME CARE LIMITED
Adults Services,Adult Social Care,Older People (Aged 65 or over) including Older Mental Ill,Older People Commissioning,Social Care - Homecare,10/02/2016,3600424,"1,108.98",SANCTUARY HOME CARE LIMITED
Adults Services,Adult Social Care,Older People (Aged 65 or over) including Older Mental Ill,Older People Commissioning,Social Care - Homecare,10/02/2016,3600436,"1,073.76",SANCTUARY HOME CARE LIMITED
Adults Services,Adult Social Care,Older People (Aged 65 or over) including Older Mental Ill,Older People Commissioning,Social Care - Homecare,10/02/2016,3600441,605.8,SANCTUARY HOME CARE LIMITED
Adults Services,Adult Social Care,Older People (Aged 65 or over) including Older Mental Ill,Older People Commissioning,Social Care - Homecare,10/02/2016,3600444,914.14,SANCTUARY HOME CARE LIMITED
Adults Services,Adult Social Care,Older People (Aged 65 or over) including Older Mental Ill,Older People Commissioning,Social Care - Homecare,10/02/2016,3600452,"2,539.26",SANCTUARY HOME CARE LIMITED
Adults Services,Adult Social Care,Older People (Aged 65 or over) including Older Mental Ill,Older People Commissioning,Social Care - Homecare,10/02/2016,3600457,"1,051.98",SANCTUARY HOME CARE LIMITED
Adults Services,Adult Social Care,Older People (Aged 65 or over) including Older Mental Ill,Older People Commissioning,Social Care - Homecare,10/02/2016,3600459,609.44,SANCTUARY HOME CARE LIMITED
Adults Services,Adult Social Care,Older People (Aged 65 or over) including Older Mental Ill,Older People Commissioning,Social Care - Homecare,10/02/2016,3600463,580.42,SANCTUARY HOME CARE LIMITED
Adults Services,Adult Social Care,Older People (Aged 65 or over) including Older Mental Ill,Older People Commissioning,Social Care - Homecare,10/02/2016,3600473,609.44,SANCTUARY HOME CARE LIMITED
Adults Services,Adult Social Care,Older People (Aged 65 or over) including Older Mental Ill,Older People Commissioning,Social Care - Homecare,10/02/2016,3600495,638.46,SANCTUARY HOME CARE LIMITED
Adults Services,Adult Social Care,Older People (Aged 65 or over) including Older Mental Ill,Older People Commissioning,Social Care - Homecare,10/02/2016,3600496,580.4,SANCTUARY HOME CARE LIMITED
Adults Services,Adult Social Care,Older People (Aged 65 or over) including Older Mental Ill,Older People Commissioning,Social Care - Homecare,10/02/2016,3600497,961.88,Soma Healthcare Ltd
Adults Services,Adult Social Care,Older People (Aged 65 or over) including Older Mental Ill,Older People Commissioning,Social Care - Homecare,10/02/2016,3600498,926.25,Soma Healthcare Ltd
Adults Services,Adult Social Care,Older People (Aged 65 or over) including Older Mental Ill,Older People Commissioning,Social Care - Homecare,10/02/2016,3600499,963.6,Soma Healthcare Ltd
Adults Services,Adult Social Care,Older People (Aged 65 or over) including Older Mental Ill,Older People Commissioning,Social Care - Homecare,10/02/2016,3600507,623.7,Soma Healthcare Ltd
Adults Services,Adult Social Care,Older People (Aged 65 or over) including Older Mental Ill,Older People Commissioning,Social Care - Homecare,10/02/2016,3600510,"1,893.38",Soma Healthcare Ltd
Adults Services,Adult Social Care,Older People (Aged 65 or over) including Older Mental Ill,Older People Commissioning,Social Care - Homecare,10/02/2016,3600512,"1,158.30",Soma Healthcare Ltd
Adults Services,Adult Social Care,Older People (Aged 65 or over) including Older Mental Ill,Older People Commissioning,Social Care - Homecare,10/02/2016,3600519,623.7,Soma Healthcare Ltd
Adults Services,Adult Social Care,Older People (Aged 65 or over) including Older Mental Ill,Older People Commissioning,Social Care - Homecare,10/02/2016,3600522,"1,603.80",Soma Healthcare Ltd
Adults Services,Adult Social Care,Older People (Aged 65 or over) including Older Mental Ill,Older People Commissioning,Social Care - Homecare,10/02/2016,3600527,772.2,Soma Healthcare Ltd
Adults Services,Adult Social Care,Older People (Aged 65 or over) including Older Mental Ill,Older People Commissioning,Social Care - Homecare,10/02/2016,3600533,668.25,Soma Healthcare Ltd
Adults Services,Adult Social Care,Older People (Aged 65 or over) including Older Mental Ill,Older People Commissioning,Social Care - Homecare,10/02/2016,3600547,"1,002.38",Soma Healthcare Ltd
Adults Services,Adult Social Care,Older People (Aged 65 or over) including Older Mental Ill,Older People Commissioning,Social Care - Homecare,10/02/2016,3600551,"1,715.18",Soma Healthcare Ltd
Adults Services,Adult Social Care,Older People (Aged 65 or over) including Older Mental Ill,Older People Commissioning,Social Care - Homecare,10/02/2016,3600556,579.15,Soma Healthcare Ltd
Adults Services,Adult Social Care,Older People (Aged 65 or over) including Older Mental Ill,Older People Commissioning,Social Care - Homecare,10/02/2016,3600560,549.45,Soma Healthcare Ltd
Adults Services,Adult Social Care,Older People (Aged 65 or over) including Older Mental Ill,Older People Commissioning,Social Care - Homecare,10/02/2016,3600575,"1,425.60",Soma Healthcare Ltd
Adults Services,Adult Social Care,Older People (Aged 65 or over) including Older Mental Ill,Older People Commissioning,Social Care - Homecare,10/02/2016,3600578,527.18,Soma Healthcare Ltd
Adults Services,Adult Social Care,Older People (Aged 65 or over) including Older Mental Ill,Older People Commissioning,Social Care - Homecare,10/02/2016,3600582,"1,009.80",Soma Healthcare Ltd
Adults Services,Adult Social Care,Older People (Aged 65 or over) including Older Mental Ill,Older People Commissioning,Social Care - Homecare,10/02/2016,3600590,519.75,Soma Healthcare Ltd
Adults Services,Adult Social Care,Older People (Aged 65 or over) including Older Mental Ill,Older People Commissioning,Social Care - Homecare,10/02/2016,3600595,"1,856.25",Soma Healthcare Ltd
Adults Services,Adult Social Care,Older People (Aged 65 or over) including Older Mental Ill,Older People Commissioning,Social Care - Homecare,10/02/2016,3600603,"1,039.50",Soma Healthcare Ltd
Adults Services,Adult Social Care,Older People (Aged 65 or over) including Older Mental Ill,Older People Commissioning,Social Care - Homecare,10/02/2016,3600623,601.43,Soma Healthcare Ltd
Adults Services,Adult Social Care,Older People (Aged 65 or over) including Older Mental Ill,Older People Commissioning,Social Care - Homecare,10/02/2016,3600624,"1,128.60",Soma Healthcare Ltd
Adults Services,Adult Social Care,Older People (Aged 65 or over) including Older Mental Ill,Older People Commissioning,Social Care - Homecare,10/02/2016,3600627,556.88,Soma Healthcare Ltd
Adults Services,Adult Social Care,Older People (Aged 65 or over) including Older Mental Ill,Older People Commissioning,Social Care - Homecare,10/02/2016,3600635,571.73,Soma Healthcare Ltd
Adults Services,Adult Social Care,Older People (Aged 65 or over) including Older Mental Ill,Older People Commissioning,Social Care - Homecare,10/02/2016,3600656,"1,811.70",Soma Healthcare Ltd
Adults Services,Adult Social Care,Older People (Aged 65 or over) including Older Mental Ill,Older People Commissioning,Social Care - Homecare,10/02/2016,3600658,527.18,Soma Healthcare Ltd
Adults Services,Adult Social Care,Older People (Aged 65 or over) including Older Mental Ill,Older People Commissioning,Social Care - Direct Payments,10/02/2016,3599637,"2,335.65",DAVID HOWARD LTD CLIENT ACCOUNT
Adults Services,Adult Social Care,Older People (Aged 65 or over) including Older Mental Ill,Older People Commissioning,Social Care - Home Care (Short Term),10/02/2016,3600490,711,SANCTUARY HOME CARE LIMITED
Adults Services,Adult Social Care,Older People (Aged 65 or over) including Older Mental Ill,Older People Commissioning,Client Contributions for Social Care - Nursing Care,10/02/2016,3599575,-548.92,LIFE STYLE CARE (2011) PLC
Adults Services,Adult Social Care,Older People (Aged 65 or over) including Older Mental Ill,Older People Commissioning,Client Contributions for Social Care - Nursing Care,10/02/2016,3599578,-694.44,LIFE STYLE CARE (2011) PLC
Adults Services,Adult Social Care,Older People (Aged 65 or over) including Older Mental Ill,Older People Commissioning,Client Contributions for Social Care - Nursing Care,10/02/2016,3599641,"-2,596.80",CAMBRIDGE NURSING HOME
Adults Services,Adult Social Care,Older People (Aged 65 or over) including Older Mental Ill,Learning Dis Commissioning,Social Care - Residential Care,10/02/2016,3599104,"6,642.99",INDEPENDENCE HOMES LTD
Adults Services,Adult Social Care,Older People (Aged 65 or over) including Older Mental Ill,Learning Dis Commissioning,Social Care - Residential Care,10/02/2016,3599581,"25,983.38",ASHKING HOUSE LTD
Adults Services,Adult Social Care,Older People (Aged 65 or over) including Older Mental Ill,Learning Dis Commissioning,Social Care - Residential Care,10/02/2016,3599632,"29,800.00",SAHARA HOMES LIMITED
Adults Services,Adult Social Care,Older People (Aged 65 or over) including Older Mental Ill,Learning Dis Commissioning,Social Care - Residential Care,10/02/2016,3599635,"1,644.52",CRAEGMOOR HEALTHCARE
Adults Services,Adult Social Care,Older People (Aged 65 or over) including Older Mental Ill,Learning Dis Commissioning,Social Care - Residential Care,10/02/2016,3600190,"5,115.00",APASENTH
Adults Services,Adult Social Care,Older People (Aged 65 or over) including Older Mental Ill,Learning Dis Commissioning,Social Care - Residential Care,10/02/2016,3600191,"5,115.00",APASENTH
Adults Services,Adult Social Care,Older People (Aged 65 or over) including Older Mental Ill,Learning Dis Commissioning,Social Care - Residential Care,10/02/2016,3600192,"3,746.04",APASENTH
Adults Services,Adult Social Care,Older People (Aged 65 or over) including Older Mental Ill,Learning Dis Commissioning,Social Care - Residential Care,10/02/2016,3600193,"4,650.00",APASENTH
Adults Services,Adult Social Care,Older People (Aged 65 or over) including Older Mental Ill,Learning Dis Commissioning,Social Care - Residential Care,10/02/2016,3600194,"4,650.00",APASENTH
Adults Services,Adult Social Care,Older People (Aged 65 or over) including Older Mental Ill,Learning Dis Commissioning,Social Care - Residential Care,10/02/2016,3600282,"6,600.00",FAIRKYTES
Adults Services,Adult Social Care,Older People (Aged 65 or over) including Older Mental Ill,Learning Dis Commissioning,Social Care - Respite Care,10/02/2016,3600189,"2,475.00",APASENTH
Adults Services,Adult Social Care,Older People (Aged 65 or over) including Older Mental Ill,Learning Dis Commissioning,Social Care - Day Care,10/02/2016,3598980,558,VIBRANCE
Adults Services,Adult Social Care,Older People (Aged 65 or over) including Older Mental Ill,Learning Dis Commissioning,Social Care - Day Care,10/02/2016,3598981,992,VIBRANCE
Adults Services,Adult Social Care,Older People (Aged 65 or over) including Older Mental Ill,Learning Dis Commissioning,Social Care - Day Care,10/02/2016,3598982,"1,240.00",VIBRANCE
Adults Services,Adult Social Care,Older People (Aged 65 or over) including Older Mental Ill,Learning Dis Commissioning,Social Care - Day Care,10/02/2016,3598983,558,VIBRANCE
Adults Services,Adult Social Care,Older People (Aged 65 or over) including Older Mental Ill,Learning Dis Commissioning,Social Care - Day Care,10/02/2016,3598984,"2,820.00",VIBRANCE
Adults Services,Adult Social Care,Older People (Aged 65 or over) including Older Mental Ill,Learning Dis Commissioning,Social Care - Day Care,10/02/2016,3598985,"3,900.00",VIBRANCE
Adults Services,Adult Social Care,Older People (Aged 65 or over) including Older Mental Ill,Learning Dis Commissioning,Social Care - Day Care,10/02/2016,3598986,"1,240.00",VIBRANCE
Adults Services,Adult Social Care,Older People (Aged 65 or over) including Older Mental Ill,Learning Dis Commissioning,Social Care - Day Care,10/02/2016,3598987,"2,820.00",VIBRANCE
Adults Services,Adult Social Care,Older People (Aged 65 or over) including Older Mental Ill,Learning Dis Commissioning,Social Care - Day Care,10/02/2016,3598988,"1,692.00",VIBRANCE
Adults Services,Adult Social Care,Older People (Aged 65 or over) including Older Mental Ill,Learning Dis Commissioning,Social Care - Day Care,10/02/2016,3598989,"1,974.00",VIBRANCE
Adults Services,Adult Social Care,Older People (Aged 65 or over) including Older Mental Ill,Learning Dis Commissioning,Social Care - Day Care,10/02/2016,3598990,"2,115.00",VIBRANCE
Adults Services,Adult Social Care,Older People (Aged 65 or over) including Older Mental Ill,Learning Dis Commissioning,Social Care - Day Care,10/02/2016,3598991,"2,679.00",VIBRANCE
Adults Services,Adult Social Care,Older People (Aged 65 or over) including Older Mental Ill,Learning Dis Commissioning,Social Care - Day Care,10/02/2016,3598992,"2,820.00",VIBRANCE
Adults Services,Adult Social Care,Older People (Aged 65 or over) including Older Mental Ill,Learning Dis Commissioning,Social Care - Day Care,10/02/2016,3598993,"2,820.00",VIBRANCE
Adults Services,Adult Social Care,Older People (Aged 65 or over) including Older Mental Ill,Learning Dis Commissioning,Social Care - Day Care,10/02/2016,3598994,"2,820.00",VIBRANCE
Adults Services,Adult Social Care,Older People (Aged 65 or over) including Older Mental Ill,Learning Dis Commissioning,Social Care - Day Care,10/02/2016,3598995,"2,820.00",VIBRANCE
Adults Services,Adult Social Care,Older People (Aged 65 or over) including Older Mental Ill,Learning Dis Commissioning,Social Care - Day Care,10/02/2016,3598996,"1,624.00",VIBRANCE
Adults Services,Adult Social Care,Older People (Aged 65 or over) including Older Mental Ill,Learning Dis Commissioning,Social Care - Day Care,10/02/2016,3598997,"1,240.00",VIBRANCE
Adults Services,Adult Social Care,Older People (Aged 65 or over) including Older Mental Ill,Learning Dis Commissioning,Social Care - Day Care,10/02/2016,3598998,868,VIBRANCE
Adults Services,Adult Social Care,Older People (Aged 65 or over) including Older Mental Ill,Learning Dis Commissioning,Social Care - Day Care,10/02/2016,3598999,"1,054.00",VIBRANCE
Adults Services,Adult Social Care,Older People (Aged 65 or over) including Older Mental Ill,Learning Dis Commissioning,Social Care - Day Care,10/02/2016,3599000,"1,054.00",VIBRANCE
Adults Services,Adult Social Care,Older People (Aged 65 or over) including Older Mental Ill,Learning Dis Commissioning,Social Care - Day Care,10/02/2016,3599001,"1,240.00",VIBRANCE
Adults Services,Adult Social Care,Older People (Aged 65 or over) including Older Mental Ill,Learning Dis Commissioning,Social Care - Day Care,10/02/2016,3599002,"1,128.00",VIBRANCE
Adults Services,Adult Social Care,Older People (Aged 65 or over) including Older Mental Ill,Learning Dis Commissioning,Social Care - Day Care,10/02/2016,3599003,"1,240.00",VIBRANCE
Adults Services,Adult Social Care,Older People (Aged 65 or over) including Older Mental Ill,Learning Dis Commissioning,Social Care - Day Care,10/02/2016,3599004,682,VIBRANCE
Adults Services,Adult Social Care,Older People (Aged 65 or over) including Older Mental Ill,Learning Dis Commissioning,Social Care - Day Care,10/02/2016,3599005,"1,872.00",VIBRANCE
Adults Services,Adult Social Care,Older People (Aged 65 or over) including Older Mental Ill,Learning Dis Commissioning,Social Care - Day Care,10/02/2016,3599006,"1,240.00",VIBRANCE
Adults Services,Adult Social Care,Older People (Aged 65 or over) including Older Mental Ill,Learning Dis Commissioning,Social Care - Day Care,10/02/2016,3599007,"1,692.00",VIBRANCE
Adults Services,Adult Social Care,Older People (Aged 65 or over) including Older Mental Ill,Learning Dis Commissioning,Social Care - Day Care,10/02/2016,3599008,"1,128.00",VIBRANCE
Adults Services,Adult Social Care,Older People (Aged 65 or over) including Older Mental Ill,Learning Dis Commissioning,Social Care - Day Care,10/02/2016,3599010,"1,624.00",VIBRANCE
Adults Services,Adult Social Care,Older People (Aged 65 or over) including Older Mental Ill,Learning Dis Commissioning,Social Care - Day Care,10/02/2016,3599011,"1,556.00",VIBRANCE
Adults Services,Adult Social Care,Older People (Aged 65 or over) including Older Mental Ill,Learning Dis Commissioning,Social Care - Day Care,10/02/2016,3599012,"1,178.00",VIBRANCE
Adults Services,Adult Social Care,Older People (Aged 65 or over) including Older Mental Ill,Learning Dis Commissioning,Social Care - Day Care,10/02/2016,3599013,868,VIBRANCE
Adults Services,Adult Social Care,Older People (Aged 65 or over) including Older Mental Ill,Learning Dis Commissioning,Social Care - Day Care,10/02/2016,3599014,"1,240.00",VIBRANCE
Adults Services,Adult Social Care,Older People (Aged 65 or over) including Older Mental Ill,Learning Dis Commissioning,Social Care - Day Care,10/02/2016,3599015,"1,054.00",VIBRANCE
Adults Services,Adult Social Care,Older People (Aged 65 or over) including Older Mental Ill,Learning Dis Commissioning,Social Care - Day Care,10/02/2016,3599016,"1,240.00",VIBRANCE
Adults Services,Adult Social Care,Older People (Aged 65 or over) including Older Mental Ill,Learning Dis Commissioning,Social Care - Day Care,10/02/2016,3599017,"1,054.00",VIBRANCE
Adults Services,Adult Social Care,Older People (Aged 65 or over) including Older Mental Ill,Learning Dis Commissioning,Social Care - Day Care,10/02/2016,3599018,"1,692.00",VIBRANCE
Adults Services,Adult Social Care,Older People (Aged 65 or over) including Older Mental Ill,Learning Dis Commissioning,Social Care - Day Care,10/02/2016,3599019,"1,974.00",VIBRANCE
Adults Services,Adult Social Care,Older People (Aged 65 or over) including Older Mental Ill,Learning Dis Commissioning,Social Care - Day Care,10/02/2016,3599020,"2,679.00",VIBRANCE
Adults Services,Adult Social Care,Older People (Aged 65 or over) including Older Mental Ill,Learning Dis Commissioning,Social Care - Day Care,10/02/2016,3599021,"2,820.00",VIBRANCE
Adults Services,Adult Social Care,Older People (Aged 65 or over) including Older Mental Ill,Learning Dis Commissioning,Social Care - Day Care,10/02/2016,3599022,"2,538.00",VIBRANCE
Adults Services,Adult Social Care,Older People (Aged 65 or over) including Older Mental Ill,Learning Dis Commissioning,Social Care - Day Care,10/02/2016,3599023,"2,820.00",VIBRANCE
Adults Services,Adult Social Care,Older People (Aged 65 or over) including Older Mental Ill,Learning Dis Commissioning,Social Care - Day Care,10/02/2016,3599024,"2,820.00",VIBRANCE
Adults Services,Adult Social Care,Older People (Aged 65 or over) including Older Mental Ill,Learning Dis Commissioning,Social Care - Day Care,10/02/2016,3599025,"2,679.00",VIBRANCE
Adults Services,Adult Social Care,Older People (Aged 65 or over) including Older Mental Ill,Learning Dis Commissioning,Social Care - Day Care,10/02/2016,3599027,"1,240.00",VIBRANCE
Adults Services,Adult Social Care,Older People (Aged 65 or over) including Older Mental Ill,Learning Dis Commissioning,Social Care - Day Care,10/02/2016,3599028,"2,820.00",VIBRANCE
Adults Services,Adult Social Care,Older People (Aged 65 or over) including Older Mental Ill,Learning Dis Commissioning,Social Care - Day Care,10/02/2016,3599029,992,VIBRANCE
Adults Services,Adult Social Care,Older People (Aged 65 or over) including Older Mental Ill,Learning Dis Commissioning,Social Care - Day Care,10/02/2016,3599031,"2,820.00",VIBRANCE
Adults Services,Adult Social Care,Older People (Aged 65 or over) including Older Mental Ill,Learning Dis Commissioning,Social Care - Day Care,10/02/2016,3599032,"3,900.00",VIBRANCE
Adults Services,Adult Social Care,Older People (Aged 65 or over) including Older Mental Ill,Learning Dis Commissioning,Social Care - Day Care,10/02/2016,3599033,"1,240.00",VIBRANCE
Adults Services,Adult Social Care,Older People (Aged 65 or over) including Older Mental Ill,Learning Dis Commissioning,Social Care - Day Care,10/02/2016,3599106,"2,720.00",ST MARKS DAY SERVICE
Adults Services,Adult Social Care,Older People (Aged 65 or over) including Older Mental Ill,Learning Dis Commissioning,Social Care - Day Care,10/02/2016,3600047,661.6,APASENTH
Adults Services,Adult Social Care,Older People (Aged 65 or over) including Older Mental Ill,Learning Dis Commissioning,Social Care - Day Care,10/02/2016,3600048,628.52,APASENTH
Adults Services,Adult Social Care,Older People (Aged 65 or over) including Older Mental Ill,Learning Dis Commissioning,Social Care - Day Care,10/02/2016,3600050,"1,825.30",APASENTH
Adults Services,Adult Social Care,Older People (Aged 65 or over) including Older Mental Ill,Learning Dis Commissioning,Social Care - Day Care,10/02/2016,3600051,667.84,APASENTH
Adults Services,Adult Social Care,Older People (Aged 65 or over) including Older Mental Ill,Learning Dis Commissioning,Social Care - Day Care,10/02/2016,3600052,661.6,APASENTH
Adults Services,Adult Social Care,Older People (Aged 65 or over) including Older Mental Ill,Learning Dis Commissioning,Social Care - Day Care,10/02/2016,3600053,808.02,APASENTH
Adults Services,Adult Social Care,Older People (Aged 65 or over) including Older Mental Ill,Learning Dis Commissioning,Social Care - Day Care,10/02/2016,3600054,504.61,APASENTH
Adults Services,Adult Social Care,Older People (Aged 65 or over) including Older Mental Ill,Learning Dis Commissioning,Social Care - Day Care,10/02/2016,3600055,529.28,APASENTH
Adults Services,Adult Social Care,Older People (Aged 65 or over) including Older Mental Ill,Learning Dis Commissioning,Social Care - Day Care,10/02/2016,3600056,897.8,APASENTH
Adults Services,Adult Social Care,Older People (Aged 65 or over) including Older Mental Ill,Learning Dis Commissioning,Social Care - Day Care,10/02/2016,3600057,595.44,APASENTH
Adults Services,Adult Social Care,Older People (Aged 65 or over) including Older Mental Ill,Learning Dis Commissioning,Social Care - Day Care,10/02/2016,3600058,897.8,APASENTH
Adults Services,Adult Social Care,Older People (Aged 65 or over) including Older Mental Ill,Learning Dis Commissioning,Social Care - Day Care,10/02/2016,3600060,897.8,APASENTH
Adults Services,Adult Social Care,Older People (Aged 65 or over) including Older Mental Ill,Learning Dis Commissioning,Social Care - Day Care,10/02/2016,3600062,661.6,APASENTH
Adults Services,Adult Social Care,Older People (Aged 65 or over) including Older Mental Ill,Learning Dis Commissioning,Social Care - Day Care,10/02/2016,3600067,852.91,APASENTH
Adults Services,Adult Social Care,Older People (Aged 65 or over) including Older Mental Ill,Learning Dis Commissioning,Social Care - Day Care,10/02/2016,3600068,661.6,APASENTH
Adults Services,Adult Social Care,Older People (Aged 65 or over) including Older Mental Ill,Learning Dis Commissioning,Social Care - Day Care,10/02/2016,3600069,529.28,APASENTH
Adults Services,Adult Social Care,Older People (Aged 65 or over) including Older Mental Ill,Learning Dis Commissioning,Social Care - Day Care,10/02/2016,3600071,"1,669.60",APASENTH
Adults Services,Adult Social Care,Older People (Aged 65 or over) including Older Mental Ill,Learning Dis Commissioning,Social Care - Day Care,10/02/2016,3600072,"1,215.80",APASENTH
Adults Services,Adult Social Care,Older People (Aged 65 or over) including Older Mental Ill,Learning Dis Commissioning,Social Care - Day Care,10/02/2016,3600073,"1,070.85",APASENTH
Adults Services,Adult Social Care,Older People (Aged 65 or over) including Older Mental Ill,Learning Dis Commissioning,Social Care - Day Care,10/02/2016,3600075,661.6,APASENTH
Adults Services,Adult Social Care,Older People (Aged 65 or over) including Older Mental Ill,Learning Dis Commissioning,Social Care - Day Care,10/02/2016,3600077,628.52,APASENTH
Adults Services,Adult Social Care,Older People (Aged 65 or over) including Older Mental Ill,Learning Dis Commissioning,Social Care - Day Care,10/02/2016,3600079,661.6,APASENTH
Adults Services,Adult Social Care,Older People (Aged 65 or over) including Older Mental Ill,Learning Dis Commissioning,Social Care - Day Care,10/02/2016,3600081,897.8,APASENTH
Adults Services,Adult Social Care,Older People (Aged 65 or over) including Older Mental Ill,Learning Dis Commissioning,Social Care - Day Care,10/02/2016,3600083,528.11,APASENTH
Adults Services,Adult Social Care,Older People (Aged 65 or over) including Older Mental Ill,Learning Dis Commissioning,Social Care - Day Care,10/02/2016,3600084,595.44,APASENTH
Adults Services,Adult Social Care,Older People (Aged 65 or over) including Older Mental Ill,Learning Dis Commissioning,Social Care - Day Care,10/02/2016,3600085,595.44,APASENTH
Adults Services,Adult Social Care,Older People (Aged 65 or over) including Older Mental Ill,Learning Dis Commissioning,Social Care - Day Care,10/02/2016,3600086,628.52,APASENTH
Adults Services,Adult Social Care,Older People (Aged 65 or over) including Older Mental Ill,Learning Dis Commissioning,Social Care - Day Care,10/02/2016,3600087,897.8,APASENTH
Adults Services,Adult Social Care,Older People (Aged 65 or over) including Older Mental Ill,Learning Dis Commissioning,Social Care - Day Care,10/02/2016,3600088,"1,335.68",APASENTH
Adults Services,Adult Social Care,Older People (Aged 65 or over) including Older Mental Ill,Learning Dis Commissioning,Social Care - Day Care,10/02/2016,3600089,538.68,APASENTH
Adults Services,Adult Social Care,Older People (Aged 65 or over) including Older Mental Ill,Learning Dis Commissioning,Social Care - Day Care,10/02/2016,3600090,"1,431.20",APASENTH
Adults Services,Adult Social Care,Older People (Aged 65 or over) including Older Mental Ill,Learning Dis Commissioning,Social Care - Day Care,10/02/2016,3600092,667.84,APASENTH
Adults Services,Adult Social Care,Older People (Aged 65 or over) including Older Mental Ill,Learning Dis Commissioning,Social Care - Day Care,10/02/2016,3600103,"1,984.71",Tower Project
Adults Services,Adult Social Care,Older People (Aged 65 or over) including Older Mental Ill,Learning Dis Commissioning,Social Care - Day Care,10/02/2016,3600104,"1,984.71",Tower Project
Adults Services,Adult Social Care,Older People (Aged 65 or over) including Older Mental Ill,Learning Dis Commissioning,Social Care - Day Care,10/02/2016,3600105,"1,984.71",Tower Project
Adults Services,Adult Social Care,Older People (Aged 65 or over) including Older Mental Ill,Learning Dis Commissioning,Social Care - Day Care,10/02/2016,3600106,"1,984.71",Tower Project
Adults Services,Adult Social Care,Older People (Aged 65 or over) including Older Mental Ill,Learning Dis Commissioning,Social Care - Day Care,10/02/2016,3600107,"1,400.28",Tower Project
Adults Services,Adult Social Care,Older People (Aged 65 or over) including Older Mental Ill,Learning Dis Commissioning,Social Care - Day Care,10/02/2016,3600108,"1,984.71",Tower Project
Adults Services,Adult Social Care,Older People (Aged 65 or over) including Older Mental Ill,Learning Dis Commissioning,Social Care - Day Care,10/02/2016,3600109,"1,400.28",Tower Project
Adults Services,Adult Social Care,Older People (Aged 65 or over) including Older Mental Ill,Learning Dis Commissioning,Social Care - Day Care,10/02/2016,3600110,"1,984.71",Tower Project
Adults Services,Adult Social Care,Older People (Aged 65 or over) including Older Mental Ill,Learning Dis Commissioning,Social Care - Day Care,10/02/2016,3600111,"1,400.28",Tower Project
Adults Services,Adult Social Care,Older People (Aged 65 or over) including Older Mental Ill,Learning Dis Commissioning,Social Care - Day Care,10/02/2016,3600112,600.12,Tower Project
Adults Services,Adult Social Care,Older People (Aged 65 or over) including Older Mental Ill,Learning Dis Commissioning,Social Care - Day Care,10/02/2016,3600113,866.84,Tower Project
Adults Services,Adult Social Care,Older People (Aged 65 or over) including Older Mental Ill,Learning Dis Commissioning,Social Care - Day Care,10/02/2016,3600115,"1,984.71",Tower Project
Adults Services,Adult Social Care,Older People (Aged 65 or over) including Older Mental Ill,Learning Dis Commissioning,Social Care - Day Care,10/02/2016,3600116,"1,984.71",Tower Project
Adults Services,Adult Social Care,Older People (Aged 65 or over) including Older Mental Ill,Learning Dis Commissioning,Social Care - Day Care,10/02/2016,3600117,"1,066.88",Tower Project
Adults Services,Adult Social Care,Older People (Aged 65 or over) including Older Mental Ill,Learning Dis Commissioning,Social Care - Day Care,10/02/2016,3600118,"1,984.71",Tower Project
Adults Services,Adult Social Care,Older People (Aged 65 or over) including Older Mental Ill,Learning Dis Commissioning,Social Care - Day Care,10/02/2016,3600119,"1,984.71",Tower Project
Adults Services,Adult Social Care,Older People (Aged 65 or over) including Older Mental Ill,Learning Dis Commissioning,Social Care - Day Care,10/02/2016,3600120,"1,400.28",Tower Project
Adults Services,Adult Social Care,Older People (Aged 65 or over) including Older Mental Ill,Learning Dis Commissioning,Social Care - Day Care,10/02/2016,3600121,"1,400.28",Tower Project
Adults Services,Adult Social Care,Older People (Aged 65 or over) including Older Mental Ill,Learning Dis Commissioning,Social Care - Day Care,10/02/2016,3600123,"1,984.71",Tower Project
Adults Services,Adult Social Care,Older People (Aged 65 or over) including Older Mental Ill,Learning Dis Commissioning,Social Care - Day Care,10/02/2016,3600124,"1,984.71",Tower Project
Adults Services,Adult Social Care,Older People (Aged 65 or over) including Older Mental Ill,Learning Dis Commissioning,Social Care - Day Care,10/02/2016,3600125,"1,984.71",Tower Project
Adults Services,Adult Social Care,Older People (Aged 65 or over) including Older Mental Ill,Learning Dis Commissioning,Social Care - Day Care,10/02/2016,3600126,"1,984.71",Tower Project
Adults Services,Adult Social Care,Older People (Aged 65 or over) including Older Mental Ill,Learning Dis Commissioning,Social Care - Day Care,10/02/2016,3600127,"1,984.71",Tower Project
Adults Services,Adult Social Care,Older People (Aged 65 or over) including Older Mental Ill,Learning Dis Commissioning,Social Care - Day Care,10/02/2016,3600129,"1,984.71",Tower Project
Adults Services,Adult Social Care,Older People (Aged 65 or over) including Older Mental Ill,Learning Dis Commissioning,Social Care - Day Care,10/02/2016,3600130,"2,289.21",Tower Project
Adults Services,Adult Social Care,Older People (Aged 65 or over) including Older Mental Ill,Learning Dis Commissioning,Social Care - Day Care,10/02/2016,3600131,"1,400.28",Tower Project
Adults Services,Adult Social Care,Older People (Aged 65 or over) including Older Mental Ill,Learning Dis Commissioning,Social Care - Day Care,10/02/2016,3600132,"1,133.56",Tower Project
Adults Services,Adult Social Care,Older People (Aged 65 or over) including Older Mental Ill,Learning Dis Commissioning,Social Care - Day Care,10/02/2016,3600133,"1,133.56",Tower Project
Adults Services,Adult Social Care,Older People (Aged 65 or over) including Older Mental Ill,Learning Dis Commissioning,Social Care - Day Care,10/02/2016,3600134,"1,984.71",Tower Project
Adults Services,Adult Social Care,Older People (Aged 65 or over) including Older Mental Ill,Learning Dis Commissioning,Social Care - Day Care,10/02/2016,3600135,"1,984.71",Tower Project
Adults Services,Adult Social Care,Older People (Aged 65 or over) including Older Mental Ill,Learning Dis Commissioning,Social Care - Day Care,10/02/2016,3600138,"1,984.71",Tower Project
Adults Services,Adult Social Care,Older People (Aged 65 or over) including Older Mental Ill,Learning Dis Commissioning,Social Care - Day Care,10/02/2016,3600139,"1,400.28",Tower Project
Adults Services,Adult Social Care,Older People (Aged 65 or over) including Older Mental Ill,Learning Dis Commissioning,Social Care - Day Care,10/02/2016,3600140,990.78,Tower Project
Adults Services,Adult Social Care,Older People (Aged 65 or over) including Older Mental Ill,Learning Dis Commissioning,Social Care - Day Care,10/02/2016,3600141,"1,984.71",Tower Project
Adults Services,Adult Social Care,Older People (Aged 65 or over) including Older Mental Ill,Learning Dis Commissioning,Social Care - Day Care,10/02/2016,3600142,990.78,Tower Project
Adults Services,Adult Social Care,Older People (Aged 65 or over) including Older Mental Ill,Learning Dis Commissioning,Social Care - Day Care,10/02/2016,3600143,"1,984.71",Tower Project
Adults Services,Adult Social Care,Older People (Aged 65 or over) including Older Mental Ill,Learning Dis Commissioning,Social Care - Day Care,10/02/2016,3600144,"1,984.71",Tower Project
Adults Services,Adult Social Care,Older People (Aged 65 or over) including Older Mental Ill,Learning Dis Commissioning,Social Care - Day Care,10/02/2016,3600284,598,POETRY IN WOOD
Adults Services,Adult Social Care,Older People (Aged 65 or over) including Older Mental Ill,Learning Dis Commissioning,Social Care - Homecare,10/02/2016,3599502,999.03,Excelcare (Home Care Division) LTD
Adults Services,Adult Social Care,Older People (Aged 65 or over) including Older Mental Ill,Learning Dis Commissioning,Social Care - Homecare,10/02/2016,3599561,"1,743.33",MEARS CARE LTD
Adults Services,Adult Social Care,Older People (Aged 65 or over) including Older Mental Ill,Learning Dis Commissioning,Social Care - Homecare,10/02/2016,3599562,"2,599.80",MEARS CARE LTD
Adults Services,Adult Social Care,Older People (Aged 65 or over) including Older Mental Ill,Learning Dis Commissioning,Social Care - Homecare,10/02/2016,3599650,"5,070.36",Tower Project
Adults Services,Adult Social Care,Older People (Aged 65 or over) including Older Mental Ill,Learning Dis Commissioning,Social Care - Homecare,10/02/2016,3599651,"5,192.37",Tower Project
Adults Services,Adult Social Care,Older People (Aged 65 or over) including Older Mental Ill,Learning Dis Commissioning,Social Care - Homecare,10/02/2016,3599659,"1,756.44",CARE SOLUTION BAREAU
Adults Services,Adult Social Care,Older People (Aged 65 or over) including Older Mental Ill,Learning Dis Commissioning,Social Care - Homecare,10/02/2016,3599781,"1,322.40",COMMUNITY CARE CONSORTIUM
Adults Services,Adult Social Care,Older People (Aged 65 or over) including Older Mental Ill,Learning Dis Commissioning,Social Care - Homecare,10/02/2016,3599785,"1,079.20",COMMUNITY CARE CONSORTIUM
Adults Services,Adult Social Care,Older People (Aged 65 or over) including Older Mental Ill,Learning Dis Commissioning,Social Care - Homecare,10/02/2016,3599786,"1,064.00",COMMUNITY CARE CONSORTIUM
Adults Services,Adult Social Care,Older People (Aged 65 or over) including Older Mental Ill,Learning Dis Commissioning,Social Care - Homecare,10/02/2016,3599790,760,COMMUNITY CARE CONSORTIUM
Adults Services,Adult Social Care,Older People (Aged 65 or over) including Older Mental Ill,Learning Dis Commissioning,Social Care - Homecare,10/02/2016,3599791,729.6,COMMUNITY CARE CONSORTIUM
Adults Services,Adult Social Care,Older People (Aged 65 or over) including Older Mental Ill,Learning Dis Commissioning,Social Care - Homecare,10/02/2016,3599795,638.4,COMMUNITY CARE CONSORTIUM
Adults Services,Adult Social Care,Older People (Aged 65 or over) including Older Mental Ill,Learning Dis Commissioning,Social Care - Homecare,10/02/2016,3599796,623.2,COMMUNITY CARE CONSORTIUM
Adults Services,Adult Social Care,Older People (Aged 65 or over) including Older Mental Ill,Learning Dis Commissioning,Social Care - Homecare,10/02/2016,3599797,623.2,COMMUNITY CARE CONSORTIUM
Adults Services,Adult Social Care,Older People (Aged 65 or over) including Older Mental Ill,Learning Dis Commissioning,Social Care - Homecare,10/02/2016,3599799,608,COMMUNITY CARE CONSORTIUM
Adults Services,Adult Social Care,Older People (Aged 65 or over) including Older Mental Ill,Learning Dis Commissioning,Social Care - Homecare,10/02/2016,3599800,608,COMMUNITY CARE CONSORTIUM
Adults Services,Adult Social Care,Older People (Aged 65 or over) including Older Mental Ill,Learning Dis Commissioning,Social Care - Homecare,10/02/2016,3599804,516.8,COMMUNITY CARE CONSORTIUM
Adults Services,Adult Social Care,Older People (Aged 65 or over) including Older Mental Ill,Learning Dis Commissioning,Social Care - Homecare,10/02/2016,3599857,"1,322.40",COMMUNITY CARE CONSORTIUM
Adults Services,Adult Social Care,Older People (Aged 65 or over) including Older Mental Ill,Learning Dis Commissioning,Social Care - Homecare,10/02/2016,3599861,"1,079.20",COMMUNITY CARE CONSORTIUM
Adults Services,Adult Social Care,Older People (Aged 65 or over) including Older Mental Ill,Learning Dis Commissioning,Social Care - Homecare,10/02/2016,3599864,760,COMMUNITY CARE CONSORTIUM
Adults Services,Adult Social Care,Older People (Aged 65 or over) including Older Mental Ill,Learning Dis Commissioning,Social Care - Homecare,10/02/2016,3599866,729.6,COMMUNITY CARE CONSORTIUM
Adults Services,Adult Social Care,Older People (Aged 65 or over) including Older Mental Ill,Learning Dis Commissioning,Social Care - Homecare,10/02/2016,3599870,638.4,COMMUNITY CARE CONSORTIUM
Adults Services,Adult Social Care,Older People (Aged 65 or over) including Older Mental Ill,Learning Dis Commissioning,Social Care - Homecare,10/02/2016,3599871,623.2,COMMUNITY CARE CONSORTIUM
Adults Services,Adult Social Care,Older People (Aged 65 or over) including Older Mental Ill,Learning Dis Commissioning,Social Care - Homecare,10/02/2016,3599872,623.2,COMMUNITY CARE CONSORTIUM
Adults Services,Adult Social Care,Older People (Aged 65 or over) including Older Mental Ill,Learning Dis Commissioning,Social Care - Homecare,10/02/2016,3599874,608,COMMUNITY CARE CONSORTIUM
Adults Services,Adult Social Care,Older People (Aged 65 or over) including Older Mental Ill,Learning Dis Commissioning,Social Care - Homecare,10/02/2016,3599875,608,COMMUNITY CARE CONSORTIUM
Adults Services,Adult Social Care,Older People (Aged 65 or over) including Older Mental Ill,Learning Dis Commissioning,Social Care - Homecare,10/02/2016,3599879,532,COMMUNITY CARE CONSORTIUM
Adults Services,Adult Social Care,Older People (Aged 65 or over) including Older Mental Ill,Learning Dis Commissioning,Social Care - Homecare,10/02/2016,3599880,516.8,COMMUNITY CARE CONSORTIUM
Adults Services,Adult Social Care,Older People (Aged 65 or over) including Older Mental Ill,Learning Dis Commissioning,Social Care - Homecare,10/02/2016,3599936,"1,542.80",COMMUNITY CARE CONSORTIUM
Adults Services,Adult Social Care,Older People (Aged 65 or over) including Older Mental Ill,Learning Dis Commissioning,Social Care - Homecare,10/02/2016,3599939,"1,193.20",COMMUNITY CARE CONSORTIUM
Adults Services,Adult Social Care,Older People (Aged 65 or over) including Older Mental Ill,Learning Dis Commissioning,Social Care - Homecare,10/02/2016,3599942,874,COMMUNITY CARE CONSORTIUM
Adults Services,Adult Social Care,Older People (Aged 65 or over) including Older Mental Ill,Learning Dis Commissioning,Social Care - Homecare,10/02/2016,3599944,820.8,COMMUNITY CARE CONSORTIUM
Adults Services,Adult Social Care,Older People (Aged 65 or over) including Older Mental Ill,Learning Dis Commissioning,Social Care - Homecare,10/02/2016,3599947,748.6,COMMUNITY CARE CONSORTIUM
Adults Services,Adult Social Care,Older People (Aged 65 or over) including Older Mental Ill,Learning Dis Commissioning,Social Care - Homecare,10/02/2016,3599949,737.2,COMMUNITY CARE CONSORTIUM
Adults Services,Adult Social Care,Older People (Aged 65 or over) including Older Mental Ill,Learning Dis Commissioning,Social Care - Homecare,10/02/2016,3599952,676.4,COMMUNITY CARE CONSORTIUM
Adults Services,Adult Social Care,Older People (Aged 65 or over) including Older Mental Ill,Learning Dis Commissioning,Social Care - Homecare,10/02/2016,3599953,668.8,COMMUNITY CARE CONSORTIUM
Adults Services,Adult Social Care,Older People (Aged 65 or over) including Older Mental Ill,Learning Dis Commissioning,Social Care - Homecare,10/02/2016,3599957,577.6,COMMUNITY CARE CONSORTIUM
Adults Services,Adult Social Care,Older People (Aged 65 or over) including Older Mental Ill,Learning Dis Commissioning,Social Care - Homecare,10/02/2016,3599959,562.4,COMMUNITY CARE CONSORTIUM
Adults Services,Adult Social Care,Older People (Aged 65 or over) including Older Mental Ill,Learning Dis Commissioning,Social Care - Homecare,10/02/2016,3599962,509.2,COMMUNITY CARE CONSORTIUM
Adults Services,Adult Social Care,Older People (Aged 65 or over) including Older Mental Ill,Learning Dis Commissioning,Social Care - Homecare,10/02/2016,3600014,"1,482.00",COMMUNITY CARE CONSORTIUM
Adults Services,Adult Social Care,Older People (Aged 65 or over) including Older Mental Ill,Learning Dis Commissioning,Social Care - Homecare,10/02/2016,3600016,"1,079.20",COMMUNITY CARE CONSORTIUM
Adults Services,Adult Social Care,Older People (Aged 65 or over) including Older Mental Ill,Learning Dis Commissioning,Social Care - Homecare,10/02/2016,3600017,"1,064.00",COMMUNITY CARE CONSORTIUM
Adults Services,Adult Social Care,Older People (Aged 65 or over) including Older Mental Ill,Learning Dis Commissioning,Social Care - Homecare,10/02/2016,3600155,557.95,MiHOMECARE LIMITED
Adults Services,Adult Social Care,Older People (Aged 65 or over) including Older Mental Ill,Learning Dis Commissioning,Social Care - Homecare,10/02/2016,3600196,"2,413.01",APASENTH
Adults Services,Adult Social Care,Older People (Aged 65 or over) including Older Mental Ill,Learning Dis Commissioning,Social Care - Homecare,10/02/2016,3600197,"1,671.75",APASENTH
Adults Services,Adult Social Care,Older People (Aged 65 or over) including Older Mental Ill,Learning Dis Commissioning,Social Care - Homecare,10/02/2016,3600199,"1,499.21",APASENTH
Adults Services,Adult Social Care,Older People (Aged 65 or over) including Older Mental Ill,Learning Dis Commissioning,Social Care - Homecare,10/02/2016,3600200,"1,310.97",APASENTH
Adults Services,Adult Social Care,Older People (Aged 65 or over) including Older Mental Ill,Learning Dis Commissioning,Social Care - Homecare,10/02/2016,3600201,"1,300.29",APASENTH
Adults Services,Adult Social Care,Older People (Aged 65 or over) including Older Mental Ill,Learning Dis Commissioning,Social Care - Homecare,10/02/2016,3600203,"1,240.22",APASENTH
Adults Services,Adult Social Care,Older People (Aged 65 or over) including Older Mental Ill,Learning Dis Commissioning,Social Care - Homecare,10/02/2016,3600205,962.2,APASENTH
Adults Services,Adult Social Care,Older People (Aged 65 or over) including Older Mental Ill,Learning Dis Commissioning,Social Care - Homecare,10/02/2016,3600206,833.04,APASENTH
Adults Services,Adult Social Care,Older People (Aged 65 or over) including Older Mental Ill,Learning Dis Commissioning,Social Care - Homecare,10/02/2016,3600208,771.3,APASENTH
Adults Services,Adult Social Care,Older People (Aged 65 or over) including Older Mental Ill,Learning Dis Commissioning,Social Care - Homecare,10/02/2016,3600209,755.61,APASENTH
Adults Services,Adult Social Care,Older People (Aged 65 or over) including Older Mental Ill,Learning Dis Commissioning,Social Care - Homecare,10/02/2016,3600210,700.88,APASENTH
Adults Services,Adult Social Care,Older People (Aged 65 or over) including Older Mental Ill,Learning Dis Commissioning,Social Care - Homecare,10/02/2016,3600211,596.75,APASENTH
Adults Services,Adult Social Care,Older People (Aged 65 or over) including Older Mental Ill,Learning Dis Commissioning,Social Care - Homecare,10/02/2016,3600212,582.06,APASENTH
Adults Services,Adult Social Care,Older People (Aged 65 or over) including Older Mental Ill,Learning Dis Commissioning,Social Care - Homecare,10/02/2016,3600279,"1,548.60",APASENTH
Adults Services,Adult Social Care,Older People (Aged 65 or over) including Older Mental Ill,Learning Dis Commissioning,Social Care - Homecare,10/02/2016,3600281,"1,415.10",APASENTH
Adults Services,Adult Social Care,Older People (Aged 65 or over) including Older Mental Ill,Learning Dis Commissioning,Social Care - Homecare,10/02/2016,3600517,876.15,Soma Healthcare Ltd
Adults Services,Adult Social Care,Older People (Aged 65 or over) including Older Mental Ill,Learning Dis Commissioning,Social Care - Homecare,10/02/2016,3600601,608.85,Soma Healthcare Ltd
Adults Services,Adult Social Care,Older People (Aged 65 or over) including Older Mental Ill,Learning Dis Commissioning,Social Care - Homecare,10/02/2016,3600671,"1,177.11",Outward Housing
Adults Services,Adult Social Care,Older People (Aged 65 or over) including Older Mental Ill,Learning Dis Commissioning,Social Care - Homecare,10/02/2016,3600675,880.44,Outward Housing
Adults Services,Adult Social Care,Older People (Aged 65 or over) including Older Mental Ill,Learning Dis Commissioning,Social Care - Homecare,10/02/2016,3600676,"1,224.96",Outward Housing
Adults Services,Adult Social Care,Older People (Aged 65 or over) including Older Mental Ill,Learning Dis Commissioning,Social Care - Help to Live at Home,10/02/2016,3599430,"3,877.17",HOLMLEIGH CARE HOMES LTD
Adults Services,Adult Social Care,Older People (Aged 65 or over) including Older Mental Ill,Learning Dis Commissioning,Social Care - Help to Live at Home,10/02/2016,3599755,"4,841.28",Transitions Living
Adults Services,Adult Social Care,Older People (Aged 65 or over) including Older Mental Ill,Learning Dis Commissioning,Social Care - Help to Live at Home,10/02/2016,3599756,"2,160.00",Transitions Living
Adults Services,Adult Social Care,Older People (Aged 65 or over) including Older Mental Ill,Learning Dis Commissioning,Social Care - Help to Live at Home,10/02/2016,3600674,952.94,Outward Housing
Adults Services,Adult Social Care,Older People (Aged 65 or over) including Older Mental Ill,Physical Dis Commissioning,Social Care - Nursing Care,10/02/2016,3582276,"5,394.49",Samkar Ltd
Adults Services,Adult Social Care,Older People (Aged 65 or over) including Older Mental Ill,Physical Dis Commissioning,Social Care - Nursing Care,10/02/2016,3599574,"5,795.67",LIFE STYLE CARE (2011) PLC
Adults Services,Adult Social Care,Older People (Aged 65 or over) including Older Mental Ill,Physical Dis Commissioning,Social Care - Nursing Care,10/02/2016,3599576,"3,981.77",LIFE STYLE CARE (2011) PLC
Adults Services,Adult Social Care,Older People (Aged 65 or over) including Older Mental Ill,Physical Dis Commissioning,Social Care - Residential Care,10/02/2016,3599634,875,EXCELCARE HOLDING PLC
Adults Services,Adult Social Care,Older People (Aged 65 or over) including Older Mental Ill,Physical Dis Commissioning,Social Care - Day Care,10/02/2016,3600114,613.34,Tower Project
Adults Services,Adult Social Care,Older People (Aged 65 or over) including Older Mental Ill,Physical Dis Commissioning,Social Care - Homecare,10/02/2016,3591148,"1,379.00",Active Assistance
Adults Services,Adult Social Care,Older People (Aged 65 or over) including Older Mental Ill,Physical Dis Commissioning,Social Care - Homecare,10/02/2016,3599077,"3,023.50",ATHLONE CARE LTD
Adults Services,Adult Social Care,Older People (Aged 65 or over) including Older Mental Ill,Physical Dis Commissioning,Social Care - Homecare,10/02/2016,3599124,981.68,Carewatch Newham Ltd
Adults Services,Adult Social Care,Older People (Aged 65 or over) including Older Mental Ill,Physical Dis Commissioning,Social Care - Homecare,10/02/2016,3599164,673.58,Carewatch Newham Ltd
Adults Services,Adult Social Care,Older People (Aged 65 or over) including Older Mental Ill,Physical Dis Commissioning,Social Care - Homecare,10/02/2016,3599367,564.83,Mantra Recruitment
Adults Services,Adult Social Care,Older People (Aged 65 or over) including Older Mental Ill,Physical Dis Commissioning,Social Care - Homecare,10/02/2016,3599370,559.73,Mantra Recruitment
Adults Services,Adult Social Care,Older People (Aged 65 or over) including Older Mental Ill,Physical Dis Commissioning,Social Care - Homecare,10/02/2016,3599441,"4,060.00",Excelcare (Home Care Division) LTD
Adults Services,Adult Social Care,Older People (Aged 65 or over) including Older Mental Ill,Physical Dis Commissioning,Social Care - Homecare,10/02/2016,3599442,741.33,Excelcare (Home Care Division) LTD
Adults Services,Adult Social Care,Older People (Aged 65 or over) including Older Mental Ill,Physical Dis Commissioning,Social Care - Homecare,10/02/2016,3599523,"4,088.00",Excelcare (Home Care Division) LTD
Adults Services,Adult Social Care,Older People (Aged 65 or over) including Older Mental Ill,Physical Dis Commissioning,Social Care - Homecare,10/02/2016,3599524,748.16,Excelcare (Home Care Division) LTD
Adults Services,Adult Social Care,Older People (Aged 65 or over) including Older Mental Ill,Physical Dis Commissioning,Social Care - Homecare,10/02/2016,3599570,500,REMARK LTD
Adults Services,Adult Social Care,Older People (Aged 65 or over) including Older Mental Ill,Physical Dis Commissioning,Social Care - Homecare,10/02/2016,3599703,"1,275.55",REDSPOT HOMECARE (CONTRACTS) LTD
Adults Services,Adult Social Care,Older People (Aged 65 or over) including Older Mental Ill,Physical Dis Commissioning,Social Care - Homecare,10/02/2016,3599713,634.49,REDSPOT HOMECARE (CONTRACTS) LTD
Adults Services,Adult Social Care,Older People (Aged 65 or over) including Older Mental Ill,Physical Dis Commissioning,Social Care - Homecare,10/02/2016,3599728,828.45,REDSPOT HOMECARE (CONTRACTS) LTD
Adults Services,Adult Social Care,Older People (Aged 65 or over) including Older Mental Ill,Physical Dis Commissioning,Social Care - Homecare,10/02/2016,3599789,767.6,COMMUNITY CARE CONSORTIUM
Adults Services,Adult Social Care,Older People (Aged 65 or over) including Older Mental Ill,Physical Dis Commissioning,Social Care - Homecare,10/02/2016,3599798,623.2,COMMUNITY CARE CONSORTIUM
Adults Services,Adult Social Care,Older People (Aged 65 or over) including Older Mental Ill,Physical Dis Commissioning,Social Care - Homecare,10/02/2016,3599801,592.8,COMMUNITY CARE CONSORTIUM
Adults Services,Adult Social Care,Older People (Aged 65 or over) including Older Mental Ill,Physical Dis Commissioning,Social Care - Homecare,10/02/2016,3599805,509.2,COMMUNITY CARE CONSORTIUM
Adults Services,Adult Social Care,Older People (Aged 65 or over) including Older Mental Ill,Physical Dis Commissioning,Social Care - Homecare,10/02/2016,3599865,756.2,COMMUNITY CARE CONSORTIUM
Adults Services,Adult Social Care,Older People (Aged 65 or over) including Older Mental Ill,Physical Dis Commissioning,Social Care - Homecare,10/02/2016,3599873,623.2,COMMUNITY CARE CONSORTIUM
Adults Services,Adult Social Care,Older People (Aged 65 or over) including Older Mental Ill,Physical Dis Commissioning,Social Care - Homecare,10/02/2016,3599876,592.8,COMMUNITY CARE CONSORTIUM
Adults Services,Adult Social Care,Older People (Aged 65 or over) including Older Mental Ill,Physical Dis Commissioning,Social Care - Homecare,10/02/2016,3599881,509.2,COMMUNITY CARE CONSORTIUM
Adults Services,Adult Social Care,Older People (Aged 65 or over) including Older Mental Ill,Physical Dis Commissioning,Social Care - Homecare,10/02/2016,3599950,691.6,COMMUNITY CARE CONSORTIUM
Adults Services,Adult Social Care,Older People (Aged 65 or over) including Older Mental Ill,Physical Dis Commissioning,Social Care - Homecare,10/02/2016,3599951,680.2,COMMUNITY CARE CONSORTIUM
Adults Services,Adult Social Care,Older People (Aged 65 or over) including Older Mental Ill,Physical Dis Commissioning,Social Care - Homecare,10/02/2016,3599954,661.2,COMMUNITY CARE CONSORTIUM
Adults Services,Adult Social Care,Older People (Aged 65 or over) including Older Mental Ill,Physical Dis Commissioning,Social Care - Homecare,10/02/2016,3599958,568.1,COMMUNITY CARE CONSORTIUM
Adults Services,Adult Social Care,Older People (Aged 65 or over) including Older Mental Ill,Physical Dis Commissioning,Social Care - Homecare,10/02/2016,3600184,"4,692.35",MiHOMECARE LIMITED
Adults Services,Adult Social Care,Older People (Aged 65 or over) including Older Mental Ill,Physical Dis Commissioning,Social Care - Homecare,10/02/2016,3600214,539.67,APASENTH
Adults Services,Adult Social Care,Older People (Aged 65 or over) including Older Mental Ill,Physical Dis Commissioning,Social Care - Homecare,10/02/2016,3600215,536,APASENTH
Adults Services,Adult Social Care,Older People (Aged 65 or over) including Older Mental Ill,Physical Dis Commissioning,Social Care - Homecare,10/02/2016,3600216,522.32,APASENTH
Adults Services,Adult Social Care,Older People (Aged 65 or over) including Older Mental Ill,Physical Dis Commissioning,Social Care - Homecare,10/02/2016,3600365,783.55,SANCTUARY HOME CARE LIMITED
Adults Services,Adult Social Care,Older People (Aged 65 or over) including Older Mental Ill,Physical Dis Commissioning,Social Care - Homecare,10/02/2016,3600413,740.02,SANCTUARY HOME CARE LIMITED
Adults Services,Adult Social Care,Older People (Aged 65 or over) including Older Mental Ill,Physical Dis Commissioning,Social Care - Homecare,10/02/2016,3600447,551.4,SANCTUARY HOME CARE LIMITED
Adults Services,Adult Social Care,Older People (Aged 65 or over) including Older Mental Ill,Physical Dis Commissioning,Social Care - Homecare,10/02/2016,3600493,551.39,SANCTUARY HOME CARE LIMITED
Adults Services,Adult Social Care,Older People (Aged 65 or over) including Older Mental Ill,Physical Dis Commissioning,Social Care - Homecare,10/02/2016,3600503,601.43,Soma Healthcare Ltd
Adults Services,Adult Social Care,Older People (Aged 65 or over) including Older Mental Ill,Physical Dis Commissioning,Social Care - Homecare,10/02/2016,3600511,660.83,Soma Healthcare Ltd
Adults Services,Adult Social Care,Older People (Aged 65 or over) including Older Mental Ill,Physical Dis Commissioning,Social Care - Homecare,10/02/2016,3600514,653.96,Soma Healthcare Ltd
Adults Services,Adult Social Care,Older People (Aged 65 or over) including Older Mental Ill,Physical Dis Commissioning,Social Care - Homecare,10/02/2016,3600521,638.55,Soma Healthcare Ltd
Adults Services,Adult Social Care,Older People (Aged 65 or over) including Older Mental Ill,Physical Dis Commissioning,Social Care - Homecare,10/02/2016,3600564,"1,692.90",Soma Healthcare Ltd
Adults Services,Adult Social Care,Older People (Aged 65 or over) including Older Mental Ill,Physical Dis Commissioning,Social Care - Homecare,10/02/2016,3600580,697.95,Soma Healthcare Ltd
Adults Services,Adult Social Care,Older People (Aged 65 or over) including Older Mental Ill,Physical Dis Commissioning,Social Care - Homecare,10/02/2016,3600593,516.04,Soma Healthcare Ltd
Adults Services,Adult Social Care,Older People (Aged 65 or over) including Older Mental Ill,Physical Dis Commissioning,Social Care - Homecare,10/02/2016,3600599,809.33,Soma Healthcare Ltd
Adults Services,Adult Social Care,Older People (Aged 65 or over) including Older Mental Ill,Physical Dis Commissioning,Social Care - Homecare,10/02/2016,3600600,"1,817.55",Soma Healthcare Ltd
Adults Services,Adult Social Care,Older People (Aged 65 or over) including Older Mental Ill,Physical Dis Commissioning,Social Care - Homecare,10/02/2016,3600606,653.4,Soma Healthcare Ltd
Adults Services,Adult Social Care,Older People (Aged 65 or over) including Older Mental Ill,Physical Dis Commissioning,Social Care - Homecare,10/02/2016,3600619,742.5,Soma Healthcare Ltd
Adults Services,Adult Social Care,Older People (Aged 65 or over) including Older Mental Ill,Physical Dis Commissioning,Social Care - Prevention & Support,10/02/2016,3599645,"1,750.00",CITY VIEW HOTEL LTD
Adults Services,Adult Social Care,Older People (Aged 65 or over) including Older Mental Ill,Physical Dis Commissioning,Social Care - Prevention & Support,10/02/2016,3599646,"1,808.00",CITY VIEW HOTEL LTD
Adults Services,Adult Social Care,Older People (Aged 65 or over) including Older Mental Ill,Physical Dis Commissioning,Social Care - Prevention & Support,10/02/2016,3599647,"1,808.00",CITY VIEW HOTEL LTD
Adults Services,Adult Social Care,Older People (Aged 65 or over) including Older Mental Ill,Physical Dis Commissioning,Social Care - Direct Payments,10/02/2016,3599586,"2,207.65",DAVID HOWARD LTD CLIENT ACCOUNT
Adults Services,Adult Social Care,Older People (Aged 65 or over) including Older Mental Ill,Physical Dis Commissioning,Social Care - Home Care (Short Term),10/02/2016,3599169,508.92,Carewatch Newham Ltd
Adults Services,Adult Social Care,Older People (Aged 65 or over) including Older Mental Ill,Physical Dis Commissioning,Social Care - Home Care (Short Term),10/02/2016,3599943,824.6,COMMUNITY CARE CONSORTIUM
Adults Services,Adult Social Care,Older People (Aged 65 or over) including Older Mental Ill,Physical Dis Commissioning,Social Care - Home Care (Short Term),10/02/2016,3600404,"1,008.46",SANCTUARY HOME CARE LIMITED
Adults Services,Adult Social Care,Older People (Aged 65 or over) including Older Mental Ill,Mental Health Commissioning,Social Care - Residential Care,10/02/2016,3599591,525,EXCELCARE HOLDING PLC
Adults Services,Adult Social Care,Older People (Aged 65 or over) including Older Mental Ill,Mental Health Commissioning,Social Care - Residential Care,10/02/2016,3599592,525,EXCELCARE HOLDING PLC
Adults Services,Adult Social Care,Older People (Aged 65 or over) including Older Mental Ill,Mental Health Commissioning,Social Care - Homecare,10/02/2016,3599101,963.59,FOCUS CARE LINK LTD
Adults Services,Adult Social Care,Older People (Aged 65 or over) including Older Mental Ill,Mental Health Commissioning,Social Care - Homecare,10/02/2016,3599126,573.2,Carewatch Newham Ltd
Adults Services,Adult Social Care,Older People (Aged 65 or over) including Older Mental Ill,Mental Health Commissioning,Social Care - Homecare,10/02/2016,3599141,501.7,Carewatch Newham Ltd
Adults Services,Adult Social Care,Older People (Aged 65 or over) including Older Mental Ill,Mental Health Commissioning,Social Care - Homecare,10/02/2016,3599783,"1,276.80",COMMUNITY CARE CONSORTIUM
Adults Services,Adult Social Care,Older People (Aged 65 or over) including Older Mental Ill,Mental Health Commissioning,Social Care - Homecare,10/02/2016,3599858,"1,276.80",COMMUNITY CARE CONSORTIUM
Adults Services,Adult Social Care,Older People (Aged 65 or over) including Older Mental Ill,Mental Health Commissioning,Social Care - Homecare,10/02/2016,3599937,"1,413.60",COMMUNITY CARE CONSORTIUM
Adults Services,Adult Social Care,Older People (Aged 65 or over) including Older Mental Ill,Mental Health Commissioning,Social Care - Homecare,10/02/2016,3600015,638.4,COMMUNITY CARE CONSORTIUM
Adults Services,Adult Social Care,Older People (Aged 65 or over) including Older Mental Ill,Mental Health Commissioning,Social Care - Homecare,10/02/2016,3600183,524.76,MiHOMECARE LIMITED
Adults Services,Adult Social Care,Older People (Aged 65 or over) including Older Mental Ill,Mental Health Commissioning,Social Care - Homecare,10/02/2016,3600480,870.6,SANCTUARY HOME CARE LIMITED
Adults Services,Adult Social Care,Older People (Aged 65 or over) including Older Mental Ill,Mental Health Commissioning,Social Care - Homecare,10/02/2016,3600528,564.3,Soma Healthcare Ltd
Adults Services,Adult Social Care,Older People (Aged 65 or over) including Older Mental Ill,Mental Health Commissioning,Social Care - Prevention & Support,10/02/2016,3599108,"1,680.00",City Inn Express Limited
Adults Services,Adult Social Care,Older People (Aged 65 or over) including Older Mental Ill,Mental Health Commissioning,Social Care - Prevention & Support,10/02/2016,3599109,"1,680.00",City Inn Express Limited
Adults Services,Adult Social Care,Older People (Aged 65 or over) including Older Mental Ill,Mental Health Commissioning,Social Care - Prevention & Support,10/02/2016,3599110,"1,680.00",City Inn Express Limited
Adults Services,Adult Social Care,Older People (Aged 65 or over) including Older Mental Ill,Mental Health Commissioning,Social Care - Prevention & Support,10/02/2016,3599111,"1,680.00",City Inn Express Limited
Adults Services,Adult Social Care,Older People (Aged 65 or over) including Older Mental Ill,Mental Health Commissioning,Social Care - Prevention & Support,10/02/2016,3599112,"1,680.00",City Inn Express Limited
Adults Services,Adult Social Care,Older People (Aged 65 or over) including Older Mental Ill,Mental Health Commissioning,Social Care - Supported Accommodation,10/02/2016,3592413,749,Look Ahead Care & Support Ltd
Adults Services,Adult Social Care,Older People (Aged 65 or over) including Older Mental Ill,Mental Health Commissioning,Social Care - Supported Accommodation,10/02/2016,3592414,678.92,Look Ahead Care & Support Ltd
Adults Services,Adult Social Care,Older People (Aged 65 or over) including Older Mental Ill,Mental Health Commissioning,Social Care - Supported Accommodation,10/02/2016,3592415,594.89,Look Ahead Care & Support Ltd
Adults Services,Adult Social Care,Older People (Aged 65 or over) including Older Mental Ill,Mental Health Commissioning,Social Care - Supported Accommodation,10/02/2016,3592416,678.92,Look Ahead Care & Support Ltd
Adults Services,Adult Social Care,Older People (Aged 65 or over) including Older Mental Ill,Mental Health Commissioning,Social Care - Supported Accommodation,10/02/2016,3592417,606.96,Look Ahead Care & Support Ltd
Adults Services,Adult Social Care,Older People (Aged 65 or over) including Older Mental Ill,Mental Health Commissioning,Social Care - Supported Accommodation,10/02/2016,3599429,"2,037.01",ANTRIM CARE SERVICES LIMITED
Adults Services,Adult Social Care,Older People (Aged 65 or over) including Older Mental Ill,Mental Health Commissioning,Social Care - Supported Accommodation,10/02/2016,3599432,"2,037.01",ANTRIM CARE SERVICES LIMITED
Adults Services,Adult Social Care,Older People (Aged 65 or over) including Older Mental Ill,Mental Health Commissioning,Social Care - Supported Accommodation,10/02/2016,3600297,597.66,Look Ahead Care & Support Ltd
Adults Services,Public Health,Smoking and Tobacco,Public Health Team - 2,Third Party Payments - Other Local Authorities,10/02/2016,3597831,"49,776.00",London Borough Of Hackney
Adults Services,Public Health,Smoking and Tobacco,Public Health Team - 2,Payments to Private Contractors - Other Contractors,10/02/2016,3598276,"1,595.23",MRS T PIANOV T/A MAYORS CHEMIST
Adults Services,Public Health,Smoking and Tobacco,Public Health Team - 2,Payments to Private Contractors - Other Contractors,10/02/2016,3598281,920.7,FLORIDA PHARMACY
Adults Services,Public Health,Smoking and Tobacco,Public Health Team - 2,Payments to Private Contractors - Other Contractors,10/02/2016,3598282,623.22,FLORIDA PHARMACY
Adults Services,Public Health,Miscellaneous Public Health Services,Public Health Team - 3,Third Party Payments - Voluntary Associations,10/02/2016,3593771,"6,622.25",Womens Health & Family Services
Adults Services,Public Health,Miscellaneous Public Health Services,Public Health Team - 3,Third Party Payments - Voluntary Associations,10/02/2016,3598622,"26,416.67",SOCIAL ACTION FOR HEALTH
Adults Services,Adult Social Care,Older People (Aged 65 or over) including Older Mental Ill,Older People Commissioning,Social Care - Nursing Care,12/02/2016,3602393,"4,428.57",Havelock Court (Bupa)
Adults Services,Adult Social Care,Older People (Aged 65 or over) including Older Mental Ill,Older People Commissioning,Social Care - Nursing Care,12/02/2016,3602394,"3,716.06",Havelock Court (Bupa)
Adults Services,Adult Social Care,Older People (Aged 65 or over) including Older Mental Ill,Older People Commissioning,Social Care - Residential Care,12/02/2016,3591165,"2,157.78",MILLARD HOUSE RESIDENTAIL CARE HOME
Adults Services,Adult Social Care,Older People (Aged 65 or over) including Older Mental Ill,Older People Commissioning,Social Care - Residential Care,12/02/2016,3591165,-590.55,MILLARD HOUSE RESIDENTAIL CARE HOME
Adults Services,Adult Social Care,Older People (Aged 65 or over) including Older Mental Ill,Older People Commissioning,Social Care - Residential Care,12/02/2016,3602020,"1,949.70",ST MICHAELS HOME
Adults Services,Adult Social Care,Older People (Aged 65 or over) including Older Mental Ill,Older People Commissioning,Social Care - Residential Care,12/02/2016,3602021,"2,014.69",ST MICHAELS HOME
Adults Services,Adult Social Care,Older People (Aged 65 or over) including Older Mental Ill,Older People Commissioning,Social Care - Residential Care,12/02/2016,3602022,"1,949.71",ST MICHAELS HOME
Adults Services,Adult Social Care,Older People (Aged 65 or over) including Older Mental Ill,Older People Commissioning,Social Care - Residential Care,12/02/2016,3602023,"2,014.69",ST MICHAELS HOME
Adults Services,Adult Social Care,Older People (Aged 65 or over) including Older Mental Ill,Older People Commissioning,Social Care - Residential Care,12/02/2016,3602024,"2,014.69",ST MICHAELS HOME
Adults Services,Adult Social Care,Older People (Aged 65 or over) including Older Mental Ill,Older People Commissioning,Social Care - Residential Care,12/02/2016,3602068,-960,SANCTUARY CARE LTD
Adults Services,Adult Social Care,Older People (Aged 65 or over) including Older Mental Ill,Older People Commissioning,Social Care - Residential Care,12/02/2016,3602069,"3,280.00",SANCTUARY CARE LTD
Adults Services,Adult Social Care,Older People (Aged 65 or over) including Older Mental Ill,Older People Commissioning,Social Care - Homecare,12/02/2016,3602079,604.75,SEVACARE UK LTD
Adults Services,Adult Social Care,Older People (Aged 65 or over) including Older Mental Ill,Older People Commissioning,Social Care - Homecare,12/02/2016,3602088,516.25,SEVACARE UK LTD
Adults Services,Adult Social Care,Older People (Aged 65 or over) including Older Mental Ill,Older People Commissioning,Social Care - Homecare,12/02/2016,3602090,"1,135.75",SEVACARE UK LTD
Adults Services,Adult Social Care,Older People (Aged 65 or over) including Older Mental Ill,Older People Commissioning,Social Care - Homecare,12/02/2016,3602094,"1,135.75",SEVACARE UK LTD
Adults Services,Adult Social Care,Older People (Aged 65 or over) including Older Mental Ill,Older People Commissioning,Social Care - Homecare,12/02/2016,3602107,671.13,SEVACARE UK LTD
Adults Services,Adult Social Care,Older People (Aged 65 or over) including Older Mental Ill,Older People Commissioning,Social Care - Homecare,12/02/2016,3602109,567.88,SEVACARE UK LTD
Adults Services,Adult Social Care,Older People (Aged 65 or over) including Older Mental Ill,Older People Commissioning,Social Care - Homecare,12/02/2016,3602111,634.25,SEVACARE UK LTD
Adults Services,Adult Social Care,Older People (Aged 65 or over) including Older Mental Ill,Older People Commissioning,Social Care - Homecare,12/02/2016,3602112,"1,106.25",SEVACARE UK LTD
Adults Services,Adult Social Care,Older People (Aged 65 or over) including Older Mental Ill,Older People Commissioning,Social Care - Homecare,12/02/2016,3602123,809.85,SEVACARE UK LTD
Adults Services,Adult Social Care,Older People (Aged 65 or over) including Older Mental Ill,Older People Commissioning,Social Care - Homecare,12/02/2016,3602130,977.19,SEVACARE UK LTD
Adults Services,Adult Social Care,Older People (Aged 65 or over) including Older Mental Ill,Older People Commissioning,Social Care - Homecare,12/02/2016,3602146,523.63,SEVACARE UK LTD
Adults Services,Adult Social Care,Older People (Aged 65 or over) including Older Mental Ill,Older People Commissioning,Social Care - Homecare,12/02/2016,3602149,501.5,SEVACARE UK LTD
Adults Services,Adult Social Care,Older People (Aged 65 or over) including Older Mental Ill,Older People Commissioning,Social Care - Homecare,12/02/2016,3602151,848.13,SEVACARE UK LTD
Adults Services,Adult Social Care,Older People (Aged 65 or over) including Older Mental Ill,Older People Commissioning,Social Care - Homecare,12/02/2016,3602166,531,SEVACARE UK LTD
Adults Services,Adult Social Care,Older People (Aged 65 or over) including Older Mental Ill,Older People Commissioning,Social Care - Homecare,12/02/2016,3602170,988.25,SEVACARE UK LTD
Adults Services,Adult Social Care,Older People (Aged 65 or over) including Older Mental Ill,Older People Commissioning,Social Care - Homecare,12/02/2016,3602177,604.75,SEVACARE UK LTD
Adults Services,Adult Social Care,Older People (Aged 65 or over) including Older Mental Ill,Older People Commissioning,Social Care - Homecare,12/02/2016,3602188,"1,135.75",SEVACARE UK LTD
Adults Services,Adult Social Care,Older People (Aged 65 or over) including Older Mental Ill,Older People Commissioning,Social Care - Homecare,12/02/2016,3602190,"1,135.75",SEVACARE UK LTD
Adults Services,Adult Social Care,Older People (Aged 65 or over) including Older Mental Ill,Older People Commissioning,Social Care - Homecare,12/02/2016,3602197,988.25,SEVACARE UK LTD
Adults Services,Adult Social Care,Older People (Aged 65 or over) including Older Mental Ill,Older People Commissioning,Social Care - Homecare,12/02/2016,3602201,671.13,SEVACARE UK LTD
Adults Services,Adult Social Care,Older People (Aged 65 or over) including Older Mental Ill,Older People Commissioning,Social Care - Homecare,12/02/2016,3602203,567.88,SEVACARE UK LTD
Adults Services,Adult Social Care,Older People (Aged 65 or over) including Older Mental Ill,Older People Commissioning,Social Care - Homecare,12/02/2016,3602205,696.94,SEVACARE UK LTD
Adults Services,Adult Social Care,Older People (Aged 65 or over) including Older Mental Ill,Older People Commissioning,Social Care - Homecare,12/02/2016,3602206,"1,106.25",SEVACARE UK LTD
Adults Services,Adult Social Care,Older People (Aged 65 or over) including Older Mental Ill,Older People Commissioning,Social Care - Homecare,12/02/2016,3602215,815.4,SEVACARE UK LTD
Adults Services,Adult Social Care,Older People (Aged 65 or over) including Older Mental Ill,Older People Commissioning,Social Care - Homecare,12/02/2016,3602219,"1,032.50",SEVACARE UK LTD
Adults Services,Adult Social Care,Older People (Aged 65 or over) including Older Mental Ill,Older People Commissioning,Social Care - Homecare,12/02/2016,3602227,575.25,SEVACARE UK LTD
Adults Services,Adult Social Care,Older People (Aged 65 or over) including Older Mental Ill,Older People Commissioning,Social Care - Homecare,12/02/2016,3602235,523.63,SEVACARE UK LTD
Adults Services,Adult Social Care,Older People (Aged 65 or over) including Older Mental Ill,Older People Commissioning,Social Care - Homecare,12/02/2016,3602238,501.5,SEVACARE UK LTD
Adults Services,Adult Social Care,Older People (Aged 65 or over) including Older Mental Ill,Older People Commissioning,Social Care - Homecare,12/02/2016,3602240,899.75,SEVACARE UK LTD
Adults Services,Adult Social Care,Older People (Aged 65 or over) including Older Mental Ill,Older People Commissioning,Social Care - Homecare,12/02/2016,3602256,531,SEVACARE UK LTD
Adults Services,Adult Social Care,Older People (Aged 65 or over) including Older Mental Ill,Older People Commissioning,Social Care - Homecare,12/02/2016,3602262,"1,652.00",SEVACARE UK LTD
Adults Services,Adult Social Care,Older People (Aged 65 or over) including Older Mental Ill,Older People Commissioning,Social Care - Homecare,12/02/2016,3602273,538.38,SEVACARE UK LTD
Adults Services,Adult Social Care,Older People (Aged 65 or over) including Older Mental Ill,Older People Commissioning,Social Care - Homecare,12/02/2016,3602278,575.25,SEVACARE UK LTD
Adults Services,Adult Social Care,Older People (Aged 65 or over) including Older Mental Ill,Older People Commissioning,Social Care - Homecare,12/02/2016,3602289,813.2,COMMUNITY CARE CONSORTIUM
Adults Services,Adult Social Care,Older People (Aged 65 or over) including Older Mental Ill,Older People Commissioning,Social Care - Homecare,12/02/2016,3602293,699.2,COMMUNITY CARE CONSORTIUM
Adults Services,Adult Social Care,Older People (Aged 65 or over) including Older Mental Ill,Older People Commissioning,Social Care - Homecare,12/02/2016,3602294,676.4,COMMUNITY CARE CONSORTIUM
Adults Services,Adult Social Care,Older People (Aged 65 or over) including Older Mental Ill,Older People Commissioning,Social Care - Homecare,12/02/2016,3602295,661.2,COMMUNITY CARE CONSORTIUM
Adults Services,Adult Social Care,Older People (Aged 65 or over) including Older Mental Ill,Older People Commissioning,Social Care - Homecare,12/02/2016,3602304,585.2,COMMUNITY CARE CONSORTIUM
Adults Services,Adult Social Care,Older People (Aged 65 or over) including Older Mental Ill,Older People Commissioning,Social Care - Homecare,12/02/2016,3602305,554.92,COMMUNITY CARE CONSORTIUM
Adults Services,Adult Social Care,Older People (Aged 65 or over) including Older Mental Ill,Older People Commissioning,Social Care - Homecare,12/02/2016,3602307,547.2,COMMUNITY CARE CONSORTIUM
Adults Services,Adult Social Care,Older People (Aged 65 or over) including Older Mental Ill,Older People Commissioning,Social Care - Homecare,12/02/2016,3602362,502.52,MiHOMECARE LIMITED
Adults Services,Adult Social Care,Older People (Aged 65 or over) including Older Mental Ill,Older People Commissioning,Social Care - Homecare,12/02/2016,3602383,561.7,MiHOMECARE LIMITED
Adults Services,Adult Social Care,Older People (Aged 65 or over) including Older Mental Ill,Older People Commissioning,Social Care - Homecare,12/02/2016,3602384,517.3,MiHOMECARE LIMITED
Adults Services,Adult Social Care,Older People (Aged 65 or over) including Older Mental Ill,Older People Commissioning,Social Care - Homecare,12/02/2016,3602389,920.33,MiHOMECARE LIMITED
Adults Services,Adult Social Care,Older People (Aged 65 or over) including Older Mental Ill,Older People Commissioning,Social Care - Homecare,12/02/2016,3602438,"3,453.38",SANCTUARY HOME CARE LIMITED
Adults Services,Adult Social Care,Older People (Aged 65 or over) including Older Mental Ill,Older People Commissioning,Social Care - Homecare,12/02/2016,3602447,616.69,SANCTUARY HOME CARE LIMITED
Adults Services,Adult Social Care,Older People (Aged 65 or over) including Older Mental Ill,Older People Commissioning,Social Care - Homecare,12/02/2016,3602458,500.61,SANCTUARY HOME CARE LIMITED
Adults Services,Adult Social Care,Older People (Aged 65 or over) including Older Mental Ill,Older People Commissioning,Social Care - Homecare,12/02/2016,3602472,725.5,SANCTUARY HOME CARE LIMITED
Adults Services,Adult Social Care,Older People (Aged 65 or over) including Older Mental Ill,Older People Commissioning,Social Care - Homecare,12/02/2016,3602477,906.88,SANCTUARY HOME CARE LIMITED
Adults Services,Adult Social Care,Older People (Aged 65 or over) including Older Mental Ill,Older People Commissioning,Social Care - Homecare,12/02/2016,3602478,507.16,SANCTUARY HOME CARE LIMITED
Adults Services,Adult Social Care,Older People (Aged 65 or over) including Older Mental Ill,Older People Commissioning,Social Care - Home Care (Short Term),12/02/2016,3602105,"1,342.25",SEVACARE UK LTD
Adults Services,Adult Social Care,Older People (Aged 65 or over) including Older Mental Ill,Older People Commissioning,Social Care - Home Care (Short Term),12/02/2016,3602168,885,SEVACARE UK LTD
Adults Services,Adult Social Care,Older People (Aged 65 or over) including Older Mental Ill,Older People Commissioning,Social Care - Home Care (Short Term),12/02/2016,3602200,958.75,SEVACARE UK LTD
Adults Services,Adult Social Care,Older People (Aged 65 or over) including Older Mental Ill,Older People Commissioning,Social Care - Home Care (Short Term),12/02/2016,3602258,929.25,SEVACARE UK LTD
Adults Services,Adult Social Care,Older People (Aged 65 or over) including Older Mental Ill,Learning Dis Commissioning,Social Care - Residential Care,12/02/2016,3586040,"26,656.37",MENCAP
Adults Services,Adult Social Care,Older People (Aged 65 or over) including Older Mental Ill,Learning Dis Commissioning,Social Care - Respite Care,12/02/2016,3602284,"1,157.14",SAHARA HOMES LIMITED
Adults Services,Adult Social Care,Older People (Aged 65 or over) including Older Mental Ill,Learning Dis Commissioning,Social Care - Respite Care,12/02/2016,3602286,"1,542.86",SAHARA HOMES LIMITED
Adults Services,Adult Social Care,Older People (Aged 65 or over) including Older Mental Ill,Learning Dis Commissioning,Social Care - Respite Care,12/02/2016,3602399,660,APASENTH
Adults Services,Adult Social Care,Older People (Aged 65 or over) including Older Mental Ill,Learning Dis Commissioning,Social Care - Respite Care,12/02/2016,3602400,"4,455.00",APASENTH
Adults Services,Adult Social Care,Older People (Aged 65 or over) including Older Mental Ill,Learning Dis Commissioning,Social Care - Day Care,12/02/2016,3595838,"1,076.16",Somerset County Council
Adults Services,Adult Social Care,Older People (Aged 65 or over) including Older Mental Ill,Learning Dis Commissioning,Social Care - Day Care,12/02/2016,3595839,"1,143.42",Somerset County Council
Adults Services,Adult Social Care,Older People (Aged 65 or over) including Older Mental Ill,Learning Dis Commissioning,Social Care - Day Care,12/02/2016,3602038,506.96,Excelcare (Home Care Division) LTD
Adults Services,Adult Social Care,Older People (Aged 65 or over) including Older Mental Ill,Learning Dis Commissioning,Social Care - Day Care,12/02/2016,3602039,506.96,Excelcare (Home Care Division) LTD
Adults Services,Adult Social Care,Older People (Aged 65 or over) including Older Mental Ill,Learning Dis Commissioning,Social Care - Day Care,12/02/2016,3602040,518.26,Excelcare (Home Care Division) LTD
Adults Services,Adult Social Care,Older People (Aged 65 or over) including Older Mental Ill,Learning Dis Commissioning,Social Care - Day Care,12/02/2016,3602041,506.96,Excelcare (Home Care Division) LTD
Adults Services,Adult Social Care,Older People (Aged 65 or over) including Older Mental Ill,Learning Dis Commissioning,Social Care - Day Care,12/02/2016,3602042,506.96,Excelcare (Home Care Division) LTD
Adults Services,Adult Social Care,Older People (Aged 65 or over) including Older Mental Ill,Learning Dis Commissioning,Social Care - Day Care,12/02/2016,3602043,506.96,Excelcare (Home Care Division) LTD
Adults Services,Adult Social Care,Older People (Aged 65 or over) including Older Mental Ill,Learning Dis Commissioning,Social Care - Day Care,12/02/2016,3602044,812.18,Excelcare (Home Care Division) LTD
Adults Services,Adult Social Care,Older People (Aged 65 or over) including Older Mental Ill,Learning Dis Commissioning,Social Care - Day Care,12/02/2016,3602045,506.96,Excelcare (Home Care Division) LTD
Adults Services,Adult Social Care,Older People (Aged 65 or over) including Older Mental Ill,Learning Dis Commissioning,Social Care - Day Care,12/02/2016,3602046,506.96,Excelcare (Home Care Division) LTD
Adults Services,Adult Social Care,Older People (Aged 65 or over) including Older Mental Ill,Learning Dis Commissioning,Social Care - Day Care,12/02/2016,3602047,506.96,Excelcare (Home Care Division) LTD
Adults Services,Adult Social Care,Older People (Aged 65 or over) including Older Mental Ill,Learning Dis Commissioning,Social Care - Day Care,12/02/2016,3602053,506.96,Excelcare (Home Care Division) LTD
Adults Services,Adult Social Care,Older People (Aged 65 or over) including Older Mental Ill,Learning Dis Commissioning,Social Care - Day Care,12/02/2016,3602054,506.96,Excelcare (Home Care Division) LTD
Adults Services,Adult Social Care,Older People (Aged 65 or over) including Older Mental Ill,Learning Dis Commissioning,Social Care - Day Care,12/02/2016,3602055,506.96,Excelcare (Home Care Division) LTD
Adults Services,Adult Social Care,Older People (Aged 65 or over) including Older Mental Ill,Learning Dis Commissioning,Social Care - Day Care,12/02/2016,3602056,857.6,Excelcare (Home Care Division) LTD
Adults Services,Adult Social Care,Older People (Aged 65 or over) including Older Mental Ill,Learning Dis Commissioning,Social Care - Day Care,12/02/2016,3602057,595.69,Excelcare (Home Care Division) LTD
Adults Services,Adult Social Care,Older People (Aged 65 or over) including Older Mental Ill,Learning Dis Commissioning,Social Care - Day Care,12/02/2016,3602058,702.75,Excelcare (Home Care Division) LTD
Adults Services,Adult Social Care,Older People (Aged 65 or over) including Older Mental Ill,Learning Dis Commissioning,Social Care - Day Care,12/02/2016,3602059,506.96,Excelcare (Home Care Division) LTD
Adults Services,Adult Social Care,Older People (Aged 65 or over) including Older Mental Ill,Learning Dis Commissioning,Social Care - Day Care,12/02/2016,3602060,682.28,Excelcare (Home Care Division) LTD
Adults Services,Adult Social Care,Older People (Aged 65 or over) including Older Mental Ill,Learning Dis Commissioning,Social Care - Day Care,12/02/2016,3602061,506.96,Excelcare (Home Care Division) LTD
Adults Services,Adult Social Care,Older People (Aged 65 or over) including Older Mental Ill,Learning Dis Commissioning,Social Care - Day Care,12/02/2016,3602062,547.91,Excelcare (Home Care Division) LTD
Adults Services,Adult Social Care,Older People (Aged 65 or over) including Older Mental Ill,Learning Dis Commissioning,Social Care - Homecare,12/02/2016,3602292,729.6,COMMUNITY CARE CONSORTIUM
Adults Services,Adult Social Care,Older People (Aged 65 or over) including Older Mental Ill,Learning Dis Commissioning,Social Care - Homecare,12/02/2016,3602296,638.4,COMMUNITY CARE CONSORTIUM
Adults Services,Adult Social Care,Older People (Aged 65 or over) including Older Mental Ill,Learning Dis Commissioning,Social Care - Homecare,12/02/2016,3602297,638.4,COMMUNITY CARE CONSORTIUM
Adults Services,Adult Social Care,Older People (Aged 65 or over) including Older Mental Ill,Learning Dis Commissioning,Social Care - Homecare,12/02/2016,3602298,623.2,COMMUNITY CARE CONSORTIUM
Adults Services,Adult Social Care,Older People (Aged 65 or over) including Older Mental Ill,Learning Dis Commissioning,Social Care - Homecare,12/02/2016,3602301,608,COMMUNITY CARE CONSORTIUM
Adults Services,Adult Social Care,Older People (Aged 65 or over) including Older Mental Ill,Learning Dis Commissioning,Social Care - Homecare,12/02/2016,3602302,608,COMMUNITY CARE CONSORTIUM
Adults Services,Adult Social Care,Older People (Aged 65 or over) including Older Mental Ill,Learning Dis Commissioning,Social Care - Homecare,12/02/2016,3602306,562.4,COMMUNITY CARE CONSORTIUM
Adults Services,Adult Social Care,Older People (Aged 65 or over) including Older Mental Ill,Learning Dis Commissioning,Social Care - Homecare,12/02/2016,3602308,516.8,COMMUNITY CARE CONSORTIUM
Adults Services,Adult Social Care,Older People (Aged 65 or over) including Older Mental Ill,Learning Dis Commissioning,Social Care - Homecare,12/02/2016,3602371,768.56,MiHOMECARE LIMITED
Adults Services,Adult Social Care,Older People (Aged 65 or over) including Older Mental Ill,Learning Dis Commissioning,Social Care - Prevention & Support,12/02/2016,3602396,"1,550.00",Alma Attic Ltd T/A Glorydale Inn
Adults Services,Adult Social Care,Older People (Aged 65 or over) including Older Mental Ill,Learning Dis Commissioning,Social Care - Help to Live at Home,12/02/2016,3602025,"2,926.00",Choicy Care Homes Limited
Adults Services,Adult Social Care,Older People (Aged 65 or over) including Older Mental Ill,Learning Dis Commissioning,Social Care - Help to Live at Home,12/02/2016,3602071,"11,203.34",Look Ahead Care & Support Ltd
Adults Services,Adult Social Care,Older People (Aged 65 or over) including Older Mental Ill,Learning Dis Commissioning,Social Care - Help to Live at Home,12/02/2016,3602072,"-11,203.34",MENCAP
Adults Services,Adult Social Care,Older People (Aged 65 or over) including Older Mental Ill,Physical Dis Commissioning,Social Care - Nursing Care,12/02/2016,3602073,"1,806.95",SANCTUARY CARE LTD
Adults Services,Adult Social Care,Older People (Aged 65 or over) including Older Mental Ill,Physical Dis Commissioning,Social Care - Homecare,12/02/2016,3602028,"3,023.50",ATHLONE CARE LTD
Adults Services,Adult Social Care,Older People (Aged 65 or over) including Older Mental Ill,Physical Dis Commissioning,Social Care - Homecare,12/02/2016,3602108,"1,172.63",SEVACARE UK LTD
Adults Services,Adult Social Care,Older People (Aged 65 or over) including Older Mental Ill,Physical Dis Commissioning,Social Care - Homecare,12/02/2016,3602156,516.25,SEVACARE UK LTD
Adults Services,Adult Social Care,Older People (Aged 65 or over) including Older Mental Ill,Physical Dis Commissioning,Social Care - Homecare,12/02/2016,3602160,"1,644.63",SEVACARE UK LTD
Adults Services,Adult Social Care,Older People (Aged 65 or over) including Older Mental Ill,Physical Dis Commissioning,Social Care - Homecare,12/02/2016,3602202,"1,312.75",SEVACARE UK LTD
Adults Services,Adult Social Care,Older People (Aged 65 or over) including Older Mental Ill,Physical Dis Commissioning,Social Care - Homecare,12/02/2016,3602244,516.25,SEVACARE UK LTD
Adults Services,Adult Social Care,Older People (Aged 65 or over) including Older Mental Ill,Physical Dis Commissioning,Social Care - Homecare,12/02/2016,3602249,"1,644.63",SEVACARE UK LTD
Adults Services,Adult Social Care,Older People (Aged 65 or over) including Older Mental Ill,Physical Dis Commissioning,Social Care - Homecare,12/02/2016,3602291,767.6,COMMUNITY CARE CONSORTIUM
Adults Services,Adult Social Care,Older People (Aged 65 or over) including Older Mental Ill,Physical Dis Commissioning,Social Care - Homecare,12/02/2016,3602299,623.2,COMMUNITY CARE CONSORTIUM
Adults Services,Adult Social Care,Older People (Aged 65 or over) including Older Mental Ill,Physical Dis Commissioning,Social Care - Homecare,12/02/2016,3602303,592.8,COMMUNITY CARE CONSORTIUM
Adults Services,Adult Social Care,Older People (Aged 65 or over) including Older Mental Ill,Physical Dis Commissioning,Social Care - Homecare,12/02/2016,3602309,509.2,COMMUNITY CARE CONSORTIUM
Adults Services,Adult Social Care,Older People (Aged 65 or over) including Older Mental Ill,Physical Dis Commissioning,Social Care - Homecare,12/02/2016,3602386,554.32,MiHOMECARE LIMITED
Adults Services,Adult Social Care,Older People (Aged 65 or over) including Older Mental Ill,Physical Dis Commissioning,Social Care - Homecare,12/02/2016,3602479,"1,625.12",SANCTUARY HOME CARE LIMITED
Adults Services,Adult Social Care,Older People (Aged 65 or over) including Older Mental Ill,Physical Dis Commissioning,Social Care - Prevention & Support,12/02/2016,3602032,"1,085.00",McCreadie Hotel
Adults Services,Adult Social Care,Older People (Aged 65 or over) including Older Mental Ill,Physical Dis Commissioning,Social Care - Prevention & Support,12/02/2016,3602034,"1,705.00",McCreadie Hotel
Adults Services,Adult Social Care,Older People (Aged 65 or over) including Older Mental Ill,Physical Dis Commissioning,Social Care - Prevention & Support,12/02/2016,3602037,"1,705.00",McCreadie Hotel
Adults Services,Adult Social Care,Older People (Aged 65 or over) including Older Mental Ill,Physical Dis Commissioning,Social Care - Home Care (Short Term),12/02/2016,3602290,767.6,COMMUNITY CARE CONSORTIUM
Adults Services,Adult Social Care,Older People (Aged 65 or over) including Older Mental Ill,Mental Health Commissioning,Social Care - Homecare,12/02/2016,3602277,826,SEVACARE UK LTD
Adults Services,Adult Social Care,Older People (Aged 65 or over) including Older Mental Ill,Mental Health Commissioning,Social Care - Homecare,12/02/2016,3602496,616,Soma Healthcare Ltd
Adults Services,Adult Social Care,Older People (Aged 65 or over) including Older Mental Ill,Mental Health Commissioning,Social Care - Prevention & Support,12/02/2016,3602048,"1,960.00",City Inn Express Limited
Adults Services,Adult Social Care,Older People (Aged 65 or over) including Older Mental Ill,Mental Health Commissioning,Social Care - Prevention & Support,12/02/2016,3602049,"1,960.00",City Inn Express Limited
Adults Services,Adult Social Care,Older People (Aged 65 or over) including Older Mental Ill,Mental Health Commissioning,Social Care - Prevention & Support,12/02/2016,3602050,"1,960.00",City Inn Express Limited
Adults Services,Adult Social Care,Older People (Aged 65 or over) including Older Mental Ill,Mental Health Commissioning,Social Care - Prevention & Support,12/02/2016,3602051,"1,960.00",City Inn Express Limited
Adults Services,Adult Social Care,Older People (Aged 65 or over) including Older Mental Ill,Mental Health Commissioning,Social Care - Prevention & Support,12/02/2016,3602052,"1,960.00",City Inn Express Limited
Adults Services,Adult Social Care,Older People (Aged 65 or over) including Older Mental Ill,Mental Health Commissioning,Social Care - Prevention & Support,12/02/2016,3602360,"1,059.17",Alma Attic Ltd T/A Glorydale Inn
Adults Services,Adult Social Care,Older People (Aged 65 or over) including Older Mental Ill,Mental Health Commissioning,Social Care - Prevention & Support,12/02/2016,3602361,"1,242.50",Alma Attic Ltd T/A Glorydale Inn
Adults Services,Adult Social Care,Older People (Aged 65 or over) including Older Mental Ill,Carers,Social Care - Flexible Breaks-Jewish Care,12/02/2016,3595809,"1,104.53",JEWISH CARE
Adults Services,Adult Social Care,Older People (Aged 65 or over) including Older Mental Ill,Riverside Centre,Computing - Purchase of Software,12/02/2016,3593825,608,Specialist Computer Centres PLC
Adults Services,Adult Social Care,Other Adult Services,Reablement,Bedding and Linen Supplies,12/02/2016,3584037,752,Office Depot (Catalogue)
Adults Services,Adult Social Care,Older People (Aged 65 or over) including Older Mental Ill,Fides Care,Healthy & Safety Supplies,12/02/2016,3589120,769.75,Praetorian Disposable Products Ltd
Adults Services,Public Health,Children 519 Public Health Programmes,Public Health Team 1,Third Party Payments - Voluntary Associations,12/02/2016,3590728,960,The Mission Practice
Adults Services,Public Health,Children 519 Public Health Programmes,Public Health Team 1,Third Party Payments - Voluntary Associations,12/02/2016,3600813,"25,380.00",Island House Community Centre
Adults Services,Adult Social Care,Support Service and Management Costs,"EHCM Running Costs		",Computing - Purchase of Software,12/02/2016,3584499,"37,946.00",Agilisys Professional Services
Adults Services,No Service Specified,No Division Specified,Capital-Minor Works (SC),Building Works - Main Works,12/02/2016,3602002,"2,996.00",Tower Hamlets Schools LTD
Adults Services,No Service Specified,No Division Specified,Capital-Minor Works (SC),Building Works - Main Works,12/02/2016,3602003,"-2,996.00",Tower Hamlets Schools LTD
Adults Services,Longer Term Support East,Longer Term Support East,Longer Term Support East,General,12/02/2016,Payment Card,503.92,premier inn 44536395
Adults Services,Quality & Performance Team,Quality & Performance Team,Quality & Performance Team,Staff Transport Costs,12/02/2016,Payment Card,850,virgintrains.co.uk
Adults Services,Quality & Performance Team,Quality & Performance Team,Quality & Performance Team,Staff Transport Costs,12/02/2016,Payment Card,681,virgintrains.co.uk
Adults Services,Adult Social Care,Older People (Aged 65 or over) including Older Mental Ill,Older People Commissioning,Social Care - Residential Care,15/02/2016,3602279,"2,010.90",LUGANO
Adults Services,Adult Social Care,Older People (Aged 65 or over) including Older Mental Ill,Older People Commissioning,Social Care - Residential Care,15/02/2016,3602280,"2,078.06",LUGANO
Adults Services,Adult Social Care,Support Service and Management Costs,Financial assessment Team,Communications,15/02/2016,3593826,586.98,Specialist Computer Centres PLC
Adults Services,Public Health,Miscellaneous Public Health Services,Public Health Team - 3,Third Party Payments - Voluntary Associations,15/02/2016,3590646,"26,968.93",Account 3 Ltd
Adults Services,Adult Social Care,Older People (Aged 65 or over) including Older Mental Ill,Physical Dis Commissioning,Social Care - Homecare,17/02/2016,3591149,"1,379.00",Active Assistance
Adults Services,Adult Social Care,Other Adult Services,Longer Term Support East,Office Furniture/Equipment,17/02/2016,3593641,790,Unique Office Solutions
Adults Services,Public Health,Miscellaneous Public Health Services,Public Health - Director,Training Expenses - Staff External Training (UK Based),17/02/2016,3601730,"6,850.00",The King's Fund
Adults Services,Public Health,Smoking and Tobacco,Public Health Team - 2,Third Party Payments - Other Establishments,17/02/2016,3528531,"18,198.19",Chelsea and Westmeinster Hospital NHS Foundation Trust
Adults Services,Public Health,Smoking and Tobacco,Public Health Team - 2,Third Party Payments - Other Establishments,17/02/2016,3533966,"85,424.61",Chelsea and Westmeinster Hospital NHS Foundation Trust
Adults Services,Public Health,Smoking and Tobacco,Public Health Team - 2,Third Party Payments - Other Establishments,17/02/2016,3564233,"21,962.80",Chelsea and Westmeinster Hospital NHS Foundation Trust
Adults Services,Public Health,Smoking and Tobacco,Public Health Team - 2,Third Party Payments - Other Establishments,17/02/2016,3566036,"9,904.18",Chelsea and Westmeinster Hospital NHS Foundation Trust
Adults Services,Public Health,Smoking and Tobacco,Public Health Team - 2,Third Party Payments - Other Establishments,17/02/2016,3602934,"-85,424.61",Chelsea and Westmeinster Hospital NHS Foundation Trust
Adults Services,Public Health,Smoking and Tobacco,Public Health Team - 2,Third Party Payments - Other Establishments,17/02/2016,3603029,"-29,506.39",Chelsea and Westmeinster Hospital NHS Foundation Trust
Adults Services,Public Health,Miscellaneous Public Health Services,Public Health Team - 3,Third Party Payments - Other Establishments,17/02/2016,3603300,"33,000.00",East London NHS Foundation Trust
Adults Services,Public Health,Miscellaneous Public Health Services,Public Health Team - 3,Third Party Payments - Other Local Authorities,17/02/2016,3595241,"2,950.00",London Borough Of Newham
Adults Services,General Fund/Council Fund,Homelessness,Supporting People Services,SP - Block-Gross - Domestic Violence,19/02/2016,3604592,"25,722.58",HESTIA HOUSING & SUPPORT
Adults Services,General Fund/Council Fund,Homelessness,Supporting People Services,SP - Block-Gross - Generic,19/02/2016,3604596,"58,006.92",Look Ahead Care & Support Ltd
Adults Services,General Fund/Council Fund,Homelessness,Supporting People Services,SP - Block-Gross - Learning Disabilities,19/02/2016,3604591,"40,768.62",Outward Housing
Adults Services,General Fund/Council Fund,Homelessness,Supporting People Services,SP - Block-Gross - Learning Disabilities,19/02/2016,3604596,"50,388.14",Look Ahead Care & Support Ltd
Adults Services,General Fund/Council Fund,Homelessness,Supporting People Services,SP - Block-Gross - Mental Health,19/02/2016,3604590,"6,651.25",Providence Row Housing Association
Adults Services,General Fund/Council Fund,Homelessness,Supporting People Services,SP - Block-Gross - Mental Health,19/02/2016,3604592,"57,064.19",HESTIA HOUSING & SUPPORT
Adults Services,General Fund/Council Fund,Homelessness,Supporting People Services,SP - Block-Gross - Mental Health,19/02/2016,3604596,"207,367.27",Look Ahead Care & Support Ltd
Adults Services,General Fund/Council Fund,Homelessness,Supporting People Services,SP - Block-Gross - Old People-Supp Needs,19/02/2016,3604595,606.67,CIRCLE SUPPORT CONSORTIUM
Adults Services,General Fund/Council Fund,Homelessness,Supporting People Services,SP - Block-Gross - Others,19/02/2016,3604588,"12,522.92",THE EX-SERVICE FELLOWSHIP CENTRES
Adults Services,General Fund/Council Fund,Homelessness,Supporting People Services,SP - Block-Gross - Single Homeless,19/02/2016,3604589,"75,781.05",Salvation Army
Adults Services,General Fund/Council Fund,Homelessness,Supporting People Services,SP - Block-Gross - Single Homeless,19/02/2016,3604590,"147,492.66",Providence Row Housing Association
Adults Services,General Fund/Council Fund,Homelessness,Supporting People Services,SP - Block-Gross - Single Homeless,19/02/2016,3604596,"143,530.83",Look Ahead Care & Support Ltd
Adults Services,General Fund/Council Fund,Homelessness,Supporting People Services,SP - Block-Gross - Y People Risk/Care Lev,19/02/2016,3604593,"46,283.17",Kipper Project
Adults Services,General Fund/Council Fund,Homelessness,Supporting People Services,SP - Block-Gross - Y People Risk/Care Lev,19/02/2016,3604596,"62,943.49",Look Ahead Care & Support Ltd
Adults Services,General Fund/Council Fund,Homelessness,Supporting People Services,SP - Block Subsidy - Old People-Supp Needs,19/02/2016,3605197,585.62,GATEWAY HOUSING ASSOCIATION
Adults Services,General Fund/Council Fund,Homelessness,Supporting People Services,SP - Block Subsidy - Old People-Supp Needs,19/02/2016,3605198,"1,084.02",GATEWAY HOUSING ASSOCIATION
Adults Services,General Fund/Council Fund,Homelessness,Supporting People Services,SP - Block Subsidy - Old People-Supp Needs,19/02/2016,3605199,"1,084.02",GATEWAY HOUSING ASSOCIATION
Adults Services,General Fund/Council Fund,Homelessness,Supporting People Services,SP - Block Subsidy - Old People-Supp Needs,19/02/2016,3605200,510.86,GATEWAY HOUSING ASSOCIATION
Adults Services,General Fund/Council Fund,Homelessness,Supporting People Services,SP - Block Subsidy - Old People-Supp Needs,19/02/2016,3605202,735.14,GATEWAY HOUSING ASSOCIATION
Adults Services,General Fund/Council Fund,Homelessness,Supporting People Services,SP - Block Subsidy - Old People-Supp Needs,19/02/2016,3605205,548.24,GATEWAY HOUSING ASSOCIATION
Adults Services,General Fund/Council Fund,Homelessness,Supporting People Services,SP - Block Subsidy - Old People-Supp Needs,19/02/2016,3605206,585.62,GATEWAY HOUSING ASSOCIATION
Adults Services,Adult Social Care,Older People (Aged 65 or over) including Older Mental Ill,Strategic Commissioning,Social Care - MSG Prevention Health & Wellbeing,19/02/2016,3605997,"1,500.00",BIJOY YOUTH GROUP
Adults Services,Adult Social Care,Older People (Aged 65 or over) including Older Mental Ill,Older People Commissioning,Social Care - Residential Care,19/02/2016,3602282,"2,078.06",LUGANO
Adults Services,Adult Social Care,Older People (Aged 65 or over) including Older Mental Ill,Older People Commissioning,Social Care - Residential Care,19/02/2016,3604339,"3,410.00",St Georges Nursing Home
Adults Services,Adult Social Care,Older People (Aged 65 or over) including Older Mental Ill,Older People Commissioning,Social Care - Residential Care,19/02/2016,3605908,"3,882.44",ACTION ON HEARING LOSS
Adults Services,Adult Social Care,Older People (Aged 65 or over) including Older Mental Ill,Older People Commissioning,Social Care - Residential Care,19/02/2016,3605995,"2,348.00",THE MANORS CARE HOMES LTD
Adults Services,Adult Social Care,Older People (Aged 65 or over) including Older Mental Ill,Older People Commissioning,Social Care - Residential Care,19/02/2016,3605995,-505.2,THE MANORS CARE HOMES LTD
Adults Services,Adult Social Care,Older People (Aged 65 or over) including Older Mental Ill,Older People Commissioning,Social Care - Residential Care,19/02/2016,3606140,"2,754.00",Essex County Council
Adults Services,Adult Social Care,Older People (Aged 65 or over) including Older Mental Ill,Older People Commissioning,Social Care - Day Care,19/02/2016,3606244,616.68,St Hilda's East Community Centre
Adults Services,Adult Social Care,Older People (Aged 65 or over) including Older Mental Ill,Older People Commissioning,Social Care - Day Care,19/02/2016,3606246,"1,127.05",St Hilda's East Community Centre
Adults Services,Adult Social Care,Older People (Aged 65 or over) including Older Mental Ill,Older People Commissioning,Social Care - Day Care,19/02/2016,3606259,612.47,St Hilda's East Community Centre
Adults Services,Adult Social Care,Older People (Aged 65 or over) including Older Mental Ill,Older People Commissioning,Social Care - Day Care,19/02/2016,3606265,612.47,St Hilda's East Community Centre
Adults Services,Adult Social Care,Older People (Aged 65 or over) including Older Mental Ill,Older People Commissioning,Social Care - Day Care,19/02/2016,3606271,959.38,St Hilda's East Community Centre
Adults Services,Adult Social Care,Older People (Aged 65 or over) including Older Mental Ill,Older People Commissioning,Social Care - Day Care,19/02/2016,3606284,651.04,St Hilda's East Community Centre
Adults Services,Adult Social Care,Older People (Aged 65 or over) including Older Mental Ill,Older People Commissioning,Social Care - Day Care,19/02/2016,3606286,749.61,St Hilda's East Community Centre
Adults Services,Adult Social Care,Older People (Aged 65 or over) including Older Mental Ill,Older People Commissioning,Social Care - Day Care,19/02/2016,3606293,616.68,St Hilda's East Community Centre
Adults Services,Adult Social Care,Older People (Aged 65 or over) including Older Mental Ill,Older People Commissioning,Social Care - Day Care,19/02/2016,3606297,548.26,St Hilda's East Community Centre
Adults Services,Adult Social Care,Older People (Aged 65 or over) including Older Mental Ill,Older People Commissioning,Social Care - Day Care,19/02/2016,3606302,770.85,St Hilda's East Community Centre
Adults Services,Adult Social Care,Older People (Aged 65 or over) including Older Mental Ill,Older People Commissioning,Social Care - Day Care,19/02/2016,3606311,556.87,St Hilda's East Community Centre
Adults Services,Adult Social Care,Older People (Aged 65 or over) including Older Mental Ill,Older People Commissioning,Social Care - Day Care,19/02/2016,3606312,548.26,St Hilda's East Community Centre
Adults Services,Adult Social Care,Older People (Aged 65 or over) including Older Mental Ill,Older People Commissioning,Social Care - Homecare,19/02/2016,3595976,"-1,624.00",CIRCLE SUPPORT CONSORTIUM
Adults Services,Adult Social Care,Older People (Aged 65 or over) including Older Mental Ill,Older People Commissioning,Social Care - Homecare,19/02/2016,3595977,-842,CIRCLE SUPPORT CONSORTIUM
Adults Services,Adult Social Care,Older People (Aged 65 or over) including Older Mental Ill,Older People Commissioning,Social Care - Homecare,19/02/2016,3604365,510.3,Mantra Recruitment
Adults Services,Adult Social Care,Older People (Aged 65 or over) including Older Mental Ill,Older People Commissioning,Social Care - Homecare,19/02/2016,3604403,535.5,Mantra Recruitment
Adults Services,Adult Social Care,Older People (Aged 65 or over) including Older Mental Ill,Older People Commissioning,Social Care - Homecare,19/02/2016,3604420,624.75,Mantra Recruitment
Adults Services,Adult Social Care,Older People (Aged 65 or over) including Older Mental Ill,Older People Commissioning,Social Care - Homecare,19/02/2016,3604445,503.63,Mantra Recruitment
Adults Services,Adult Social Care,Older People (Aged 65 or over) including Older Mental Ill,Older People Commissioning,Social Care - Homecare,19/02/2016,3604454,624.75,Mantra Recruitment
Adults Services,Adult Social Care,Older People (Aged 65 or over) including Older Mental Ill,Older People Commissioning,Social Care - Homecare,19/02/2016,3604495,624.75,Mantra Recruitment
Adults Services,Adult Social Care,Older People (Aged 65 or over) including Older Mental Ill,Older People Commissioning,Social Care - Homecare,19/02/2016,3604507,529.13,Mantra Recruitment
Adults Services,Adult Social Care,Older People (Aged 65 or over) including Older Mental Ill,Older People Commissioning,Social Care - Homecare,19/02/2016,3604527,"4,670.40",Excelcare (Home Care Division) LTD
Adults Services,Adult Social Care,Older People (Aged 65 or over) including Older Mental Ill,Older People Commissioning,Social Care - Homecare,19/02/2016,3604528,"4,660.18",Excelcare (Home Care Division) LTD
Adults Services,Adult Social Care,Older People (Aged 65 or over) including Older Mental Ill,Older People Commissioning,Social Care - Homecare,19/02/2016,3604529,"4,767.00",Excelcare (Home Care Division) LTD
Adults Services,Adult Social Care,Older People (Aged 65 or over) including Older Mental Ill,Older People Commissioning,Social Care - Homecare,19/02/2016,3604530,"4,801.67",Excelcare (Home Care Division) LTD
Adults Services,Adult Social Care,Older People (Aged 65 or over) including Older Mental Ill,Older People Commissioning,Social Care - Homecare,19/02/2016,3604531,"4,836.31",Excelcare (Home Care Division) LTD
Adults Services,Adult Social Care,Older People (Aged 65 or over) including Older Mental Ill,Older People Commissioning,Social Care - Homecare,19/02/2016,3604532,"4,822.06",Excelcare (Home Care Division) LTD
Adults Services,Adult Social Care,Older People (Aged 65 or over) including Older Mental Ill,Older People Commissioning,Social Care - Homecare,19/02/2016,3604533,"4,836.31",Excelcare (Home Care Division) LTD
Adults Services,Adult Social Care,Older People (Aged 65 or over) including Older Mental Ill,Older People Commissioning,Social Care - Homecare,19/02/2016,3604536,"1,831.80",AQUAFLO CARE LTD
Adults Services,Adult Social Care,Older People (Aged 65 or over) including Older Mental Ill,Older People Commissioning,Social Care - Homecare,19/02/2016,3605767,"-33,202.09",D D PAYROLL SERVICES
Adults Services,Adult Social Care,Older People (Aged 65 or over) including Older Mental Ill,Older People Commissioning,Social Care - Homecare,19/02/2016,3605807,694.43,Oasis Care & Training Agency
Adults Services,Adult Social Care,Older People (Aged 65 or over) including Older Mental Ill,Older People Commissioning,Social Care - Homecare,19/02/2016,3605808,740.25,Oasis Care & Training Agency
Adults Services,Adult Social Care,Older People (Aged 65 or over) including Older Mental Ill,Older People Commissioning,Social Care - Homecare,19/02/2016,3605812,535.8,Oasis Care & Training Agency
Adults Services,Adult Social Care,Older People (Aged 65 or over) including Older Mental Ill,Older People Commissioning,Social Care - Homecare,19/02/2016,3605815,535.8,Oasis Care & Training Agency
Adults Services,Adult Social Care,Older People (Aged 65 or over) including Older Mental Ill,Older People Commissioning,Social Care - Homecare,19/02/2016,3605829,"1,652.00",SEVACARE UK LTD
Adults Services,Adult Social Care,Older People (Aged 65 or over) including Older Mental Ill,Older People Commissioning,Social Care - Homecare,19/02/2016,3605836,560.5,SEVACARE UK LTD
Adults Services,Adult Social Care,Older People (Aged 65 or over) including Older Mental Ill,Older People Commissioning,Social Care - Homecare,19/02/2016,3605842,538.38,SEVACARE UK LTD
Adults Services,Adult Social Care,Older People (Aged 65 or over) including Older Mental Ill,Older People Commissioning,Social Care - Homecare,19/02/2016,3605848,501.5,SEVACARE UK LTD
Adults Services,Adult Social Care,Older People (Aged 65 or over) including Older Mental Ill,Older People Commissioning,Social Care - Homecare,19/02/2016,3605849,549.44,SEVACARE UK LTD
Adults Services,Adult Social Care,Older People (Aged 65 or over) including Older Mental Ill,Older People Commissioning,Social Care - Homecare,19/02/2016,3605862,560.5,SEVACARE UK LTD
Adults Services,Adult Social Care,Older People (Aged 65 or over) including Older Mental Ill,Older People Commissioning,Social Care - Homecare,19/02/2016,3605866,"4,634.91",REDSPOT HOMECARE (CONTRACTS) LTD
Adults Services,Adult Social Care,Older People (Aged 65 or over) including Older Mental Ill,Older People Commissioning,Social Care - Homecare,19/02/2016,3605874,"1,831.80",AQUAFLO CARE LTD
Adults Services,Adult Social Care,Older People (Aged 65 or over) including Older Mental Ill,Older People Commissioning,Social Care - Homecare,19/02/2016,3605901,554.32,MiHOMECARE LIMITED
Adults Services,Adult Social Care,Older People (Aged 65 or over) including Older Mental Ill,Older People Commissioning,Social Care - Homecare,19/02/2016,3605905,650.43,MiHOMECARE LIMITED
Adults Services,Adult Social Care,Older People (Aged 65 or over) including Older Mental Ill,Older People Commissioning,Social Care - Homecare,19/02/2016,3605907,662.66,MiHOMECARE LIMITED
Adults Services,Adult Social Care,Older People (Aged 65 or over) including Older Mental Ill,Older People Commissioning,Social Care - Homecare,19/02/2016,3605910,"1,361.70",APASENTH
Adults Services,Adult Social Care,Older People (Aged 65 or over) including Older Mental Ill,Older People Commissioning,Social Care - Homecare,19/02/2016,3605913,"1,214.85",APASENTH
Adults Services,Adult Social Care,Older People (Aged 65 or over) including Older Mental Ill,Older People Commissioning,Social Care - Homecare,19/02/2016,3605915,934.5,APASENTH
Adults Services,Adult Social Care,Older People (Aged 65 or over) including Older Mental Ill,Older People Commissioning,Social Care - Homecare,19/02/2016,3605924,527.33,APASENTH
Adults Services,Adult Social Care,Older People (Aged 65 or over) including Older Mental Ill,Older People Commissioning,Social Care - Homecare,19/02/2016,3606034,551.15,St Hilda's East Community Centre
Adults Services,Adult Social Care,Older People (Aged 65 or over) including Older Mental Ill,Older People Commissioning,Social Care - Homecare,19/02/2016,3606037,528.2,St Hilda's East Community Centre
Adults Services,Adult Social Care,Older People (Aged 65 or over) including Older Mental Ill,Older People Commissioning,Social Care - Homecare,19/02/2016,3606143,829.98,Excelcare (Home Care Division) LTD
Adults Services,Adult Social Care,Older People (Aged 65 or over) including Older Mental Ill,Older People Commissioning,Social Care - Homecare,19/02/2016,3606144,899.07,Excelcare (Home Care Division) LTD
Adults Services,Adult Social Care,Older People (Aged 65 or over) including Older Mental Ill,Older People Commissioning,Social Care - Homecare,19/02/2016,3606145,"4,687.47",Excelcare (Home Care Division) LTD
Adults Services,Adult Social Care,Older People (Aged 65 or over) including Older Mental Ill,Older People Commissioning,Social Care - Homecare,19/02/2016,3606201,560.25,Oasis Care & Training Agency
Adults Services,Adult Social Care,Older People (Aged 65 or over) including Older Mental Ill,Older People Commissioning,Social Care - Homecare,19/02/2016,3606221,937.65,Oasis Care & Training Agency
Adults Services,Adult Social Care,Older People (Aged 65 or over) including Older Mental Ill,Older People Commissioning,Social Care - Homecare,19/02/2016,3606223,740.25,Oasis Care & Training Agency
Adults Services,Adult Social Care,Older People (Aged 65 or over) including Older Mental Ill,Older People Commissioning,Social Care - Homecare,19/02/2016,3606228,535.8,Oasis Care & Training Agency
Adults Services,Adult Social Care,Older People (Aged 65 or over) including Older Mental Ill,Older People Commissioning,Social Care - Homecare,19/02/2016,3606330,886.94,MiHOMECARE LIMITED
Adults Services,Adult Social Care,Older People (Aged 65 or over) including Older Mental Ill,Older People Commissioning,Social Care - Direct Payments,19/02/2016,3605230,909.45,DAVID HOWARD LTD CLIENT ACCOUNT
Adults Services,Adult Social Care,Older People (Aged 65 or over) including Older Mental Ill,Older People Commissioning,Social Care - Direct Payments,19/02/2016,3605238,"3,086.00",DAVID HOWARD LTD CLIENT ACCOUNT
Adults Services,Adult Social Care,Older People (Aged 65 or over) including Older Mental Ill,Older People Commissioning,Social Care - Direct Payments,19/02/2016,3605240,694,Soma Healthcare Ltd
Adults Services,Adult Social Care,Older People (Aged 65 or over) including Older Mental Ill,Older People Commissioning,Social Care - Direct Payments,19/02/2016,3605241,"1,287.26",DAVID HOWARD LTD CLIENT ACCOUNT
Adults Services,Adult Social Care,Older People (Aged 65 or over) including Older Mental Ill,Older People Commissioning,Social Care - Direct Payments,19/02/2016,3605249,749.53,DAVID HOWARD LTD CLIENT ACCOUNT
Adults Services,Adult Social Care,Older People (Aged 65 or over) including Older Mental Ill,Older People Commissioning,Social Care - Direct Payments,19/02/2016,3605251,725.14,DAVID HOWARD LTD CLIENT ACCOUNT
Adults Services,Adult Social Care,Older People (Aged 65 or over) including Older Mental Ill,Older People Commissioning,Social Care - Direct Payments,19/02/2016,3605256,980.84,DAVID HOWARD LTD CLIENT ACCOUNT
Adults Services,Adult Social Care,Older People (Aged 65 or over) including Older Mental Ill,Older People Commissioning,Social Care - Direct Payments,19/02/2016,3605288,"1,736.00",DAVID HOWARD LTD CLIENT ACCOUNT
Adults Services,Adult Social Care,Older People (Aged 65 or over) including Older Mental Ill,Older People Commissioning,Social Care - Direct Payments,19/02/2016,3605290,"1,423.21",DAVID HOWARD LTD CLIENT ACCOUNT
Adults Services,Adult Social Care,Older People (Aged 65 or over) including Older Mental Ill,Older People Commissioning,Social Care - Direct Payments,19/02/2016,3605305,527.31,DAVID HOWARD LTD CLIENT ACCOUNT
Adults Services,Adult Social Care,Older People (Aged 65 or over) including Older Mental Ill,Older People Commissioning,Social Care - Direct Payments,19/02/2016,3605312,709.64,DAVID HOWARD LTD CLIENT ACCOUNT
Adults Services,Adult Social Care,Older People (Aged 65 or over) including Older Mental Ill,Older People Commissioning,Social Care - Direct Payments,19/02/2016,3605315,871.1,DAVID HOWARD LTD CLIENT ACCOUNT
